BODY,BODY NAME,SUPPLIER CODE,SUPPLIER NAME,TRANSACTION NUMBER,INVOICE DATE,THEIR REF,NARR1,PAID DATE,VAT AMOUNT,EXCLUSIVE AMOUNT,INCLUSIVE AMOUNT,EXPENSE AREA,EXPENSE TYPE,EXPENSE CODE
http://statistics.data.gov.uk/id/local-authority/12UE,Huntingdonshire District Council,200243,DODS GROUP PLC DODS GROUP PLC,43349,18/01/2021,35157,,07/01/2021,0,1885.8,1885.8,Paymaster Account,Main Account,10080
http://statistics.data.gov.uk/id/local-authority/12UE,Huntingdonshire District Council,202187,CYCLESCHEME LTD,38137,25/08/2020,W519180,CYCLESCHEME,04/02/2021,126.5,632.5,759,Cycle to Work,Vehicles Plant Furniture & Equipment Cost,11300
http://statistics.data.gov.uk/id/local-authority/12UE,Huntingdonshire District Council,202187,CYCLESCHEME LTD,45645,16/03/2021,W555262,REDACTED,18/03/2021,68.33,341.67,410,Cycle to Work,Vehicles Plant Furniture & Equipment Cost,11300
http://statistics.data.gov.uk/id/local-authority/12UE,Huntingdonshire District Council,202187,CYCLESCHEME LTD,44010,23/01/2021,W545505,REDACTED,04/02/2021,60,300,360,Cycle to Work,Vehicles Plant Furniture & Equipment Cost,11300
http://statistics.data.gov.uk/id/local-authority/12UE,Huntingdonshire District Council,202393,TRAFALGAR CLEANING EQUIPMENT LTD,43212,19/10/2020,286987,ECO SWEEPER,14/01/2021,11399.4,56997,68396.4,Vehicles & Plant,Vehicles Plant Furniture & Equipment Cost,11300
http://statistics.data.gov.uk/id/local-authority/12UE,Huntingdonshire District Council,200356,WATSON FUELS WATSON FUELS,45392,03/03/2021,I12452772,DIESEL,25/03/2021,5833.16,29165.81,34998.97,Operations Diesel Stock,Consumable Stores,11600
http://statistics.data.gov.uk/id/local-authority/12UE,Huntingdonshire District Council,200356,WATSON FUELS WATSON FUELS,44527,05/02/2021,I12387388,DIESEL,04/03/2021,5568.79,27843.92,33412.71,Operations Diesel Stock,Consumable Stores,11600
http://statistics.data.gov.uk/id/local-authority/12UE,Huntingdonshire District Council,200356,WATSON FUELS WATSON FUELS,44784,14/01/2021,I12332732,DIESEL,25/02/2021,5518.57,27592.84,33111.41,Operations Diesel Stock,Consumable Stores,11600
http://statistics.data.gov.uk/id/local-authority/12UE,Huntingdonshire District Council,200356,WATSON FUELS WATSON FUELS,43258,31/12/2020,I12304315,DIESEL,28/01/2021,5499.42,27497.08,32996.5,Operations Diesel Stock,Consumable Stores,11600
http://statistics.data.gov.uk/id/local-authority/12UE,Huntingdonshire District Council,200356,WATSON FUELS WATSON FUELS,43259,18/12/2020,I12292491,DIESEL,14/01/2021,5467.8,27339,32806.8,Operations Diesel Stock,Consumable Stores,11600
http://statistics.data.gov.uk/id/local-authority/12UE,Huntingdonshire District Council,200356,WATSON FUELS WATSON FUELS,43260,09/12/2020,I12265650,DIESEL,14/01/2021,5390.34,26951.69,32342.03,Operations Diesel Stock,Consumable Stores,11600
http://statistics.data.gov.uk/id/local-authority/12UE,Huntingdonshire District Council,200727,SNR DENTON SNR DENTON,44417,30/04/2020,91207027,PROFESSIONAL SERVICES,18/02/2021,0,2911,2911,VAT,Housing Benefit Overpayment Control,11720
http://statistics.data.gov.uk/id/local-authority/12UE,Huntingdonshire District Council,200433,JACOBS JACOBS,44705,19/02/2021,B010221.,CT BAILIFF (JAN) VAT AMOUNT,18/03/2021,0,2680.41,2680.41,VAT,Housing Benefit Overpayment Control,11720
http://statistics.data.gov.uk/id/local-authority/12UE,Huntingdonshire District Council,200569,NEWLYN PLC NEWLYN PLC,45216,27/02/2021,152051,CT BAILIFF (FEB) VAT AMOUNT,25/03/2021,0,2512.18,2512.18,VAT,Housing Benefit Overpayment Control,11720
http://statistics.data.gov.uk/id/local-authority/12UE,Huntingdonshire District Council,200569,NEWLYN PLC NEWLYN PLC,44201,30/01/2021,151688,CT BAILIFF (JAN) VAT AMOUNT,25/02/2021,0,2074.67,2074.67,VAT,Housing Benefit Overpayment Control,11720
http://statistics.data.gov.uk/id/local-authority/12UE,Huntingdonshire District Council,200569,NEWLYN PLC NEWLYN PLC,44196,31/12/2020,151317,CT BAILIFF (DEC) VAT AMOUNT,11/02/2021,0,1384.04,1384.04,VAT,Housing Benefit Overpayment Control,11720
http://statistics.data.gov.uk/id/local-authority/12UE,Huntingdonshire District Council,200433,JACOBS JACOBS,43336,17/01/2021,B040121.,CT BAILIFF (DEC) VAT AMOUNT,11/02/2021,0,1249.35,1249.35,VAT,Housing Benefit Overpayment Control,11720
http://statistics.data.gov.uk/id/local-authority/12UE,Huntingdonshire District Council,200727,SNR DENTON SNR DENTON,44418,29/10/2020,91219563,PROFESSIONAL SERVICES,18/02/2021,0,1100.37,1100.37,VAT,Housing Benefit Overpayment Control,11720
http://statistics.data.gov.uk/id/local-authority/12UE,Huntingdonshire District Council,200569,NEWLYN PLC NEWLYN PLC,43146,28/11/2020,150968,CT BAILIFF (NOV) VAT AMOUNT,11/02/2021,0,513.03,513.03,VAT,Housing Benefit Overpayment Control,11720
http://statistics.data.gov.uk/id/local-authority/12UE,Huntingdonshire District Council,200569,NEWLYN PLC NEWLYN PLC,44204,30/01/2021,151690,NNDR BAILIFF (JAN) VAT AMOUNT,25/02/2021,0,428.71,428.71,VAT,Housing Benefit Overpayment Control,11720
http://statistics.data.gov.uk/id/local-authority/12UE,Huntingdonshire District Council,201394,DWF LLP,44946,26/02/2021,157-0153174,PROFESSIONAL FEES,25/03/2021,0,390,390,VAT,Housing Benefit Overpayment Control,11720
http://statistics.data.gov.uk/id/local-authority/12UE,Huntingdonshire District Council,200569,NEWLYN PLC NEWLYN PLC,45220,27/02/2021,152054,CT BAILIFF (FEB) VAT AMOUNT,25/03/2021,0,298.82,298.82,VAT,Housing Benefit Overpayment Control,11720
http://statistics.data.gov.uk/id/local-authority/12UE,Huntingdonshire District Council,200840,WEIGHTMANS WEIGHTMANS,44968,18/01/2021,1991752,PROFESSIONAL SERVICES,04/03/2021,0,284.2,284.2,VAT,Housing Benefit Overpayment Control,11720
http://statistics.data.gov.uk/id/local-authority/12UE,Huntingdonshire District Council,200727,SNR DENTON SNR DENTON,44416,30/04/2020,91206984,PROFESSIONAL SERVICES,18/02/2021,0,252,252,VAT,Housing Benefit Overpayment Control,11720
http://statistics.data.gov.uk/id/local-authority/12UE,Huntingdonshire District Council,200569,NEWLYN PLC NEWLYN PLC,41862,31/10/2020,150627,CT BAILIFF (OCT) VAT AMOUNT,11/02/2021,0,-1030.73,-1030.73,VAT,Housing Benefit Overpayment Control,11720
http://statistics.data.gov.uk/id/local-authority/12UE,Huntingdonshire District Council,200101,BID HUNTINGDON BID HUNTINGDON,43200,11/01/2021,INV-1887,DECEMBER SETTLEMENT,14/01/2021,5567.25,27836.25,33403.5,Bid Revenue Account,Interest Payable - Long Term Borrowing - Other,23000
http://statistics.data.gov.uk/id/local-authority/12UE,Huntingdonshire District Council,200101,BID HUNTINGDON BID HUNTINGDON,45582,11/03/2021,INV-1889,bid jan & feb,18/03/2021,5361.8,26809,32170.8,Bid Revenue Account,Interest Payable - Long Term Borrowing - Other,23000
http://statistics.data.gov.uk/id/local-authority/12UE,Huntingdonshire District Council,200101,BID HUNTINGDON BID HUNTINGDON,43201,11/01/2021,INV-1886,SETTLEMENT DEC 2020,14/01/2021,122.25,611.27,733.52,Bid Revenue Account,Interest Payable - Long Term Borrowing - Other,23000
http://statistics.data.gov.uk/id/local-authority/12UE,Huntingdonshire District Council,200210,COMPUTERSHARE VOUCHERS LTD COMPUTERSHARE VOUCHERS LTD,43696,25/01/2021,C-0003162708,TAX FREE VOUCHERS,28/01/2021,8.61,43.03,51.64,Child Care Vouchers - Payroll,Tax Deduction (Interest),23010
http://statistics.data.gov.uk/id/local-authority/12UE,Huntingdonshire District Council,200210,COMPUTERSHARE VOUCHERS LTD COMPUTERSHARE VOUCHERS LTD,44812,22/02/2021,C-0003173404,TAX FREE VOUCHERS,25/02/2021,8.61,43.03,51.64,Child Care Vouchers - Payroll,Tax Deduction (Interest),23010
http://statistics.data.gov.uk/id/local-authority/12UE,Huntingdonshire District Council,202443,DIAMOND HAMPERS,44710,18/02/2021,Grant,Grant,25/02/2021,0,5000,5000,Community Development,Government Grants Revenue Income - Ringfenced,50000
http://statistics.data.gov.uk/id/local-authority/12UE,Huntingdonshire District Council,202426,SOCIAL ECHO NORTH HUNTINGDONSHIRE CIC,44711,18/02/2021,Grant,Grant,25/02/2021,0,5000,5000,Community Development,Government Grants Revenue Income - Ringfenced,50000
http://statistics.data.gov.uk/id/local-authority/12UE,Huntingdonshire District Council,202443,DIAMOND HAMPERS,45211,18/02/2021,Grant,Grant,25/03/2021,0,5000,5000,Community Development,Government Grants Revenue Income - Ringfenced,50000
http://statistics.data.gov.uk/id/local-authority/12UE,Huntingdonshire District Council,202307,HUNTINGDONSHIRE COMMUNITY GROUP,45732,18/03/2021,Grant,Grant,25/03/2021,0,5000,5000,Community Development,Government Grants Revenue Income - Ringfenced,50000
http://statistics.data.gov.uk/id/local-authority/12UE,Huntingdonshire District Council,202534,Ramsey Foodbank,45744,19/03/2021,Grant,Grant,25/03/2021,0,5000,5000,Community Development,Government Grants Revenue Income - Ringfenced,50000
http://statistics.data.gov.uk/id/local-authority/12UE,Huntingdonshire District Council,202425,GODMANCHESTER BAPTIST CHURCH,45730,18/03/2021,Grant,Grant,25/03/2021,0,3000,3000,Community Development,Government Grants Revenue Income - Ringfenced,50000
http://statistics.data.gov.uk/id/local-authority/12UE,Huntingdonshire District Council,202302,CARESCO LTD,45727,18/03/2021,Grant,Grant,25/03/2021,0,1392.5,1392.5,Community Development,Government Grants Revenue Income - Ringfenced,50000
http://statistics.data.gov.uk/id/local-authority/12UE,Huntingdonshire District Council,201268.01,YAXLEY PARISH COUNCIL,45733,18/03/2021,Grant,Grant,25/03/2021,0,1239.59,1239.59,Community Development,Government Grants Revenue Income - Ringfenced,50000
http://statistics.data.gov.uk/id/local-authority/12UE,Huntingdonshire District Council,200516,M WATSON CONSTRUCTION LTD M WATSON CONSTRUCTION LTD,44353,25/01/2021,24795,200468,18/02/2021,0,1545.6,1545.6,Disables Facilities Grants,Government Grants Revenue Income - Ringfenced,50000
http://statistics.data.gov.uk/id/local-authority/12UE,Huntingdonshire District Council,200638,PRIORY CENTRE PRIORY CENTRE,44798,31/03/2020,4530,HDC CONTRIBUTION TO SNTC,25/02/2021,0,-5370,-5370,Priory Centre,Donations Income (B),51100
http://statistics.data.gov.uk/id/local-authority/12UE,Huntingdonshire District Council,200156,CAMBRIDGE VENDING LTD T/A THE VENDING PEOPLE CAMBRIDGE VENDING,43434,25/12/2020,211287,VENDING MACHINES,21/01/2021,63.74,318.71,382.45,Covid-19,Memorial Sales Income,51200
http://statistics.data.gov.uk/id/local-authority/12UE,Huntingdonshire District Council,200156,CAMBRIDGE VENDING LTD T/A THE VENDING PEOPLE CAMBRIDGE VENDING,43434,25/12/2020,211287,VENDING MACHINES,21/01/2021,48.19,240.97,289.16,Covid-19,Memorial Sales Income,51200
http://statistics.data.gov.uk/id/local-authority/12UE,Huntingdonshire District Council,200156,CAMBRIDGE VENDING LTD T/A THE VENDING PEOPLE CAMBRIDGE VENDING,45574,19/02/2021,211577,EASTFIELD VENDING,18/03/2021,39.68,198.39,238.07,Covid-19,Memorial Sales Income,51200
http://statistics.data.gov.uk/id/local-authority/12UE,Huntingdonshire District Council,200156,CAMBRIDGE VENDING LTD T/A THE VENDING PEOPLE CAMBRIDGE VENDING,45574,19/02/2021,211577,EASTFIELD VENDING,18/03/2021,47.47,237.34,284.81,Covid-19,Memorial Sales Income,51200
http://statistics.data.gov.uk/id/local-authority/12UE,Huntingdonshire District Council,201485,CAMBRIDGESHIRE HOTEL LTD T/AS THE DOLPHIN,42917,27/12/2020,DH019866,21-27/12/20,07/01/2021,17.5,350,367.5,Homelessness,B&B Costs Recovered,51406
http://statistics.data.gov.uk/id/local-authority/12UE,Huntingdonshire District Council,202350,AGE UK CAMBRIDGESHIRE AND PETERBOROUGH,44712,18/02/2021,CEV GRANT,Grant,25/02/2021,0,2000,2000,Community Development,Fees & Charges Income ,53000
http://statistics.data.gov.uk/id/local-authority/12UE,Huntingdonshire District Council,202381,BRAMPTON VILLAGE HUB,44713,18/02/2021,CEV GRANT,Grant,25/02/2021,0,2000,2000,Community Development,Fees & Charges Income ,53000
http://statistics.data.gov.uk/id/local-authority/12UE,Huntingdonshire District Council,202302,CARESCO LTD,44714,18/02/2021,CEV GRANT,Grant,25/02/2021,0,2000,2000,Community Development,Fees & Charges Income ,53000
http://statistics.data.gov.uk/id/local-authority/12UE,Huntingdonshire District Council,202301,GODMANCHESTER COMMUNITY TIMEBANK,44715,18/02/2021,CEV GRANT,Grant,25/02/2021,0,2000,2000,Community Development,Fees & Charges Income ,53000
http://statistics.data.gov.uk/id/local-authority/12UE,Huntingdonshire District Council,202299,HEMINGFORD HUB GOOD NEIGHBOUR SCHEME,44716,18/02/2021,CEV GRANT,Grant,25/02/2021,0,2000,2000,Community Development,Fees & Charges Income ,53000
http://statistics.data.gov.uk/id/local-authority/12UE,Huntingdonshire District Council,202307,HUNTINGDONSHIRE COMMUNITY GROUP,44717,18/02/2021,CEV GRANT,Grant,25/02/2021,0,2000,2000,Community Development,Fees & Charges Income ,53000
http://statistics.data.gov.uk/id/local-authority/12UE,Huntingdonshire District Council,202509,LOVE'S FARM COMMUNITY ASSOCIATION,44718,18/02/2021,CEV GRANT,Grant,25/02/2021,0,2000,2000,Community Development,Fees & Charges Income ,53000
http://statistics.data.gov.uk/id/local-authority/12UE,Huntingdonshire District Council,202309,RAMSEY NEIGHBOURHOODS TRUST,44719,18/02/2021,CEV GRANT,Grant,25/02/2021,0,2000,2000,Community Development,Fees & Charges Income ,53000
http://statistics.data.gov.uk/id/local-authority/12UE,Huntingdonshire District Council,201251,Somersham Parish Council,44720,18/02/2021,CEV GRANT,Grant,25/02/2021,0,2000,2000,Community Development,Fees & Charges Income ,53000
http://statistics.data.gov.uk/id/local-authority/12UE,Huntingdonshire District Council,202510,ST NEOTS TIMEBANK,44721,18/02/2021,CEV GRANT,Grant,25/02/2021,0,2000,2000,Community Development,Fees & Charges Income ,53000
http://statistics.data.gov.uk/id/local-authority/12UE,Huntingdonshire District Council,202426,SOCIAL ECHO NORTH HUNTINGDONSHIRE CIC,44722,18/02/2021,CEV GRANT,Grant,25/02/2021,0,2000,2000,Community Development,Fees & Charges Income ,53000
http://statistics.data.gov.uk/id/local-authority/12UE,Huntingdonshire District Council,201018,REDACTED,44898,24/02/2021,PRF24/02/21,Payment to a resident of a warm homes gr,04/03/2021,0,300,300,Community Development,Fees & Charges Income ,53000
http://statistics.data.gov.uk/id/local-authority/12UE,Huntingdonshire District Council,200474,LANDMARK TRADING LTD LANDMARK TRADING LTD,44457,10/02/2021,74914,EQUIPMENT,04/03/2021,47.9,239.5,287.4,Arboricultural Team,Costs Recovered,53100
http://statistics.data.gov.uk/id/local-authority/12UE,Huntingdonshire District Council,200474,LANDMARK TRADING LTD LANDMARK TRADING LTD,44457,10/02/2021,74914,EQUIPMENT,04/03/2021,2.79,13.95,16.74,Arboricultural Team,Costs Recovered,53100
http://statistics.data.gov.uk/id/local-authority/12UE,Huntingdonshire District Council,200474,LANDMARK TRADING LTD LANDMARK TRADING LTD,44457,10/02/2021,74914,EQUIPMENT,04/03/2021,28.5,142.5,171,Arboricultural Team,Costs Recovered,53100
http://statistics.data.gov.uk/id/local-authority/12UE,Huntingdonshire District Council,201477,PLANNING PORTAL,44600,27/01/2021,PP-09201661,withdrawn,25/02/2021,0,1386,1386,Dm Application Processing,Planning Applications Income,54100
http://statistics.data.gov.uk/id/local-authority/12UE,Huntingdonshire District Council,201477,PLANNING PORTAL,45764,05/01/2021,PP-08072309,non determination,25/03/2021,0,462,462,Dm Application Processing,Planning Applications Income,54100
http://statistics.data.gov.uk/id/local-authority/12UE,Huntingdonshire District Council,201629,ARAGON HOMES LTD,43399,19/01/2021,CIL REFUND - 70020046,CIL Refund - 70020046,28/01/2021,0,1963.61,1963.61,Cil Capital Grant Element,Standard Cil,57000
http://statistics.data.gov.uk/id/local-authority/12UE,Huntingdonshire District Council,200550,MORGAN HUNT PUBLIC UK LTD MORGAN HUNT PUBLIC UK LTD,43621,17/01/2021,1212458,REDACTED,28/01/2021,257.14,1285.7,1542.84,Benefits Management,Salary Cost Outside Payroll,60010
http://statistics.data.gov.uk/id/local-authority/12UE,Huntingdonshire District Council,200550,MORGAN HUNT PUBLIC UK LTD MORGAN HUNT PUBLIC UK LTD,43906,24/01/2021,1213520,REDACTED,04/02/2021,257.14,1285.7,1542.84,Benefits Management,Salary Cost Outside Payroll,60010
http://statistics.data.gov.uk/id/local-authority/12UE,Huntingdonshire District Council,200550,MORGAN HUNT PUBLIC UK LTD MORGAN HUNT PUBLIC UK LTD,44132,31/01/2021,1214712,REDACTED,11/02/2021,257.14,1285.7,1542.84,Benefits Management,Salary Cost Outside Payroll,60010
http://statistics.data.gov.uk/id/local-authority/12UE,Huntingdonshire District Council,200550,MORGAN HUNT PUBLIC UK LTD MORGAN HUNT PUBLIC UK LTD,44485,07/02/2021,1215844,REDACTED,18/02/2021,257.14,1285.7,1542.84,Benefits Management,Salary Cost Outside Payroll,60010
http://statistics.data.gov.uk/id/local-authority/12UE,Huntingdonshire District Council,200550,MORGAN HUNT PUBLIC UK LTD MORGAN HUNT PUBLIC UK LTD,44936,21/02/2021,1217910,REDACTED,04/03/2021,257.14,1285.7,1542.84,Benefits Management,Salary Cost Outside Payroll,60010
http://statistics.data.gov.uk/id/local-authority/12UE,Huntingdonshire District Council,200550,MORGAN HUNT PUBLIC UK LTD MORGAN HUNT PUBLIC UK LTD,45259,28/02/2021,1219170,REDACTED,11/03/2021,257.14,1285.7,1542.84,Benefits Management,Salary Cost Outside Payroll,60010
http://statistics.data.gov.uk/id/local-authority/12UE,Huntingdonshire District Council,200550,MORGAN HUNT PUBLIC UK LTD MORGAN HUNT PUBLIC UK LTD,45921,07/03/2021,1220315,REDACTED,25/03/2021,257.14,1285.7,1542.84,Benefits Management,Salary Cost Outside Payroll,60010
http://statistics.data.gov.uk/id/local-authority/12UE,Huntingdonshire District Council,200550,MORGAN HUNT PUBLIC UK LTD MORGAN HUNT PUBLIC UK LTD,44648,14/02/2021,1216967,REDACTED,25/02/2021,254.15,1270.75,1524.9,Benefits Management,Salary Cost Outside Payroll,60010
http://statistics.data.gov.uk/id/local-authority/12UE,Huntingdonshire District Council,200550,MORGAN HUNT PUBLIC UK LTD MORGAN HUNT PUBLIC UK LTD,43407,10/01/2021,1211334,REDACTED,21/01/2021,233.22,1166.1,1399.32,Benefits Management,Salary Cost Outside Payroll,60010
http://statistics.data.gov.uk/id/local-authority/12UE,Huntingdonshire District Council,200550,MORGAN HUNT PUBLIC UK LTD MORGAN HUNT PUBLIC UK LTD,42742,27/12/2020,1209738,REDACTED,07/01/2021,230.23,1151.15,1381.38,Benefits Management,Salary Cost Outside Payroll,60010
http://statistics.data.gov.uk/id/local-authority/12UE,Huntingdonshire District Council,200550,MORGAN HUNT PUBLIC UK LTD MORGAN HUNT PUBLIC UK LTD,42744,27/12/2020,1209741,REDACTED,07/01/2021,220.8,1104,1324.8,Benefits Management,Salary Cost Outside Payroll,60010
http://statistics.data.gov.uk/id/local-authority/12UE,Huntingdonshire District Council,200550,MORGAN HUNT PUBLIC UK LTD MORGAN HUNT PUBLIC UK LTD,43622,17/01/2021,1212460,REDACTED,28/01/2021,220.8,1104,1324.8,Benefits Management,Salary Cost Outside Payroll,60010
http://statistics.data.gov.uk/id/local-authority/12UE,Huntingdonshire District Council,200550,MORGAN HUNT PUBLIC UK LTD MORGAN HUNT PUBLIC UK LTD,43908,24/01/2021,1213522,REDACTED,04/02/2021,220.8,1104,1324.8,Benefits Management,Salary Cost Outside Payroll,60010
http://statistics.data.gov.uk/id/local-authority/12UE,Huntingdonshire District Council,200550,MORGAN HUNT PUBLIC UK LTD MORGAN HUNT PUBLIC UK LTD,44134,31/01/2021,1214715,REDACTED,11/02/2021,220.8,1104,1324.8,Benefits Management,Salary Cost Outside Payroll,60010
http://statistics.data.gov.uk/id/local-authority/12UE,Huntingdonshire District Council,200550,MORGAN HUNT PUBLIC UK LTD MORGAN HUNT PUBLIC UK LTD,44484,07/02/2021,1215847,REDACTED,18/02/2021,220.8,1104,1324.8,Benefits Management,Salary Cost Outside Payroll,60010
http://statistics.data.gov.uk/id/local-authority/12UE,Huntingdonshire District Council,200550,MORGAN HUNT PUBLIC UK LTD MORGAN HUNT PUBLIC UK LTD,44650,14/02/2021,1216970,REDACTED,25/02/2021,220.8,1104,1324.8,Benefits Management,Salary Cost Outside Payroll,60010
http://statistics.data.gov.uk/id/local-authority/12UE,Huntingdonshire District Council,200550,MORGAN HUNT PUBLIC UK LTD MORGAN HUNT PUBLIC UK LTD,44939,21/02/2021,1217913,REDACTED,04/03/2021,220.8,1104,1324.8,Benefits Management,Salary Cost Outside Payroll,60010
http://statistics.data.gov.uk/id/local-authority/12UE,Huntingdonshire District Council,200550,MORGAN HUNT PUBLIC UK LTD MORGAN HUNT PUBLIC UK LTD,45712,14/03/2021,1221587,REDACTED,25/03/2021,220.8,1104,1324.8,Benefits Management,Salary Cost Outside Payroll,60010
http://statistics.data.gov.uk/id/local-authority/12UE,Huntingdonshire District Council,200550,MORGAN HUNT PUBLIC UK LTD MORGAN HUNT PUBLIC UK LTD,43405,10/01/2021,1211335,REDACTED,21/01/2021,204.24,1021.2,1225.44,Benefits Management,Salary Cost Outside Payroll,60010
http://statistics.data.gov.uk/id/local-authority/12UE,Huntingdonshire District Council,200550,MORGAN HUNT PUBLIC UK LTD MORGAN HUNT PUBLIC UK LTD,45258,28/02/2021,1219173,REDACTED,11/03/2021,204.24,1021.2,1225.44,Benefits Management,Salary Cost Outside Payroll,60010
http://statistics.data.gov.uk/id/local-authority/12UE,Huntingdonshire District Council,200550,MORGAN HUNT PUBLIC UK LTD MORGAN HUNT PUBLIC UK LTD,45722,14/03/2021,1221586,REDACTED,25/03/2021,204.24,1021.2,1225.44,Benefits Management,Salary Cost Outside Payroll,60010
http://statistics.data.gov.uk/id/local-authority/12UE,Huntingdonshire District Council,200550,MORGAN HUNT PUBLIC UK LTD MORGAN HUNT PUBLIC UK LTD,45918,07/03/2021,1220318,REDACTED,25/03/2021,204.24,1021.2,1225.44,Benefits Management,Salary Cost Outside Payroll,60010
http://statistics.data.gov.uk/id/local-authority/12UE,Huntingdonshire District Council,200550,MORGAN HUNT PUBLIC UK LTD MORGAN HUNT PUBLIC UK LTD,44133,31/01/2021,1214714,REDACTED,11/02/2021,198.72,993.6,1192.32,Benefits Management,Salary Cost Outside Payroll,60010
http://statistics.data.gov.uk/id/local-authority/12UE,Huntingdonshire District Council,200550,MORGAN HUNT PUBLIC UK LTD MORGAN HUNT PUBLIC UK LTD,44649,14/02/2021,1216969,REDACTED,25/02/2021,198.66,993.32,1191.98,Benefits Management,Salary Cost Outside Payroll,60010
http://statistics.data.gov.uk/id/local-authority/12UE,Huntingdonshire District Council,200550,MORGAN HUNT PUBLIC UK LTD MORGAN HUNT PUBLIC UK LTD,43620,17/01/2021,1212459,REDACTED,28/01/2021,197.34,986.7,1184.04,Benefits Management,Salary Cost Outside Payroll,60010
http://statistics.data.gov.uk/id/local-authority/12UE,Huntingdonshire District Council,200550,MORGAN HUNT PUBLIC UK LTD MORGAN HUNT PUBLIC UK LTD,43406,10/01/2021,1211336,REDACTED,21/01/2021,195.96,979.8,1175.76,Benefits Management,Salary Cost Outside Payroll,60010
http://statistics.data.gov.uk/id/local-authority/12UE,Huntingdonshire District Council,200550,MORGAN HUNT PUBLIC UK LTD MORGAN HUNT PUBLIC UK LTD,43909,24/01/2021,1213521,REDACTED,04/02/2021,195.96,979.8,1175.76,Benefits Management,Salary Cost Outside Payroll,60010
http://statistics.data.gov.uk/id/local-authority/12UE,Huntingdonshire District Council,200550,MORGAN HUNT PUBLIC UK LTD MORGAN HUNT PUBLIC UK LTD,45912,07/03/2021,1220316,REDACTED,25/03/2021,195.96,979.8,1175.76,Benefits Management,Salary Cost Outside Payroll,60010
http://statistics.data.gov.uk/id/local-authority/12UE,Huntingdonshire District Council,200550,MORGAN HUNT PUBLIC UK LTD MORGAN HUNT PUBLIC UK LTD,44483,07/02/2021,1215846,REDACTED,18/02/2021,194.08,970.42,1164.5,Benefits Management,Salary Cost Outside Payroll,60010
http://statistics.data.gov.uk/id/local-authority/12UE,Huntingdonshire District Council,200550,MORGAN HUNT PUBLIC UK LTD MORGAN HUNT PUBLIC UK LTD,44937,21/02/2021,1217912,REDACTED,04/03/2021,194.08,970.42,1164.5,Benefits Management,Salary Cost Outside Payroll,60010
http://statistics.data.gov.uk/id/local-authority/12UE,Huntingdonshire District Council,200550,MORGAN HUNT PUBLIC UK LTD MORGAN HUNT PUBLIC UK LTD,45917,07/03/2021,1220317,REDACTED,25/03/2021,188.56,942.82,1131.38,Benefits Management,Salary Cost Outside Payroll,60010
http://statistics.data.gov.uk/id/local-authority/12UE,Huntingdonshire District Council,200550,MORGAN HUNT PUBLIC UK LTD MORGAN HUNT PUBLIC UK LTD,43208,03/01/2021,1210404,REDACTED,14/01/2021,186.88,934.38,1121.26,Benefits Management,Salary Cost Outside Payroll,60010
http://statistics.data.gov.uk/id/local-authority/12UE,Huntingdonshire District Council,200550,MORGAN HUNT PUBLIC UK LTD MORGAN HUNT PUBLIC UK LTD,44486,07/02/2021,1215845,REDACTED,18/02/2021,186.3,931.5,1117.8,Benefits Management,Salary Cost Outside Payroll,60010
http://statistics.data.gov.uk/id/local-authority/12UE,Huntingdonshire District Council,200550,MORGAN HUNT PUBLIC UK LTD MORGAN HUNT PUBLIC UK LTD,44938,21/02/2021,1217911,REDACTED,04/03/2021,182.16,910.8,1092.96,Benefits Management,Salary Cost Outside Payroll,60010
http://statistics.data.gov.uk/id/local-authority/12UE,Huntingdonshire District Council,200550,MORGAN HUNT PUBLIC UK LTD MORGAN HUNT PUBLIC UK LTD,44131,31/01/2021,1214713,REDACTED,11/02/2021,173.88,869.4,1043.28,Benefits Management,Salary Cost Outside Payroll,60010
http://statistics.data.gov.uk/id/local-authority/12UE,Huntingdonshire District Council,200550,MORGAN HUNT PUBLIC UK LTD MORGAN HUNT PUBLIC UK LTD,43204,03/01/2021,1210407,REDACTED,14/01/2021,165.6,828,993.6,Benefits Management,Salary Cost Outside Payroll,60010
http://statistics.data.gov.uk/id/local-authority/12UE,Huntingdonshire District Council,200550,MORGAN HUNT PUBLIC UK LTD MORGAN HUNT PUBLIC UK LTD,45260,28/02/2021,1219171,REDACTED,11/03/2021,162.84,814.2,977.04,Benefits Management,Salary Cost Outside Payroll,60010
http://statistics.data.gov.uk/id/local-authority/12UE,Huntingdonshire District Council,200550,MORGAN HUNT PUBLIC UK LTD MORGAN HUNT PUBLIC UK LTD,42743,27/12/2020,1209739,REDACTED,07/01/2021,160.08,800.4,960.48,Benefits Management,Salary Cost Outside Payroll,60010
http://statistics.data.gov.uk/id/local-authority/12UE,Huntingdonshire District Council,200550,MORGAN HUNT PUBLIC UK LTD MORGAN HUNT PUBLIC UK LTD,45262,28/02/2021,1219172,REDACTED,11/03/2021,155.5,777.49,932.99,Benefits Management,Salary Cost Outside Payroll,60010
http://statistics.data.gov.uk/id/local-authority/12UE,Huntingdonshire District Council,200550,MORGAN HUNT PUBLIC UK LTD MORGAN HUNT PUBLIC UK LTD,42745,27/12/2020,1209740,REDACTED,07/01/2021,151.8,759,910.8,Benefits Management,Salary Cost Outside Payroll,60010
http://statistics.data.gov.uk/id/local-authority/12UE,Huntingdonshire District Council,200550,MORGAN HUNT PUBLIC UK LTD MORGAN HUNT PUBLIC UK LTD,43205,03/01/2021,1210405,REDACTED,14/01/2021,118.68,593.4,712.08,Benefits Management,Salary Cost Outside Payroll,60010
http://statistics.data.gov.uk/id/local-authority/12UE,Huntingdonshire District Council,200550,MORGAN HUNT PUBLIC UK LTD MORGAN HUNT PUBLIC UK LTD,44647,14/02/2021,1216968,REDACTED,25/02/2021,104.88,524.4,629.28,Benefits Management,Salary Cost Outside Payroll,60010
http://statistics.data.gov.uk/id/local-authority/12UE,Huntingdonshire District Council,200550,MORGAN HUNT PUBLIC UK LTD MORGAN HUNT PUBLIC UK LTD,43207,03/01/2021,1210406,REDACTED,14/01/2021,73.14,365.7,438.84,Benefits Management,Salary Cost Outside Payroll,60010
http://statistics.data.gov.uk/id/local-authority/12UE,Huntingdonshire District Council,200827,VIVID RESOURCING LIMITED VIVID RESOURCING LIMITED,44865,24/02/2021,55919,REDACTED,18/03/2021,40.76,203.8,244.56,Business & Enterprise Support,Salary Cost Outside Payroll,60010
http://statistics.data.gov.uk/id/local-authority/12UE,Huntingdonshire District Council,200827,VIVID RESOURCING LIMITED VIVID RESOURCING LIMITED,44121,03/02/2021,55096,REDACTED,25/02/2021,25.48,127.37,152.85,Business & Enterprise Support,Salary Cost Outside Payroll,60010
http://statistics.data.gov.uk/id/local-authority/12UE,Huntingdonshire District Council,200827,VIVID RESOURCING LIMITED VIVID RESOURCING LIMITED,42702,16/12/2020,53478,REDACTED,07/01/2021,19.2,96,115.2,Business & Enterprise Support,Salary Cost Outside Payroll,60010
http://statistics.data.gov.uk/id/local-authority/12UE,Huntingdonshire District Council,200827,VIVID RESOURCING LIMITED VIVID RESOURCING LIMITED,42703,22/12/2020,53700,REDACTED,14/01/2021,19.2,96,115.2,Business & Enterprise Support,Salary Cost Outside Payroll,60010
http://statistics.data.gov.uk/id/local-authority/12UE,Huntingdonshire District Council,200827,VIVID RESOURCING LIMITED VIVID RESOURCING LIMITED,43382,13/01/2021,54312,REDACTED,04/02/2021,19.2,96,115.2,Business & Enterprise Support,Salary Cost Outside Payroll,60010
http://statistics.data.gov.uk/id/local-authority/12UE,Huntingdonshire District Council,200827,VIVID RESOURCING LIMITED VIVID RESOURCING LIMITED,43543,20/01/2021,54557,REDACTED,11/02/2021,19.2,96,115.2,Business & Enterprise Support,Salary Cost Outside Payroll,60010
http://statistics.data.gov.uk/id/local-authority/12UE,Huntingdonshire District Council,200827,VIVID RESOURCING LIMITED VIVID RESOURCING LIMITED,43899,27/01/2021,54777,REDACTED,18/02/2021,20.38,101.9,122.28,Business & Enterprise Support,Salary Cost Outside Payroll,60010
http://statistics.data.gov.uk/id/local-authority/12UE,Huntingdonshire District Council,200827,VIVID RESOURCING LIMITED VIVID RESOURCING LIMITED,45272,03/03/2021,52687,REDACTED,25/03/2021,20.38,101.9,122.28,Business & Enterprise Support,Salary Cost Outside Payroll,60010
http://statistics.data.gov.uk/id/local-authority/12UE,Huntingdonshire District Council,200827,VIVID RESOURCING LIMITED VIVID RESOURCING LIMITED,45407,10/03/2021,56580,REDACTED,25/03/2021,20.38,101.9,122.28,Business & Enterprise Support,Salary Cost Outside Payroll,60010
http://statistics.data.gov.uk/id/local-authority/12UE,Huntingdonshire District Council,200827,VIVID RESOURCING LIMITED VIVID RESOURCING LIMITED,45811,10/02/2021,55428,REDACTED,25/03/2021,20.38,101.9,122.28,Business & Enterprise Support,Salary Cost Outside Payroll,60010
http://statistics.data.gov.uk/id/local-authority/12UE,Huntingdonshire District Council,200827,VIVID RESOURCING LIMITED VIVID RESOURCING LIMITED,43079,06/01/2021,53961,REDACTED,28/01/2021,14.4,72,86.4,Business & Enterprise Support,Salary Cost Outside Payroll,60010
http://statistics.data.gov.uk/id/local-authority/12UE,Huntingdonshire District Council,200827,VIVID RESOURCING LIMITED VIVID RESOURCING LIMITED,43082,06/01/2021,54106,REDACTED,28/01/2021,14.4,72,86.4,Business & Enterprise Support,Salary Cost Outside Payroll,60010
http://statistics.data.gov.uk/id/local-authority/12UE,Huntingdonshire District Council,200630,PREMIER GROUP RECRUITMENT LTD,43119,05/10/2020,R041389,REDACTED,14/01/2021,120,600,720,City Recoverable,Salary Cost Outside Payroll,60010
http://statistics.data.gov.uk/id/local-authority/12UE,Huntingdonshire District Council,202447,REDACTED,42935,04/01/2021,HDC1413,CONSULTANCY,28/01/2021,840,4200,5040,Covid-19,Salary Cost Outside Payroll,60010
http://statistics.data.gov.uk/id/local-authority/12UE,Huntingdonshire District Council,202447,REDACTED,44031,01/02/2021,HDC1425,CONSULTANCY,25/02/2021,840,4200,5040,Covid-19,Salary Cost Outside Payroll,60010
http://statistics.data.gov.uk/id/local-authority/12UE,Huntingdonshire District Council,201114,XP RECRUITMENT LTD,42504,16/12/2020,10282,WAREHOUSE W/E 12/12/20,07/01/2021,660.18,3300.9,3961.08,Covid-19,Salary Cost Outside Payroll,60010
http://statistics.data.gov.uk/id/local-authority/12UE,Huntingdonshire District Council,201114,XP RECRUITMENT LTD,42664,22/12/2020,10312,WAREHOUSE W/E 19/12/20,14/01/2021,655.25,3276.25,3931.5,Covid-19,Salary Cost Outside Payroll,60010
http://statistics.data.gov.uk/id/local-authority/12UE,Huntingdonshire District Council,202447,REDACTED,45373,25/02/2021,HDC1437,CONSULTANCY,25/03/2021,630,3150,3780,Covid-19,Salary Cost Outside Payroll,60010
http://statistics.data.gov.uk/id/local-authority/12UE,Huntingdonshire District Council,201114,XP RECRUITMENT LTD,43070,05/01/2021,10349,WAREHOUSE W/E 02/01/21,28/01/2021,481.1,2405.5,2886.6,Covid-19,Salary Cost Outside Payroll,60010
http://statistics.data.gov.uk/id/local-authority/12UE,Huntingdonshire District Council,201114,XP RECRUITMENT LTD,42767,29/12/2020,10337,WAREHOUSE W/E 26/12/20,21/01/2021,454.54,2272.7,2727.24,Covid-19,Salary Cost Outside Payroll,60010
http://statistics.data.gov.uk/id/local-authority/12UE,Huntingdonshire District Council,201114,XP RECRUITMENT LTD,43284,13/01/2021,10380,WAREHOUSE W/E 09/01/21,04/02/2021,292.53,1462.65,1755.18,Covid-19,Salary Cost Outside Payroll,60010
http://statistics.data.gov.uk/id/local-authority/12UE,Huntingdonshire District Council,201114,XP RECRUITMENT LTD,43576,20/01/2021,10409,WAREHOUSE W/E 16/01/21,11/02/2021,253.83,1269.15,1522.98,Covid-19,Salary Cost Outside Payroll,60010
http://statistics.data.gov.uk/id/local-authority/12UE,Huntingdonshire District Council,201114,XP RECRUITMENT LTD,43872,27/01/2021,10424,WAREHOUSE W/E 23/01/21,18/02/2021,253.83,1269.15,1522.98,Covid-19,Salary Cost Outside Payroll,60010
http://statistics.data.gov.uk/id/local-authority/12UE,Huntingdonshire District Council,201114,XP RECRUITMENT LTD,44226,03/02/2021,10459,WAREHOUSE W/E 30/01/21,25/02/2021,234.48,1172.4,1406.88,Covid-19,Salary Cost Outside Payroll,60010
http://statistics.data.gov.uk/id/local-authority/12UE,Huntingdonshire District Council,202447,REDACTED,45064,25/02/2021,HDC1438,CONSULTANCY,25/03/2021,210,1050,1260,Covid-19,Salary Cost Outside Payroll,60010
http://statistics.data.gov.uk/id/local-authority/12UE,Huntingdonshire District Council,201114,XP RECRUITMENT LTD,45078,24/02/2021,10533,WAREHOUSE W/E 20/02/21,18/03/2021,195.78,978.9,1174.68,Covid-19,Salary Cost Outside Payroll,60010
http://statistics.data.gov.uk/id/local-authority/12UE,Huntingdonshire District Council,201114,XP RECRUITMENT LTD,45644,13/02/2021,10507,OPS STAFF,18/03/2021,176.43,882.15,1058.58,Covid-19,Salary Cost Outside Payroll,60010
http://statistics.data.gov.uk/id/local-authority/12UE,Huntingdonshire District Council,201114,XP RECRUITMENT LTD,45108,10/02/2021,10482,WAREHOUSE W/E 06/02/21,04/03/2021,118.38,591.9,710.28,Covid-19,Salary Cost Outside Payroll,60010
http://statistics.data.gov.uk/id/local-authority/12UE,Huntingdonshire District Council,201114,XP RECRUITMENT LTD,45108,10/02/2021,10482,WAREHOUSE W/E 06/02/21,04/03/2021,38.7,193.5,232.2,Covid-19,Salary Cost Outside Payroll,60010
http://statistics.data.gov.uk/id/local-authority/12UE,Huntingdonshire District Council,202117,INTELLIGENT FINGERPRINTING LTD,44925,22/02/2021,1327,FINGERPRINT CARTRIDGES,18/03/2021,140,700,840,Covid-19,Salary Cost Outside Payroll,60010
http://statistics.data.gov.uk/id/local-authority/12UE,Huntingdonshire District Council,202117,INTELLIGENT FINGERPRINTING LTD,44925,22/02/2021,1327,FINGERPRINT CARTRIDGES,18/03/2021,3,15,18,Covid-19,Salary Cost Outside Payroll,60010
http://statistics.data.gov.uk/id/local-authority/12UE,Huntingdonshire District Council,200918,1ST CHOICE RECRUITMENT,44970,20/02/2021,4000009200,REDACTED,18/03/2021,108.57,542.84,651.41,Covid-19,Salary Cost Outside Payroll,60010
http://statistics.data.gov.uk/id/local-authority/12UE,Huntingdonshire District Council,200918,1ST CHOICE RECRUITMENT,45589,06/03/2021,4000008217,ops staff,25/03/2021,1.37,6.87,8.24,Covid-19,Salary Cost Outside Payroll,60010
http://statistics.data.gov.uk/id/local-authority/12UE,Huntingdonshire District Council,200918,1ST CHOICE RECRUITMENT,45589,06/03/2021,4000008217,ops staff,25/03/2021,63.99,319.93,383.92,Covid-19,Salary Cost Outside Payroll,60010
http://statistics.data.gov.uk/id/local-authority/12UE,Huntingdonshire District Council,200918,1ST CHOICE RECRUITMENT,44598,13/02/2021,4000009192,REDACTED,11/03/2021,106.4,531.98,638.38,Covid-19,Salary Cost Outside Payroll,60010
http://statistics.data.gov.uk/id/local-authority/12UE,Huntingdonshire District Council,200918,1ST CHOICE RECRUITMENT,45238,27/02/2021,4000009208,REDACTED,25/03/2021,106.4,531.98,638.38,Covid-19,Salary Cost Outside Payroll,60010
http://statistics.data.gov.uk/id/local-authority/12UE,Huntingdonshire District Council,200918,1ST CHOICE RECRUITMENT,45588,06/03/2021,4000009216,ops staff,25/03/2021,105.75,528.73,634.48,Covid-19,Salary Cost Outside Payroll,60010
http://statistics.data.gov.uk/id/local-authority/12UE,Huntingdonshire District Council,200918,1ST CHOICE RECRUITMENT,44597,13/02/2021,4000009191,REDACTED,11/03/2021,61.25,306.24,367.49,Covid-19,Salary Cost Outside Payroll,60010
http://statistics.data.gov.uk/id/local-authority/12UE,Huntingdonshire District Council,200918,1ST CHOICE RECRUITMENT,44969,20/02/2021,4000009199,REDACTED,18/03/2021,61.25,306.24,367.49,Covid-19,Salary Cost Outside Payroll,60010
http://statistics.data.gov.uk/id/local-authority/12UE,Huntingdonshire District Council,200918,1ST CHOICE RECRUITMENT,45239,27/02/2021,4000009207,REDACTED,25/03/2021,61.25,306.24,367.49,Covid-19,Salary Cost Outside Payroll,60010
http://statistics.data.gov.uk/id/local-authority/12UE,Huntingdonshire District Council,200918,1ST CHOICE RECRUITMENT,44363,06/02/2021,400009182,REDACTED,04/03/2021,101.62,508.08,609.7,Covid-19,Salary Cost Outside Payroll,60010
http://statistics.data.gov.uk/id/local-authority/12UE,Huntingdonshire District Council,200743,STAFFLINE GROUP STAFFLINE GROUP,45558,17/01/2021,97490,OPS STAFF,18/03/2021,91.24,456.21,547.45,Covid-19,Salary Cost Outside Payroll,60010
http://statistics.data.gov.uk/id/local-authority/12UE,Huntingdonshire District Council,200918,1ST CHOICE RECRUITMENT,44362,06/02/2021,4000009183,REDACTED,04/03/2021,86.62,433.1,519.72,Covid-19,Salary Cost Outside Payroll,60010
http://statistics.data.gov.uk/id/local-authority/12UE,Huntingdonshire District Council,200827,VIVID RESOURCING LIMITED VIVID RESOURCING LIMITED,42701,16/12/2020,53477,REDACTED,07/01/2021,325.6,1628,1953.6,Development Management,Salary Cost Outside Payroll,60010
http://statistics.data.gov.uk/id/local-authority/12UE,Huntingdonshire District Council,200827,VIVID RESOURCING LIMITED VIVID RESOURCING LIMITED,42704,22/12/2020,53699,REDACTED,14/01/2021,325.6,1628,1953.6,Development Management,Salary Cost Outside Payroll,60010
http://statistics.data.gov.uk/id/local-authority/12UE,Huntingdonshire District Council,200827,VIVID RESOURCING LIMITED VIVID RESOURCING LIMITED,43383,13/01/2021,54311,REDACTED,04/02/2021,325.6,1628,1953.6,Development Management,Salary Cost Outside Payroll,60010
http://statistics.data.gov.uk/id/local-authority/12UE,Huntingdonshire District Council,200827,VIVID RESOURCING LIMITED VIVID RESOURCING LIMITED,43640,20/01/2021,54556,REDACTED,11/02/2021,325.6,1628,1953.6,Development Management,Salary Cost Outside Payroll,60010
http://statistics.data.gov.uk/id/local-authority/12UE,Huntingdonshire District Council,200827,VIVID RESOURCING LIMITED VIVID RESOURCING LIMITED,43898,27/01/2021,54776,REDACTED,18/02/2021,325.6,1628,1953.6,Development Management,Salary Cost Outside Payroll,60010
http://statistics.data.gov.uk/id/local-authority/12UE,Huntingdonshire District Council,200827,VIVID RESOURCING LIMITED VIVID RESOURCING LIMITED,44624,17/02/2021,55666,REDACTED,11/03/2021,325.6,1628,1953.6,Development Management,Salary Cost Outside Payroll,60010
http://statistics.data.gov.uk/id/local-authority/12UE,Huntingdonshire District Council,200827,VIVID RESOURCING LIMITED VIVID RESOURCING LIMITED,44866,24/02/2021,55920,REDACTED,18/03/2021,325.6,1628,1953.6,Development Management,Salary Cost Outside Payroll,60010
http://statistics.data.gov.uk/id/local-authority/12UE,Huntingdonshire District Council,200827,VIVID RESOURCING LIMITED VIVID RESOURCING LIMITED,45406,10/03/2021,56581,REDACTED,25/03/2021,325.6,1628,1953.6,Development Management,Salary Cost Outside Payroll,60010
http://statistics.data.gov.uk/id/local-authority/12UE,Huntingdonshire District Council,200827,VIVID RESOURCING LIMITED VIVID RESOURCING LIMITED,45812,10/02/2021,55429,REDACTED,25/03/2021,325.6,1628,1953.6,Development Management,Salary Cost Outside Payroll,60010
http://statistics.data.gov.uk/id/local-authority/12UE,Huntingdonshire District Council,200827,VIVID RESOURCING LIMITED VIVID RESOURCING LIMITED,43080,06/01/2021,53960,REDACTED,28/01/2021,264,1320,1584,Development Management,Salary Cost Outside Payroll,60010
http://statistics.data.gov.uk/id/local-authority/12UE,Huntingdonshire District Council,200827,VIVID RESOURCING LIMITED VIVID RESOURCING LIMITED,43081,06/01/2021,54105,REDACTED,28/01/2021,211.2,1056,1267.2,Development Management,Salary Cost Outside Payroll,60010
http://statistics.data.gov.uk/id/local-authority/12UE,Huntingdonshire District Council,200827,VIVID RESOURCING LIMITED VIVID RESOURCING LIMITED,44120,03/02/2021,55097,REDACTED,25/02/2021,193.6,968,1161.6,Development Management,Salary Cost Outside Payroll,60010
http://statistics.data.gov.uk/id/local-authority/12UE,Huntingdonshire District Council,200827,VIVID RESOURCING LIMITED VIVID RESOURCING LIMITED,45271,03/03/2021,56288,REDACTED,25/03/2021,193.6,968,1161.6,Development Management,Salary Cost Outside Payroll,60010
http://statistics.data.gov.uk/id/local-authority/12UE,Huntingdonshire District Council,200420,INTERACTION RECRUITMENT PLC INTERACTION RECRUITMENT PLC,43662,10/01/2021,INV2081334,REDACTED,04/02/2021,116.73,583.66,700.39,Document Centre,Salary Cost Outside Payroll,60010
http://statistics.data.gov.uk/id/local-authority/12UE,Huntingdonshire District Council,200420,INTERACTION RECRUITMENT PLC INTERACTION RECRUITMENT PLC,43522,17/01/2021,INV2082544,REDACTED,11/02/2021,115.22,576.08,691.3,Document Centre,Salary Cost Outside Payroll,60010
http://statistics.data.gov.uk/id/local-authority/12UE,Huntingdonshire District Council,200420,INTERACTION RECRUITMENT PLC INTERACTION RECRUITMENT PLC,42374,13/12/2020,INV2076814,REDACTED,07/01/2021,112.18,560.92,673.1,Document Centre,Salary Cost Outside Payroll,60010
http://statistics.data.gov.uk/id/local-authority/12UE,Huntingdonshire District Council,200420,INTERACTION RECRUITMENT PLC INTERACTION RECRUITMENT PLC,43886,24/01/2021,INV2083786,REDACTED,18/02/2021,112.18,560.92,673.1,Document Centre,Salary Cost Outside Payroll,60010
http://statistics.data.gov.uk/id/local-authority/12UE,Huntingdonshire District Council,200420,INTERACTION RECRUITMENT PLC INTERACTION RECRUITMENT PLC,44940,21/02/2021,INV2088685,REDACTED,18/03/2021,112.18,560.92,673.1,Document Centre,Salary Cost Outside Payroll,60010
http://statistics.data.gov.uk/id/local-authority/12UE,Huntingdonshire District Council,200420,INTERACTION RECRUITMENT PLC INTERACTION RECRUITMENT PLC,45175,28/02/2021,INV2089982,REDACTED,25/03/2021,112.18,560.92,673.1,Document Centre,Salary Cost Outside Payroll,60010
http://statistics.data.gov.uk/id/local-authority/12UE,Huntingdonshire District Council,200420,INTERACTION RECRUITMENT PLC INTERACTION RECRUITMENT PLC,45482,07/03/2021,INV2091305,REDACTED,25/03/2021,112.18,560.92,673.1,Document Centre,Salary Cost Outside Payroll,60010
http://statistics.data.gov.uk/id/local-authority/12UE,Huntingdonshire District Council,200420,INTERACTION RECRUITMENT PLC INTERACTION RECRUITMENT PLC,45774,31/01/2021,INV2085014,REDACTED,25/03/2021,112.18,560.92,673.1,Document Centre,Salary Cost Outside Payroll,60010
http://statistics.data.gov.uk/id/local-authority/12UE,Huntingdonshire District Council,200420,INTERACTION RECRUITMENT PLC INTERACTION RECRUITMENT PLC,45775,07/02/2021,INV2086251,REDACTED,25/03/2021,112.18,560.92,673.1,Document Centre,Salary Cost Outside Payroll,60010
http://statistics.data.gov.uk/id/local-authority/12UE,Huntingdonshire District Council,200420,INTERACTION RECRUITMENT PLC INTERACTION RECRUITMENT PLC,45776,14/02/2021,INV2087479,REDACTED,25/03/2021,110.67,553.34,664.01,Document Centre,Salary Cost Outside Payroll,60010
http://statistics.data.gov.uk/id/local-authority/12UE,Huntingdonshire District Council,200420,INTERACTION RECRUITMENT PLC INTERACTION RECRUITMENT PLC,43037,03/01/2021,INV2080409,REDACTED,28/01/2021,63.67,318.36,382.03,Document Centre,Salary Cost Outside Payroll,60010
http://statistics.data.gov.uk/id/local-authority/12UE,Huntingdonshire District Council,200420,INTERACTION RECRUITMENT PLC INTERACTION RECRUITMENT PLC,42627,20/12/2020,INV2078269,REDACTED,14/01/2021,62.16,310.78,372.94,Document Centre,Salary Cost Outside Payroll,60010
http://statistics.data.gov.uk/id/local-authority/12UE,Huntingdonshire District Council,200743,STAFFLINE GROUP STAFFLINE GROUP,45469,03/02/2021,98259,REFUSE W/C 24/01/21,11/03/2021,359.52,1797.6,2157.12,Domestic Waste Collection,Salary Cost Outside Payroll,60010
http://statistics.data.gov.uk/id/local-authority/12UE,Huntingdonshire District Council,200743,STAFFLINE GROUP STAFFLINE GROUP,45471,10/02/2021,99026,REFUSE W/C 31/01/21,11/03/2021,359.52,1797.6,2157.12,Domestic Waste Collection,Salary Cost Outside Payroll,60010
http://statistics.data.gov.uk/id/local-authority/12UE,Huntingdonshire District Council,200743,STAFFLINE GROUP STAFFLINE GROUP,45465,06/01/2021,95143,REFUSE W/C 27/12/20,11/03/2021,340.01,1700.05,2040.06,Domestic Waste Collection,Salary Cost Outside Payroll,60010
http://statistics.data.gov.uk/id/local-authority/12UE,Huntingdonshire District Council,200743,STAFFLINE GROUP STAFFLINE GROUP,42668,23/12/2020,93710,REFUSE W/C 13/12/20,14/01/2021,303.36,1516.8,1820.16,Domestic Waste Collection,Salary Cost Outside Payroll,60010
http://statistics.data.gov.uk/id/local-authority/12UE,Huntingdonshire District Council,200743,STAFFLINE GROUP STAFFLINE GROUP,45463,13/01/2021,95933,REFUSE W/C 03/01/21,11/03/2021,298.39,1491.96,1790.35,Domestic Waste Collection,Salary Cost Outside Payroll,60010
http://statistics.data.gov.uk/id/local-authority/12UE,Huntingdonshire District Council,200743,STAFFLINE GROUP STAFFLINE GROUP,45466,20/01/2021,96724,REFUSE W/C 10/01/21,11/03/2021,245.05,1225.25,1470.3,Domestic Waste Collection,Salary Cost Outside Payroll,60010
http://statistics.data.gov.uk/id/local-authority/12UE,Huntingdonshire District Council,200743,STAFFLINE GROUP STAFFLINE GROUP,45382,27/01/2021,97489,REFUSE W/C 17/01/21,11/03/2021,209.29,1046.46,1255.75,Domestic Waste Collection,Salary Cost Outside Payroll,60010
http://statistics.data.gov.uk/id/local-authority/12UE,Huntingdonshire District Council,200743,STAFFLINE GROUP STAFFLINE GROUP,42563,16/12/2020,92891,REFUSE W/C 06/12/20,07/01/2021,208.53,1042.64,1251.17,Domestic Waste Collection,Salary Cost Outside Payroll,60010
http://statistics.data.gov.uk/id/local-authority/12UE,Huntingdonshire District Council,200743,STAFFLINE GROUP STAFFLINE GROUP,45383,09/12/2020,92064,REFUSE W/C 29/11/20,11/03/2021,208.53,1042.64,1251.17,Domestic Waste Collection,Salary Cost Outside Payroll,60010
http://statistics.data.gov.uk/id/local-authority/12UE,Huntingdonshire District Council,200743,STAFFLINE GROUP STAFFLINE GROUP,43465,16/09/2020,82453,REFUSE W/C 06/09/20,21/01/2021,129.68,648.42,778.1,Domestic Waste Collection,Salary Cost Outside Payroll,60010
http://statistics.data.gov.uk/id/local-authority/12UE,Huntingdonshire District Council,200743,STAFFLINE GROUP STAFFLINE GROUP,43042,30/12/2020,94485,REFUSE W/C 20/12/20,21/01/2021,96.3,481.5,577.8,Domestic Waste Collection,Salary Cost Outside Payroll,60010
http://statistics.data.gov.uk/id/local-authority/12UE,Huntingdonshire District Council,202507,SELLICK PARTNERSHIP LTD,44625,08/02/2021,INV343687,REDACTED,18/02/2021,385,1925,2310,Finance,Salary Cost Outside Payroll,60010
http://statistics.data.gov.uk/id/local-authority/12UE,Huntingdonshire District Council,202507,SELLICK PARTNERSHIP LTD,44626,01/02/2021,INV342748,REDACTED,18/02/2021,385,1925,2310,Finance,Salary Cost Outside Payroll,60010
http://statistics.data.gov.uk/id/local-authority/12UE,Huntingdonshire District Council,202507,SELLICK PARTNERSHIP LTD,44627,25/01/2021,INV341856,REDACTED,18/02/2021,385,1925,2310,Finance,Salary Cost Outside Payroll,60010
http://statistics.data.gov.uk/id/local-authority/12UE,Huntingdonshire District Council,202507,SELLICK PARTNERSHIP LTD,44628,19/01/2021,INV341595,REDACTED,18/02/2021,385,1925,2310,Finance,Salary Cost Outside Payroll,60010
http://statistics.data.gov.uk/id/local-authority/12UE,Huntingdonshire District Council,202507,SELLICK PARTNERSHIP LTD,44629,12/01/2021,INV340693,REDACTED,18/02/2021,385,1925,2310,Finance,Salary Cost Outside Payroll,60010
http://statistics.data.gov.uk/id/local-authority/12UE,Huntingdonshire District Council,202507,SELLICK PARTNERSHIP LTD,44817,15/02/2021,INV344620,REDACTED,25/02/2021,385,1925,2310,Finance,Salary Cost Outside Payroll,60010
http://statistics.data.gov.uk/id/local-authority/12UE,Huntingdonshire District Council,202507,SELLICK PARTNERSHIP LTD,44818,22/02/2021,INV345536,REDACTED,25/02/2021,385,1925,2310,Finance,Salary Cost Outside Payroll,60010
http://statistics.data.gov.uk/id/local-authority/12UE,Huntingdonshire District Council,202507,SELLICK PARTNERSHIP LTD,45046,01/03/2021,INV346507,REDACTED,04/03/2021,385,1925,2310,Finance,Salary Cost Outside Payroll,60010
http://statistics.data.gov.uk/id/local-authority/12UE,Huntingdonshire District Council,202507,SELLICK PARTNERSHIP LTD,45340,08/03/2021,INV347493,REDACTED,11/03/2021,385,1925,2310,Finance,Salary Cost Outside Payroll,60010
http://statistics.data.gov.uk/id/local-authority/12UE,Huntingdonshire District Council,200537,MEYER SCOTT RECRUITMENT LIMITED MEYER SCOTT RECRUITMENT LIMITED,44260,01/02/2021,41187,REDACTED,25/02/2021,109.78,548.89,658.67,Finance,Salary Cost Outside Payroll,60010
http://statistics.data.gov.uk/id/local-authority/12UE,Huntingdonshire District Council,200537,MEYER SCOTT RECRUITMENT LIMITED MEYER SCOTT RECRUITMENT LIMITED,44611,15/02/2021,41231,REDACTED,05/03/2021,108.34,541.71,650.05,Finance,Salary Cost Outside Payroll,60010
http://statistics.data.gov.uk/id/local-authority/12UE,Huntingdonshire District Council,200537,MEYER SCOTT RECRUITMENT LIMITED MEYER SCOTT RECRUITMENT LIMITED,44856,22/02/2021,41250,REDACTED,05/03/2021,106.19,530.95,637.14,Finance,Salary Cost Outside Payroll,60010
http://statistics.data.gov.uk/id/local-authority/12UE,Huntingdonshire District Council,200537,MEYER SCOTT RECRUITMENT LIMITED MEYER SCOTT RECRUITMENT LIMITED,44344,08/02/2021,41210,REDACTED,04/03/2021,104.76,523.78,628.54,Finance,Salary Cost Outside Payroll,60010
http://statistics.data.gov.uk/id/local-authority/12UE,Huntingdonshire District Council,200537,MEYER SCOTT RECRUITMENT LIMITED MEYER SCOTT RECRUITMENT LIMITED,45374,25/01/2021,41165,REDACTED,11/03/2021,102.6,513.01,615.61,Finance,Salary Cost Outside Payroll,60010
http://statistics.data.gov.uk/id/local-authority/12UE,Huntingdonshire District Council,200537,MEYER SCOTT RECRUITMENT LIMITED MEYER SCOTT RECRUITMENT LIMITED,45144,01/03/2021,41273,REDACTED,05/03/2021,86.1,430.5,516.6,Finance,Salary Cost Outside Payroll,60010
http://statistics.data.gov.uk/id/local-authority/12UE,Huntingdonshire District Council,200537,MEYER SCOTT RECRUITMENT LIMITED MEYER SCOTT RECRUITMENT LIMITED,45485,08/03/2021,41294,REDACTED,18/03/2021,77.49,387.45,464.94,Finance,Salary Cost Outside Payroll,60010
http://statistics.data.gov.uk/id/local-authority/12UE,Huntingdonshire District Council,200743,STAFFLINE GROUP STAFFLINE GROUP,42670,23/12/2020,93708,GARDEN WASTE W/C 13/12/20,14/01/2021,356.17,1780.86,2137.03,Green Waste Collection,Salary Cost Outside Payroll,60010
http://statistics.data.gov.uk/id/local-authority/12UE,Huntingdonshire District Council,200743,STAFFLINE GROUP STAFFLINE GROUP,42679,16/12/2020,92889,GARDEN WASTE W/C 06/12/20,07/01/2021,337.77,1688.85,2026.62,Green Waste Collection,Salary Cost Outside Payroll,60010
http://statistics.data.gov.uk/id/local-authority/12UE,Huntingdonshire District Council,200743,STAFFLINE GROUP STAFFLINE GROUP,45464,13/01/2021,95931,GARDEN WASTE W/C 03/01/21,11/03/2021,286.33,1431.66,1717.99,Green Waste Collection,Salary Cost Outside Payroll,60010
http://statistics.data.gov.uk/id/local-authority/12UE,Huntingdonshire District Council,200743,STAFFLINE GROUP STAFFLINE GROUP,43041,30/12/2020,94483,GARDEN WASTE W/C 20/12/20,21/01/2021,269.64,1348.2,1617.84,Green Waste Collection,Salary Cost Outside Payroll,60010
http://statistics.data.gov.uk/id/local-authority/12UE,Huntingdonshire District Council,200743,STAFFLINE GROUP STAFFLINE GROUP,44063,20/01/2021,96722,GARDEN WASTE W/C 10/01/21,11/02/2021,227.54,1137.71,1365.25,Green Waste Collection,Salary Cost Outside Payroll,60010
http://statistics.data.gov.uk/id/local-authority/12UE,Huntingdonshire District Council,200743,STAFFLINE GROUP STAFFLINE GROUP,43244,06/01/2021,95141,GARDEN WASTE W/C 27/12/20,28/01/2021,211.86,1059.3,1271.16,Green Waste Collection,Salary Cost Outside Payroll,60010
http://statistics.data.gov.uk/id/local-authority/12UE,Huntingdonshire District Council,200743,STAFFLINE GROUP STAFFLINE GROUP,45470,10/02/2021,99024,GARDEN WASTE W/C 31/01/21,11/03/2021,152.8,763.98,916.78,Green Waste Collection,Salary Cost Outside Payroll,60010
http://statistics.data.gov.uk/id/local-authority/12UE,Huntingdonshire District Council,200159,CAMBRIDGESHIRE COUNTY COUNCIL CAMBRIDGESHIRE COUNTY COUNCIL,44753,29/01/2021,4.23002E+11,IT STRATEGIC LEAD SALARY,25/02/2021,7777.94,38889.72,46667.66,IMD Shared Service,Salary Cost Outside Payroll,60010
http://statistics.data.gov.uk/id/local-authority/12UE,Huntingdonshire District Council,202500,SENITOR ASSOCIATES LTD,45401,03/02/2021,39924,REDACTED,11/03/2021,900,4500,5400,IMD Shared Service,Salary Cost Outside Payroll,60010
http://statistics.data.gov.uk/id/local-authority/12UE,Huntingdonshire District Council,202445,SANNATHI LTD,43215,27/11/2020,SAN-3CSS-00003,CONSULTANCY,14/01/2021,420,2100,2520,IMD Shared Service,Salary Cost Outside Payroll,60010
http://statistics.data.gov.uk/id/local-authority/12UE,Huntingdonshire District Council,202445,SANNATHI LTD,44083,29/01/2021,SAN-3CSS-00010,AGENCY STAFF,25/02/2021,420,2100,2520,IMD Shared Service,Salary Cost Outside Payroll,60010
http://statistics.data.gov.uk/id/local-authority/12UE,Huntingdonshire District Council,202445,SANNATHI LTD,44085,15/01/2021,SAN-3CSS-00008,AGENCY STAFF,11/02/2021,393.75,1968.75,2362.5,IMD Shared Service,Salary Cost Outside Payroll,60010
http://statistics.data.gov.uk/id/local-authority/12UE,Huntingdonshire District Council,202445,SANNATHI LTD,43216,04/12/2020,SAN-3CSS-00004,CONSULTANCY,14/01/2021,350,1750,2100,IMD Shared Service,Salary Cost Outside Payroll,60010
http://statistics.data.gov.uk/id/local-authority/12UE,Huntingdonshire District Council,202445,SANNATHI LTD,43217,11/12/2020,SAN-3CSS-00005,CONSULTANCY,14/01/2021,350,1750,2100,IMD Shared Service,Salary Cost Outside Payroll,60010
http://statistics.data.gov.uk/id/local-authority/12UE,Huntingdonshire District Council,202445,SANNATHI LTD,43218,18/12/2020,SAN-3CSS-00006,CONSULTANCY,14/01/2021,350,1750,2100,IMD Shared Service,Salary Cost Outside Payroll,60010
http://statistics.data.gov.uk/id/local-authority/12UE,Huntingdonshire District Council,202445,SANNATHI LTD,44084,22/01/2021,SAN-3CSS-00009,AGENCY STAFF,18/02/2021,350,1750,2100,IMD Shared Service,Salary Cost Outside Payroll,60010
http://statistics.data.gov.uk/id/local-authority/12UE,Huntingdonshire District Council,202445,SANNATHI LTD,44086,08/01/2021,SAN-3CSS-00007,AGENCY STAFF,04/02/2021,350,1750,2100,IMD Shared Service,Salary Cost Outside Payroll,60010
http://statistics.data.gov.uk/id/local-authority/12UE,Huntingdonshire District Council,202445,SANNATHI LTD,45313,22/02/2021,SAN-3CSS-00011,CONSULTANCY,18/03/2021,350,1750,2100,IMD Shared Service,Salary Cost Outside Payroll,60010
http://statistics.data.gov.uk/id/local-authority/12UE,Huntingdonshire District Council,202445,SANNATHI LTD,45314,22/02/2021,SAN-3CSS-00012,CONSULTANCY,18/03/2021,350,1750,2100,IMD Shared Service,Salary Cost Outside Payroll,60010
http://statistics.data.gov.uk/id/local-authority/12UE,Huntingdonshire District Council,202445,SANNATHI LTD,45315,22/02/2021,SAN-3CSS-00013,CONSULTANCY,18/03/2021,297.5,1487.5,1785,IMD Shared Service,Salary Cost Outside Payroll,60010
http://statistics.data.gov.uk/id/local-authority/12UE,Huntingdonshire District Council,202445,SANNATHI LTD,45316,22/02/2021,SAN-3CSS-00014,CONSULTANCY,18/03/2021,262.5,1312.5,1575,IMD Shared Service,Salary Cost Outside Payroll,60010
http://statistics.data.gov.uk/id/local-authority/12UE,Huntingdonshire District Council,202445,SANNATHI LTD,43213,13/11/2020,SAN-3CSS-00001,CONSULTANCY,14/01/2021,210,1050,1260,IMD Shared Service,Salary Cost Outside Payroll,60010
http://statistics.data.gov.uk/id/local-authority/12UE,Huntingdonshire District Council,202445,SANNATHI LTD,43214,20/11/2020,SAN-3CSS-00002,CONSULTANCY,14/01/2021,210,1050,1260,IMD Shared Service,Salary Cost Outside Payroll,60010
http://statistics.data.gov.uk/id/local-authority/12UE,Huntingdonshire District Council,200630,PREMIER GROUP RECRUITMENT LTD,43173,23/11/2020,R042369,REDACTED,14/01/2021,200,1000,1200,IMD Shared Service,Salary Cost Outside Payroll,60010
http://statistics.data.gov.uk/id/local-authority/12UE,Huntingdonshire District Council,200537,MEYER SCOTT RECRUITMENT LIMITED MEYER SCOTT RECRUITMENT LIMITED,45090,22/02/2021,41251,REDACTED,05/03/2021,116.18,580.92,697.1,IMD Shared Service,Salary Cost Outside Payroll,60010
http://statistics.data.gov.uk/id/local-authority/12UE,Huntingdonshire District Council,200537,MEYER SCOTT RECRUITMENT LIMITED MEYER SCOTT RECRUITMENT LIMITED,45966,22/03/2021,41340,REDACTED,25/03/2021,115.36,576.8,692.16,IMD Shared Service,Salary Cost Outside Payroll,60010
http://statistics.data.gov.uk/id/local-authority/12UE,Huntingdonshire District Council,200537,MEYER SCOTT RECRUITMENT LIMITED MEYER SCOTT RECRUITMENT LIMITED,45652,15/03/2021,41317,3cict staff,18/03/2021,110.42,552.08,662.5,IMD Shared Service,Salary Cost Outside Payroll,60010
http://statistics.data.gov.uk/id/local-authority/12UE,Huntingdonshire District Council,200537,MEYER SCOTT RECRUITMENT LIMITED MEYER SCOTT RECRUITMENT LIMITED,45402,08/03/2021,41295,REDACTED,11/03/2021,92.29,461.44,553.73,IMD Shared Service,Salary Cost Outside Payroll,60010
http://statistics.data.gov.uk/id/local-authority/12UE,Huntingdonshire District Council,202470,PERMANENT FUTURES LTD,43637,16/01/2021,239294,REDACTED,11/02/2021,3002,15010,18012,Market Towns,Salary Cost Outside Payroll,60010
http://statistics.data.gov.uk/id/local-authority/12UE,Huntingdonshire District Council,202470,PERMANENT FUTURES LTD,44766,13/02/2021,239835,REDACTED,11/03/2021,2528,12640,15168,Market Towns,Salary Cost Outside Payroll,60010
http://statistics.data.gov.uk/id/local-authority/12UE,Huntingdonshire District Council,202470,PERMANENT FUTURES LTD,42705,28/11/2020,238577,REDACTED,21/01/2021,1896,9480,11376,Market Towns,Salary Cost Outside Payroll,60010
http://statistics.data.gov.uk/id/local-authority/12UE,Huntingdonshire District Council,202470,PERMANENT FUTURES LTD,42959,12/12/2020,238818,CONSULTANCY,21/01/2021,1422,7110,8532,Market Towns,Salary Cost Outside Payroll,60010
http://statistics.data.gov.uk/id/local-authority/12UE,Huntingdonshire District Council,200827,VIVID RESOURCING LIMITED VIVID RESOURCING LIMITED,44865,24/02/2021,55919,REDACTED,18/03/2021,1239.24,6196.2,7435.44,Market Towns,Salary Cost Outside Payroll,60010
http://statistics.data.gov.uk/id/local-authority/12UE,Huntingdonshire District Council,200827,VIVID RESOURCING LIMITED VIVID RESOURCING LIMITED,44121,03/02/2021,55096,REDACTED,25/02/2021,774.53,3872.62,4647.15,Market Towns,Salary Cost Outside Payroll,60010
http://statistics.data.gov.uk/id/local-authority/12UE,Huntingdonshire District Council,200827,VIVID RESOURCING LIMITED VIVID RESOURCING LIMITED,42702,16/12/2020,53478,REDACTED,07/01/2021,620.8,3104,3724.8,Market Towns,Salary Cost Outside Payroll,60010
http://statistics.data.gov.uk/id/local-authority/12UE,Huntingdonshire District Council,200827,VIVID RESOURCING LIMITED VIVID RESOURCING LIMITED,42703,22/12/2020,53700,REDACTED,14/01/2021,620.8,3104,3724.8,Market Towns,Salary Cost Outside Payroll,60010
http://statistics.data.gov.uk/id/local-authority/12UE,Huntingdonshire District Council,200827,VIVID RESOURCING LIMITED VIVID RESOURCING LIMITED,43382,13/01/2021,54312,REDACTED,04/02/2021,620.8,3104,3724.8,Market Towns,Salary Cost Outside Payroll,60010
http://statistics.data.gov.uk/id/local-authority/12UE,Huntingdonshire District Council,200827,VIVID RESOURCING LIMITED VIVID RESOURCING LIMITED,43543,20/01/2021,54557,REDACTED,11/02/2021,620.8,3104,3724.8,Market Towns,Salary Cost Outside Payroll,60010
http://statistics.data.gov.uk/id/local-authority/12UE,Huntingdonshire District Council,200827,VIVID RESOURCING LIMITED VIVID RESOURCING LIMITED,43899,27/01/2021,54777,REDACTED,18/02/2021,619.62,3098.1,3717.72,Market Towns,Salary Cost Outside Payroll,60010
http://statistics.data.gov.uk/id/local-authority/12UE,Huntingdonshire District Council,200827,VIVID RESOURCING LIMITED VIVID RESOURCING LIMITED,45272,03/03/2021,52687,REDACTED,25/03/2021,619.62,3098.1,3717.72,Market Towns,Salary Cost Outside Payroll,60010
http://statistics.data.gov.uk/id/local-authority/12UE,Huntingdonshire District Council,200827,VIVID RESOURCING LIMITED VIVID RESOURCING LIMITED,45407,10/03/2021,56580,REDACTED,25/03/2021,619.62,3098.1,3717.72,Market Towns,Salary Cost Outside Payroll,60010
http://statistics.data.gov.uk/id/local-authority/12UE,Huntingdonshire District Council,200827,VIVID RESOURCING LIMITED VIVID RESOURCING LIMITED,45811,10/02/2021,55428,REDACTED,25/03/2021,619.62,3098.1,3717.72,Market Towns,Salary Cost Outside Payroll,60010
http://statistics.data.gov.uk/id/local-authority/12UE,Huntingdonshire District Council,200827,VIVID RESOURCING LIMITED VIVID RESOURCING LIMITED,43079,06/01/2021,53961,REDACTED,28/01/2021,465.6,2328,2793.6,Market Towns,Salary Cost Outside Payroll,60010
http://statistics.data.gov.uk/id/local-authority/12UE,Huntingdonshire District Council,200827,VIVID RESOURCING LIMITED VIVID RESOURCING LIMITED,43082,06/01/2021,54106,REDACTED,28/01/2021,465.6,2328,2793.6,Market Towns,Salary Cost Outside Payroll,60010
http://statistics.data.gov.uk/id/local-authority/12UE,Huntingdonshire District Council,200918,1ST CHOICE RECRUITMENT,44374,23/01/2021,4000009166,REDACTED,18/02/2021,103.01,515.04,618.05,Operations Business Support,Salary Cost Outside Payroll,60010
http://statistics.data.gov.uk/id/local-authority/12UE,Huntingdonshire District Council,200918,1ST CHOICE RECRUITMENT,44375,30/01/2021,4000009173,REDACTED,25/02/2021,98.83,494.16,592.99,Operations Business Support,Salary Cost Outside Payroll,60010
http://statistics.data.gov.uk/id/local-authority/12UE,Huntingdonshire District Council,200918,1ST CHOICE RECRUITMENT,43761,16/01/2021,4000009157,REDACTED,11/02/2021,84.91,424.56,509.47,Operations Business Support,Salary Cost Outside Payroll,60010
http://statistics.data.gov.uk/id/local-authority/12UE,Huntingdonshire District Council,200918,1ST CHOICE RECRUITMENT,43363,09/01/2021,4000009149,REDACTED,04/02/2021,83.52,417.6,501.12,Operations Business Support,Salary Cost Outside Payroll,60010
http://statistics.data.gov.uk/id/local-authority/12UE,Huntingdonshire District Council,200918,1ST CHOICE RECRUITMENT,42582,19/12/2020,4000009131,REDACTED,14/01/2021,78.65,393.24,471.89,Operations Business Support,Salary Cost Outside Payroll,60010
http://statistics.data.gov.uk/id/local-authority/12UE,Huntingdonshire District Council,200918,1ST CHOICE RECRUITMENT,42450,12/12/2020,4000009122,REDACTED,07/01/2021,70.99,354.96,425.95,Operations Business Support,Salary Cost Outside Payroll,60010
http://statistics.data.gov.uk/id/local-authority/12UE,Huntingdonshire District Council,200879,AMULET (CHURCHILL SECURITY SERVICES) LTD,43917,30/11/2020,79689,PFH NOV 20,04/02/2021,1440.13,7200.67,8640.8,Pathfinder House,Salary Cost Outside Payroll,60010
http://statistics.data.gov.uk/id/local-authority/12UE,Huntingdonshire District Council,200879,AMULET (CHURCHILL SECURITY SERVICES) LTD,43164,31/12/2020,80043,PFH,28/01/2021,1384.42,6922.08,8306.5,Pathfinder House,Salary Cost Outside Payroll,60010
http://statistics.data.gov.uk/id/local-authority/12UE,Huntingdonshire District Council,200879,AMULET (CHURCHILL SECURITY SERVICES) LTD,40974,31/08/2020,78705,PFH,28/01/2021,1356.33,6781.65,8137.98,Pathfinder House,Salary Cost Outside Payroll,60010
http://statistics.data.gov.uk/id/local-authority/12UE,Huntingdonshire District Council,200879,AMULET (CHURCHILL SECURITY SERVICES) LTD,45282,28/02/2021,80839,PFH,25/03/2021,1343.78,6718.88,8062.66,Pathfinder House,Salary Cost Outside Payroll,60010
http://statistics.data.gov.uk/id/local-authority/12UE,Huntingdonshire District Council,200879,AMULET (CHURCHILL SECURITY SERVICES) LTD,44191,31/01/2021,80468,PFH,25/02/2021,1324.11,6620.55,7944.66,Pathfinder House,Salary Cost Outside Payroll,60010
http://statistics.data.gov.uk/id/local-authority/12UE,Huntingdonshire District Council,200785,THE OYSTER PARTNERSHIP THE OYSTER PARTNERSHIP,45703,08/03/2021,1091094,REDACTED,25/03/2021,1200,6000,7200,Property Development And Mgt,Salary Cost Outside Payroll,60010
http://statistics.data.gov.uk/id/local-authority/12UE,Huntingdonshire District Council,200785,THE OYSTER PARTNERSHIP THE OYSTER PARTNERSHIP,43162,29/12/2020,1087204,REDACTED,21/01/2021,807.5,4037.5,4845,Property Development And Mgt,Salary Cost Outside Payroll,60010
http://statistics.data.gov.uk/id/local-authority/12UE,Huntingdonshire District Council,200365,HAYS HAYS,42362,15/12/2020,1010989892,REDACTED,07/01/2021,550.6,2753,3303.6,Property Development And Mgt,Salary Cost Outside Payroll,60010
http://statistics.data.gov.uk/id/local-authority/12UE,Huntingdonshire District Council,200365,HAYS HAYS,42686,22/12/2020,1011005272,REDACTED,14/01/2021,550.6,2753,3303.6,Property Development And Mgt,Salary Cost Outside Payroll,60010
http://statistics.data.gov.uk/id/local-authority/12UE,Huntingdonshire District Council,200365,HAYS HAYS,42822,31/12/2020,1011025598,REDACTED,28/01/2021,550.6,2753,3303.6,Property Development And Mgt,Salary Cost Outside Payroll,60010
http://statistics.data.gov.uk/id/local-authority/12UE,Huntingdonshire District Council,200365,HAYS HAYS,43525,19/01/2021,1011061364,REDACTED,11/02/2021,550.6,2753,3303.6,Property Development And Mgt,Salary Cost Outside Payroll,60010
http://statistics.data.gov.uk/id/local-authority/12UE,Huntingdonshire District Council,200365,HAYS HAYS,44027,27/01/2021,1011074793,REDACTED,18/02/2021,550.6,2753,3303.6,Property Development And Mgt,Salary Cost Outside Payroll,60010
http://statistics.data.gov.uk/id/local-authority/12UE,Huntingdonshire District Council,200365,HAYS HAYS,44138,03/02/2021,1011089686,REDACTED,25/02/2021,550.6,2753,3303.6,Property Development And Mgt,Salary Cost Outside Payroll,60010
http://statistics.data.gov.uk/id/local-authority/12UE,Huntingdonshire District Council,200365,HAYS HAYS,44377,08/02/2021,1011103567,REDACTED,04/03/2021,550.6,2753,3303.6,Property Development And Mgt,Salary Cost Outside Payroll,60010
http://statistics.data.gov.uk/id/local-authority/12UE,Huntingdonshire District Council,200365,HAYS HAYS,44651,18/02/2021,1011118483,REDACTED,18/03/2021,550.6,2753,3303.6,Property Development And Mgt,Salary Cost Outside Payroll,60010
http://statistics.data.gov.uk/id/local-authority/12UE,Huntingdonshire District Council,200365,HAYS HAYS,44833,22/02/2021,1011132486,REDACTED,18/03/2021,550.6,2753,3303.6,Property Development And Mgt,Salary Cost Outside Payroll,60010
http://statistics.data.gov.uk/id/local-authority/12UE,Huntingdonshire District Council,200785,THE OYSTER PARTNERSHIP THE OYSTER PARTNERSHIP,42687,16/12/2020,1086784,REDACTED,07/01/2021,475,2375,2850,Property Development And Mgt,Salary Cost Outside Payroll,60010
http://statistics.data.gov.uk/id/local-authority/12UE,Huntingdonshire District Council,200785,THE OYSTER PARTNERSHIP THE OYSTER PARTNERSHIP,43425,13/01/2021,1087966,REDACTED,04/02/2021,475,2375,2850,Property Development And Mgt,Salary Cost Outside Payroll,60010
http://statistics.data.gov.uk/id/local-authority/12UE,Huntingdonshire District Council,200785,THE OYSTER PARTNERSHIP THE OYSTER PARTNERSHIP,43616,20/01/2021,1088380,REDACTED,11/02/2021,475,2375,2850,Property Development And Mgt,Salary Cost Outside Payroll,60010
http://statistics.data.gov.uk/id/local-authority/12UE,Huntingdonshire District Council,200785,THE OYSTER PARTNERSHIP THE OYSTER PARTNERSHIP,43904,27/01/2021,1088791,REDACTED,18/02/2021,475,2375,2850,Property Development And Mgt,Salary Cost Outside Payroll,60010
http://statistics.data.gov.uk/id/local-authority/12UE,Huntingdonshire District Council,200785,THE OYSTER PARTNERSHIP THE OYSTER PARTNERSHIP,44140,03/02/2021,1089195,REDACTED,25/02/2021,475,2375,2850,Property Development And Mgt,Salary Cost Outside Payroll,60010
http://statistics.data.gov.uk/id/local-authority/12UE,Huntingdonshire District Council,200785,THE OYSTER PARTNERSHIP THE OYSTER PARTNERSHIP,44622,10/02/2021,1089608,REDACTED,04/03/2021,475,2375,2850,Property Development And Mgt,Salary Cost Outside Payroll,60010
http://statistics.data.gov.uk/id/local-authority/12UE,Huntingdonshire District Council,200785,THE OYSTER PARTNERSHIP THE OYSTER PARTNERSHIP,44655,17/02/2021,1090019,REDACTED,11/03/2021,475,2375,2850,Property Development And Mgt,Salary Cost Outside Payroll,60010
http://statistics.data.gov.uk/id/local-authority/12UE,Huntingdonshire District Council,200785,THE OYSTER PARTNERSHIP THE OYSTER PARTNERSHIP,45058,24/02/2021,1090436,REDACTED,18/03/2021,475,2375,2850,Property Development And Mgt,Salary Cost Outside Payroll,60010
http://statistics.data.gov.uk/id/local-authority/12UE,Huntingdonshire District Council,200785,THE OYSTER PARTNERSHIP THE OYSTER PARTNERSHIP,45236,03/03/2021,1090872,REDACTED,25/03/2021,475,2375,2850,Property Development And Mgt,Salary Cost Outside Payroll,60010
http://statistics.data.gov.uk/id/local-authority/12UE,Huntingdonshire District Council,200785,THE OYSTER PARTNERSHIP THE OYSTER PARTNERSHIP,45866,10/03/2021,1091290,REDACTED,25/03/2021,475,2375,2850,Property Development And Mgt,Salary Cost Outside Payroll,60010
http://statistics.data.gov.uk/id/local-authority/12UE,Huntingdonshire District Council,200785,THE OYSTER PARTNERSHIP THE OYSTER PARTNERSHIP,42688,16/12/2020,1086783,REDACTED,07/01/2021,390,1950,2340,Property Development And Mgt,Salary Cost Outside Payroll,60010
http://statistics.data.gov.uk/id/local-authority/12UE,Huntingdonshire District Council,200785,THE OYSTER PARTNERSHIP THE OYSTER PARTNERSHIP,43105,29/12/2020,1087203,REDACTED,21/01/2021,390,1950,2340,Property Development And Mgt,Salary Cost Outside Payroll,60010
http://statistics.data.gov.uk/id/local-authority/12UE,Huntingdonshire District Council,200785,THE OYSTER PARTNERSHIP THE OYSTER PARTNERSHIP,43426,13/01/2021,1087965,REDACTED,04/02/2021,390,1950,2340,Property Development And Mgt,Salary Cost Outside Payroll,60010
http://statistics.data.gov.uk/id/local-authority/12UE,Huntingdonshire District Council,200785,THE OYSTER PARTNERSHIP THE OYSTER PARTNERSHIP,43903,27/01/2021,1088790,REDACTED,18/02/2021,390,1950,2340,Property Development And Mgt,Salary Cost Outside Payroll,60010
http://statistics.data.gov.uk/id/local-authority/12UE,Huntingdonshire District Council,200785,THE OYSTER PARTNERSHIP THE OYSTER PARTNERSHIP,44154,03/02/2021,1089194,REDACTED,25/02/2021,390,1950,2340,Property Development And Mgt,Salary Cost Outside Payroll,60010
http://statistics.data.gov.uk/id/local-authority/12UE,Huntingdonshire District Council,200785,THE OYSTER PARTNERSHIP THE OYSTER PARTNERSHIP,44620,10/02/2021,1089607,REDACTED,04/03/2021,390,1950,2340,Property Development And Mgt,Salary Cost Outside Payroll,60010
http://statistics.data.gov.uk/id/local-authority/12UE,Huntingdonshire District Council,200785,THE OYSTER PARTNERSHIP THE OYSTER PARTNERSHIP,44659,17/02/2021,1090018,REDACTED,11/03/2021,390,1950,2340,Property Development And Mgt,Salary Cost Outside Payroll,60010
http://statistics.data.gov.uk/id/local-authority/12UE,Huntingdonshire District Council,200785,THE OYSTER PARTNERSHIP THE OYSTER PARTNERSHIP,45060,24/02/2021,1090435,REDACTED,18/03/2021,390,1950,2340,Property Development And Mgt,Salary Cost Outside Payroll,60010
http://statistics.data.gov.uk/id/local-authority/12UE,Huntingdonshire District Council,200785,THE OYSTER PARTNERSHIP THE OYSTER PARTNERSHIP,45231,03/03/2021,1090871,REDACTED,25/03/2021,390,1950,2340,Property Development And Mgt,Salary Cost Outside Payroll,60010
http://statistics.data.gov.uk/id/local-authority/12UE,Huntingdonshire District Council,200785,THE OYSTER PARTNERSHIP THE OYSTER PARTNERSHIP,45906,10/03/2021,1091289,REDACTED,25/03/2021,390,1950,2340,Property Development And Mgt,Salary Cost Outside Payroll,60010
http://statistics.data.gov.uk/id/local-authority/12UE,Huntingdonshire District Council,200365,HAYS HAYS,44376,06/01/2021,1011033583,REDACTED,11/02/2021,385.42,1927.1,2312.52,Property Development And Mgt,Salary Cost Outside Payroll,60010
http://statistics.data.gov.uk/id/local-authority/12UE,Huntingdonshire District Council,202170,PAYSTREAM MY MAX 3 LTD,43198,11/01/2021,137050,REDACTED,14/01/2021,320,1600,1920,Property Development And Mgt,Salary Cost Outside Payroll,60010
http://statistics.data.gov.uk/id/local-authority/12UE,Huntingdonshire District Council,202170,PAYSTREAM MY MAX 3 LTD,43437,18/01/2021,138127,REDACTED,21/01/2021,320,1600,1920,Property Development And Mgt,Salary Cost Outside Payroll,60010
http://statistics.data.gov.uk/id/local-authority/12UE,Huntingdonshire District Council,202170,PAYSTREAM MY MAX 3 LTD,43772,25/01/2021,139371,REDACTED,28/01/2021,320,1600,1920,Property Development And Mgt,Salary Cost Outside Payroll,60010
http://statistics.data.gov.uk/id/local-authority/12UE,Huntingdonshire District Council,202170,PAYSTREAM MY MAX 3 LTD,44283,08/02/2021,141947,REDACTED,11/02/2021,320,1600,1920,Property Development And Mgt,Salary Cost Outside Payroll,60010
http://statistics.data.gov.uk/id/local-authority/12UE,Huntingdonshire District Council,202170,PAYSTREAM MY MAX 3 LTD,44607,15/02/2021,143291,REDACTED,18/02/2021,320,1600,1920,Property Development And Mgt,Salary Cost Outside Payroll,60010
http://statistics.data.gov.uk/id/local-authority/12UE,Huntingdonshire District Council,202170,PAYSTREAM MY MAX 3 LTD,44764,22/02/2021,144520,REDACTED,25/02/2021,320,1600,1920,Property Development And Mgt,Salary Cost Outside Payroll,60010
http://statistics.data.gov.uk/id/local-authority/12UE,Huntingdonshire District Council,200785,THE OYSTER PARTNERSHIP THE OYSTER PARTNERSHIP,43615,20/01/2021,1088379,REDACTED,11/02/2021,312,1560,1872,Property Development And Mgt,Salary Cost Outside Payroll,60010
http://statistics.data.gov.uk/id/local-authority/12UE,Huntingdonshire District Council,202170,PAYSTREAM MY MAX 3 LTD,44015,01/02/2021,140619,REDACTED,04/02/2021,288,1440,1728,Property Development And Mgt,Salary Cost Outside Payroll,60010
http://statistics.data.gov.uk/id/local-authority/12UE,Huntingdonshire District Council,200785,THE OYSTER PARTNERSHIP THE OYSTER PARTNERSHIP,43094,06/01/2021,1087599,REDACTED,28/01/2021,285,1425,1710,Property Development And Mgt,Salary Cost Outside Payroll,60010
http://statistics.data.gov.uk/id/local-authority/12UE,Huntingdonshire District Council,200785,THE OYSTER PARTNERSHIP THE OYSTER PARTNERSHIP,43093,06/01/2021,1087597,REDACTED,28/01/2021,234,1170,1404,Property Development And Mgt,Salary Cost Outside Payroll,60010
http://statistics.data.gov.uk/id/local-authority/12UE,Huntingdonshire District Council,200785,THE OYSTER PARTNERSHIP THE OYSTER PARTNERSHIP,43095,06/01/2021,1087598,REDACTED,28/01/2021,156,780,936,Property Development And Mgt,Salary Cost Outside Payroll,60010
http://statistics.data.gov.uk/id/local-authority/12UE,Huntingdonshire District Council,202170,PAYSTREAM MY MAX 3 LTD,42835,04/01/2021,136259,REDACTED,07/01/2021,128,640,768,Property Development And Mgt,Salary Cost Outside Payroll,60010
http://statistics.data.gov.uk/id/local-authority/12UE,Huntingdonshire District Council,202170,PAYSTREAM MY MAX 3 LTD,45043,01/03/2021,145913,REDACTED,04/03/2021,128,640,768,Property Development And Mgt,Salary Cost Outside Payroll,60010
http://statistics.data.gov.uk/id/local-authority/12UE,Huntingdonshire District Council,200365,HAYS HAYS,43489,13/01/2021,1011048674,REDACTED,04/02/2021,110.12,550.6,660.72,Property Development And Mgt,Salary Cost Outside Payroll,60010
http://statistics.data.gov.uk/id/local-authority/12UE,Huntingdonshire District Council,200743,STAFFLINE GROUP STAFFLINE GROUP,45467,03/02/2021,98258,RECYCLING W/C 24/01/21,11/03/2021,283.76,1418.82,1702.58,Recycling Collections,Salary Cost Outside Payroll,60010
http://statistics.data.gov.uk/id/local-authority/12UE,Huntingdonshire District Council,200743,STAFFLINE GROUP STAFFLINE GROUP,45381,27/01/2021,97488,RECYCLING W/C 17/01/21,11/03/2021,225.98,1129.92,1355.9,Recycling Collections,Salary Cost Outside Payroll,60010
http://statistics.data.gov.uk/id/local-authority/12UE,Huntingdonshire District Council,200743,STAFFLINE GROUP STAFFLINE GROUP,43453,13/01/2021,95932,RECYCLING W/C 03/01/21,04/02/2021,225.59,1127.93,1353.52,Recycling Collections,Salary Cost Outside Payroll,60010
http://statistics.data.gov.uk/id/local-authority/12UE,Huntingdonshire District Council,200743,STAFFLINE GROUP STAFFLINE GROUP,45462,20/01/2021,96723,RECYCLING W/C 10/01/21,11/03/2021,208.01,1040.04,1248.05,Recycling Collections,Salary Cost Outside Payroll,60010
http://statistics.data.gov.uk/id/local-authority/12UE,Huntingdonshire District Council,200743,STAFFLINE GROUP STAFFLINE GROUP,43247,06/01/2021,95142,RECYCLING W/C 27/12/20,28/01/2021,171.14,855.69,1026.83,Recycling Collections,Salary Cost Outside Payroll,60010
http://statistics.data.gov.uk/id/local-authority/12UE,Huntingdonshire District Council,200743,STAFFLINE GROUP STAFFLINE GROUP,42672,23/12/2020,93709,RECYCLING W/C 13/12/20,14/01/2021,169.12,845.59,1014.71,Recycling Collections,Salary Cost Outside Payroll,60010
http://statistics.data.gov.uk/id/local-authority/12UE,Huntingdonshire District Council,200743,STAFFLINE GROUP STAFFLINE GROUP,43040,30/12/2020,94484,RECYCLING W/C 201220,21/01/2021,151.79,758.93,910.72,Recycling Collections,Salary Cost Outside Payroll,60010
http://statistics.data.gov.uk/id/local-authority/12UE,Huntingdonshire District Council,200743,STAFFLINE GROUP STAFFLINE GROUP,42562,16/12/2020,92890,RECYCLING W/ 06/12/20,07/01/2021,149.27,746.34,895.61,Recycling Collections,Salary Cost Outside Payroll,60010
http://statistics.data.gov.uk/id/local-authority/12UE,Huntingdonshire District Council,200743,STAFFLINE GROUP STAFFLINE GROUP,45472,10/02/2021,99025,RECYCLING W/C 31/01/21,11/03/2021,114.28,571.38,685.66,Recycling Collections,Salary Cost Outside Payroll,60010
http://statistics.data.gov.uk/id/local-authority/12UE,Huntingdonshire District Council,201114,XP RECRUITMENT LTD,43108,22/12/2020,10313,STREET CLEANER W/E 19/12/20,14/01/2021,98.64,493.2,591.84,Street Cleansing,Salary Cost Outside Payroll,60010
http://statistics.data.gov.uk/id/local-authority/12UE,Huntingdonshire District Council,201114,XP RECRUITMENT LTD,43108,22/12/2020,10313,STREET CLEANER W/E 19/12/20,14/01/2021,98.64,493.2,591.84,Street Cleansing,Salary Cost Outside Payroll,60010
http://statistics.data.gov.uk/id/local-authority/12UE,Huntingdonshire District Council,201114,XP RECRUITMENT LTD,43248,16/12/2020,10283,STREET CLEANER W/E 12/12/20,14/01/2021,98.64,493.2,591.84,Street Cleansing,Salary Cost Outside Payroll,60010
http://statistics.data.gov.uk/id/local-authority/12UE,Huntingdonshire District Council,201114,XP RECRUITMENT LTD,43248,16/12/2020,10283,STREET CLEANER W/E 12/12/20,14/01/2021,98.64,493.2,591.84,Street Cleansing,Salary Cost Outside Payroll,60010
http://statistics.data.gov.uk/id/local-authority/12UE,Huntingdonshire District Council,201114,XP RECRUITMENT LTD,43282,13/01/2021,10381,STREET CLEANER W/E 09/01/21,04/02/2021,98.64,493.2,591.84,Street Cleansing,Salary Cost Outside Payroll,60010
http://statistics.data.gov.uk/id/local-authority/12UE,Huntingdonshire District Council,201114,XP RECRUITMENT LTD,43282,13/01/2021,10381,STREET CLEANER W/E 09/01/21,04/02/2021,98.64,493.2,591.84,Street Cleansing,Salary Cost Outside Payroll,60010
http://statistics.data.gov.uk/id/local-authority/12UE,Huntingdonshire District Council,201114,XP RECRUITMENT LTD,44225,03/02/2021,10458,STREET CLEANER W/E 30/01/21,25/02/2021,98.64,493.2,591.84,Street Cleansing,Salary Cost Outside Payroll,60010
http://statistics.data.gov.uk/id/local-authority/12UE,Huntingdonshire District Council,201114,XP RECRUITMENT LTD,44225,03/02/2021,10458,STREET CLEANER W/E 30/01/21,25/02/2021,98.64,493.2,591.84,Street Cleansing,Salary Cost Outside Payroll,60010
http://statistics.data.gov.uk/id/local-authority/12UE,Huntingdonshire District Council,200743,STAFFLINE GROUP STAFFLINE GROUP,43464,11/11/2020,88855,STREET CLEANSER W/C 01/11/20,21/01/2021,91.24,456.21,547.45,Street Cleansing,Salary Cost Outside Payroll,60010
http://statistics.data.gov.uk/id/local-authority/12UE,Huntingdonshire District Council,200743,STAFFLINE GROUP STAFFLINE GROUP,43464,11/11/2020,88855,STREET CLEANSER W/C 01/11/20,21/01/2021,91.24,456.21,547.45,Street Cleansing,Salary Cost Outside Payroll,60010
http://statistics.data.gov.uk/id/local-authority/12UE,Huntingdonshire District Council,201114,XP RECRUITMENT LTD,42930,29/12/2020,10336,STREET CLEANER W/E 26/12/20,21/01/2021,78.91,394.56,473.47,Street Cleansing,Salary Cost Outside Payroll,60010
http://statistics.data.gov.uk/id/local-authority/12UE,Huntingdonshire District Council,201114,XP RECRUITMENT LTD,42930,29/12/2020,10336,STREET CLEANER W/E 26/12/20,21/01/2021,78.91,394.56,473.47,Street Cleansing,Salary Cost Outside Payroll,60010
http://statistics.data.gov.uk/id/local-authority/12UE,Huntingdonshire District Council,201114,XP RECRUITMENT LTD,44458,10/02/2021,10483,STREET CLEANER W/E 06/02/21,04/03/2021,59.18,295.92,355.1,Street Cleansing,Salary Cost Outside Payroll,60010
http://statistics.data.gov.uk/id/local-authority/12UE,Huntingdonshire District Council,201114,XP RECRUITMENT LTD,44458,10/02/2021,10483,STREET CLEANER W/E 06/02/21,04/03/2021,98.64,493.2,591.84,Street Cleansing,Salary Cost Outside Payroll,60010
http://statistics.data.gov.uk/id/local-authority/12UE,Huntingdonshire District Council,201114,XP RECRUITMENT LTD,44392,05/01/2021,10350,STREET CLEANER W/E 02/01/21,11/02/2021,59.18,295.92,355.1,Street Cleansing,Salary Cost Outside Payroll,60010
http://statistics.data.gov.uk/id/local-authority/12UE,Huntingdonshire District Council,201114,XP RECRUITMENT LTD,44392,05/01/2021,10350,STREET CLEANER W/E 02/01/21,11/02/2021,59.18,295.92,355.1,Street Cleansing,Salary Cost Outside Payroll,60010
http://statistics.data.gov.uk/id/local-authority/12UE,Huntingdonshire District Council,201114,XP RECRUITMENT LTD,44392,05/01/2021,10350,STREET CLEANER W/E 02/01/21,11/02/2021,19.73,98.64,118.37,Street Cleansing,Salary Cost Outside Payroll,60010
http://statistics.data.gov.uk/id/local-authority/12UE,Huntingdonshire District Council,201114,XP RECRUITMENT LTD,43577,20/01/2021,10410,STREET CLEANER W/E 16/01/21,11/02/2021,98.64,493.2,591.84,Street Cleansing,Salary Cost Outside Payroll,60010
http://statistics.data.gov.uk/id/local-authority/12UE,Huntingdonshire District Council,201114,XP RECRUITMENT LTD,43577,20/01/2021,10410,STREET CLEANER W/E 16/01/21,11/02/2021,19.73,98.64,118.37,Street Cleansing,Salary Cost Outside Payroll,60010
http://statistics.data.gov.uk/id/local-authority/12UE,Huntingdonshire District Council,201114,XP RECRUITMENT LTD,42941,25/11/2020,10202,STREET CLEANER W/E 21/11/20,07/01/2021,98.64,493.2,591.84,Street Cleansing,Salary Cost Outside Payroll,60010
http://statistics.data.gov.uk/id/local-authority/12UE,Huntingdonshire District Council,201114,XP RECRUITMENT LTD,45079,17/02/2021,10506,STREET CLEANER W/E 13/02/21,11/03/2021,98.64,493.2,591.84,Street Cleansing,Salary Cost Outside Payroll,60010
http://statistics.data.gov.uk/id/local-authority/12UE,Huntingdonshire District Council,201114,XP RECRUITMENT LTD,45341,24/02/2021,10532,STREET CLEANER W/E 20/02/21,18/03/2021,98.64,493.2,591.84,Street Cleansing,Salary Cost Outside Payroll,60010
http://statistics.data.gov.uk/id/local-authority/12UE,Huntingdonshire District Council,200743,STAFFLINE GROUP STAFFLINE GROUP,42944,23/12/2020,93711,STREET CLEANSER W/C 13/12/20,14/01/2021,91.24,456.21,547.45,Street Cleansing,Salary Cost Outside Payroll,60010
http://statistics.data.gov.uk/id/local-authority/12UE,Huntingdonshire District Council,200743,STAFFLINE GROUP STAFFLINE GROUP,44003,13/01/2021,95934,STREET CLEANSER W/C 03/01/21,04/02/2021,91.24,456.21,547.45,Street Cleansing,Salary Cost Outside Payroll,60010
http://statistics.data.gov.uk/id/local-authority/12UE,Huntingdonshire District Council,200743,STAFFLINE GROUP STAFFLINE GROUP,44005,20/01/2021,96725,STREET CLEANSER W/C 10/01/21,11/02/2021,91.24,456.21,547.45,Street Cleansing,Salary Cost Outside Payroll,60010
http://statistics.data.gov.uk/id/local-authority/12UE,Huntingdonshire District Council,200743,STAFFLINE GROUP STAFFLINE GROUP,45560,06/12/2020,92892,OPS STREET CLEANING,18/03/2021,91.24,456.21,547.45,Street Cleansing,Salary Cost Outside Payroll,60010
http://statistics.data.gov.uk/id/local-authority/12UE,Huntingdonshire District Council,200743,STAFFLINE GROUP STAFFLINE GROUP,45561,10/02/2021,99027,OPS STREET CLEANING,18/03/2021,91.24,456.21,547.45,Street Cleansing,Salary Cost Outside Payroll,60010
http://statistics.data.gov.uk/id/local-authority/12UE,Huntingdonshire District Council,200743,STAFFLINE GROUP STAFFLINE GROUP,45562,03/02/2021,98260,OPS STREET CLEANING,18/03/2021,91.24,456.21,547.45,Street Cleansing,Salary Cost Outside Payroll,60010
http://statistics.data.gov.uk/id/local-authority/12UE,Huntingdonshire District Council,200743,STAFFLINE GROUP STAFFLINE GROUP,43063,30/12/2020,94486,STREET CLEANSER W/C20/12/20,21/01/2021,55.49,277.43,332.92,Street Cleansing,Salary Cost Outside Payroll,60010
http://statistics.data.gov.uk/id/local-authority/12UE,Huntingdonshire District Council,200743,STAFFLINE GROUP STAFFLINE GROUP,43293,06/01/2021,95144,STREET CLEANSER W/C 27/12/20,28/01/2021,55.49,277.43,332.92,Street Cleansing,Salary Cost Outside Payroll,60010
http://statistics.data.gov.uk/id/local-authority/12UE,Huntingdonshire District Council,200918,1ST CHOICE RECRUITMENT,45589,06/03/2021,4000008217,ops staff,25/03/2021,41.76,208.8,250.56,Trade Refuse,Salary Cost Outside Payroll,60010
http://statistics.data.gov.uk/id/local-authority/12UE,Huntingdonshire District Council,200918,1ST CHOICE RECRUITMENT,44597,13/02/2021,4000009191,REDACTED,11/03/2021,41.76,208.8,250.56,Trade Refuse,Salary Cost Outside Payroll,60010
http://statistics.data.gov.uk/id/local-authority/12UE,Huntingdonshire District Council,200918,1ST CHOICE RECRUITMENT,44969,20/02/2021,4000009199,REDACTED,18/03/2021,41.76,208.8,250.56,Trade Refuse,Salary Cost Outside Payroll,60010
http://statistics.data.gov.uk/id/local-authority/12UE,Huntingdonshire District Council,200918,1ST CHOICE RECRUITMENT,45239,27/02/2021,4000009207,REDACTED,25/03/2021,41.76,208.8,250.56,Trade Refuse,Salary Cost Outside Payroll,60010
http://statistics.data.gov.uk/id/local-authority/12UE,Huntingdonshire District Council,202504,IO ASSOCIATES TRADING DIVISION OF PRECISION RESOURCE GROUP LTD,44400,18/01/2021,5182,HR recruitment,11/02/2021,300.83,1504.12,1804.95,Transformation Programme,Salary Cost Outside Payroll,60010
http://statistics.data.gov.uk/id/local-authority/12UE,Huntingdonshire District Council,201114,XP RECRUITMENT LTD,43873,27/01/2021,10425,STREET CLEANER W/E 23/01/21,18/02/2021,98.64,493.2,591.84,Vehicle Maintenance,Salary Cost Outside Payroll,60010
http://statistics.data.gov.uk/id/local-authority/12UE,Huntingdonshire District Council,201114,XP RECRUITMENT LTD,43873,27/01/2021,10425,STREET CLEANER W/E 23/01/21,18/02/2021,98.64,493.2,591.84,Vehicle Maintenance,Salary Cost Outside Payroll,60010
http://statistics.data.gov.uk/id/local-authority/12UE,Huntingdonshire District Council,200181,CFL ESTATE SERVICES CFL ESTATE SERVICES,43297,08/01/2021,HDC121,PROFESSIONAL ADVICE,04/02/2021,0,738,738,Bridge Place Car Park Const,Agency Staff,60011
http://statistics.data.gov.uk/id/local-authority/12UE,Huntingdonshire District Council,200181,CFL ESTATE SERVICES CFL ESTATE SERVICES,44047,01/02/2021,HDC122,PROFESSIONAL ADVICE,25/02/2021,0,438,438,Bridge Place Car Park Const,Agency Staff,60011
http://statistics.data.gov.uk/id/local-authority/12UE,Huntingdonshire District Council,200210,COMPUTERSHARE VOUCHERS LTD COMPUTERSHARE VOUCHERS LTD,45968,23/03/2021,C-0003184232,TAX FREE VOUCHERS,25/03/2021,0,1861,1861,Child Care Vouchers - Payroll,Pension Deficit Funding,60100
http://statistics.data.gov.uk/id/local-authority/12UE,Huntingdonshire District Council,201054,NORTHAMPTONSHIRE PENSION FUND,45269,11/02/2021,4.233E+11,DEC 20 UNFUNDED RECHARGES,11/03/2021,0,13506.96,13506.96,Non Distributed Costs,Pension Deficit Funding,60100
http://statistics.data.gov.uk/id/local-authority/12UE,Huntingdonshire District Council,201054,NORTHAMPTONSHIRE PENSION FUND,45089,19/02/2021,4.233E+11,JAN 21 UNFUNDED RECHARGES,18/03/2021,0,13492.47,13492.47,Non Distributed Costs,Pension Deficit Funding,60100
http://statistics.data.gov.uk/id/local-authority/12UE,Huntingdonshire District Council,201054,NORTHAMPTONSHIRE PENSION FUND,42195,10/12/2020,4.233E+11,UNFUNDED RECHARGES,07/01/2021,0,13199.52,13199.52,Non Distributed Costs,Pension Deficit Funding,60100
http://statistics.data.gov.uk/id/local-authority/12UE,Huntingdonshire District Council,200210,COMPUTERSHARE VOUCHERS LTD COMPUTERSHARE VOUCHERS LTD,45968,23/03/2021,C-0003184232,TAX FREE VOUCHERS,25/03/2021,9.31,46.53,55.84,Payroll Services,Pension Deficit Funding,60100
http://statistics.data.gov.uk/id/local-authority/12UE,Huntingdonshire District Council,200210,COMPUTERSHARE VOUCHERS LTD COMPUTERSHARE VOUCHERS LTD,43696,25/01/2021,C-0003162708,TAX FREE VOUCHERS,28/01/2021,0,1721,1721,Payroll Services,Pension Deficit Funding,60100
http://statistics.data.gov.uk/id/local-authority/12UE,Huntingdonshire District Council,200210,COMPUTERSHARE VOUCHERS LTD COMPUTERSHARE VOUCHERS LTD,44812,22/02/2021,C-0003173404,TAX FREE VOUCHERS,25/02/2021,0,1721,1721,Payroll Services,Pension Deficit Funding,60100
http://statistics.data.gov.uk/id/local-authority/12UE,Huntingdonshire District Council,202486,ELITE TRAINING & CONSULTANCY (SCOTLAND) LTD,45628,16/03/2021,9090,3CICT TRAINING,25/03/2021,237,1185,1422,Cambridge City Business Case ,Ias19 Past Service Costs,60110
http://statistics.data.gov.uk/id/local-authority/12UE,Huntingdonshire District Council,202486,ELITE TRAINING & CONSULTANCY (SCOTLAND) LTD,45628,16/03/2021,9090,3CICT TRAINING,25/03/2021,79,395,474,Cambridge City Business Case ,Ias19 Past Service Costs,60110
http://statistics.data.gov.uk/id/local-authority/12UE,Huntingdonshire District Council,202486,ELITE TRAINING & CONSULTANCY (SCOTLAND) LTD,45628,16/03/2021,9090,3CICT TRAINING,25/03/2021,22,110,132,Cambridge City Business Case ,Ias19 Past Service Costs,60110
http://statistics.data.gov.uk/id/local-authority/12UE,Huntingdonshire District Council,200614,PHOENIX SOFTWARE LTD PHOENIX SOFTWARE LTD,45285,03/03/2021,OP/I890628,CONSULTANCY,25/03/2021,647.05,3235.24,3882.29,City Recoverable,Ias19 Past Service Costs,60110
http://statistics.data.gov.uk/id/local-authority/12UE,Huntingdonshire District Council,200243,DODS GROUP PLC DODS GROUP PLC,42212,10/12/2020,SI-DP002363,TRAINING,04/02/2021,314.3,1571.5,1885.8,Covid-19,Ias19 Past Service Costs,60110
http://statistics.data.gov.uk/id/local-authority/12UE,Huntingdonshire District Council,200312,FREIGHT TRANSPORT ASSOCIATION FREIGHT TRANSPORT ASSOCIATION,42911,27/10/2020,300285967,DRIVER CPC,07/01/2021,157.6,788,945.6,Covid-19,Ias19 Past Service Costs,60110
http://statistics.data.gov.uk/id/local-authority/12UE,Huntingdonshire District Council,202458,CARRINGTON WEST LTD,42336,15/12/2020,2020185,RECRUITMENT,07/01/2021,645,3225,3870,Development Management,Ias19 Past Service Costs,60110
http://statistics.data.gov.uk/id/local-authority/12UE,Huntingdonshire District Council,202444,IHBC ENTERPRISES LTD,44412,11/02/2021,JIC1633/21,ADVERTISING,11/03/2021,81,405,486,Development Management,Ias19 Past Service Costs,60110
http://statistics.data.gov.uk/id/local-authority/12UE,Huntingdonshire District Council,202471,SCHOOL OF BUSINESS LONDON LTD,42965,23/12/2020,INV-10322,TRAINING,14/01/2021,300,1500,1800,Domestic Waste Collection,Ias19 Past Service Costs,60110
http://statistics.data.gov.uk/id/local-authority/12UE,Huntingdonshire District Council,201474,APEX TRAINING CENTRES (UK) LTD,45431,02/02/2021,15806,TRAINING,11/03/2021,43,215,258,Emergency Planning,Ias19 Past Service Costs,60110
http://statistics.data.gov.uk/id/local-authority/12UE,Huntingdonshire District Council,201474,APEX TRAINING CENTRES (UK) LTD,45431,02/02/2021,15806,TRAINING,11/03/2021,43,215,258,Emergency Planning,Ias19 Past Service Costs,60110
http://statistics.data.gov.uk/id/local-authority/12UE,Huntingdonshire District Council,201474,APEX TRAINING CENTRES (UK) LTD,45431,02/02/2021,15806,TRAINING,11/03/2021,215,1075,1290,Emergency Planning,Ias19 Past Service Costs,60110
http://statistics.data.gov.uk/id/local-authority/12UE,Huntingdonshire District Council,201474,APEX TRAINING CENTRES (UK) LTD,45431,02/02/2021,15806,TRAINING,11/03/2021,23.31,116.55,139.86,Emergency Planning,Ias19 Past Service Costs,60110
http://statistics.data.gov.uk/id/local-authority/12UE,Huntingdonshire District Council,200677,RICARDO-AEA LTD RICARDO-AEA LTD,44257,29/01/2021,6186881,TRAINING,25/02/2021,50,250,300,Env Protection,Ias19 Past Service Costs,60110
http://statistics.data.gov.uk/id/local-authority/12UE,Huntingdonshire District Council,200677,RICARDO-AEA LTD RICARDO-AEA LTD,44257,29/01/2021,6186881,TRAINING,25/02/2021,50,250,300,Env Protection,Ias19 Past Service Costs,60110
http://statistics.data.gov.uk/id/local-authority/12UE,Huntingdonshire District Council,200677,RICARDO-AEA LTD RICARDO-AEA LTD,44257,29/01/2021,6186881,TRAINING,25/02/2021,50,250,300,Env Protection,Ias19 Past Service Costs,60110
http://statistics.data.gov.uk/id/local-authority/12UE,Huntingdonshire District Council,200345,GOVNET COMMUNICATIONS GOVNET COMMUNICATIONS,45953,10/02/2021,171939,FORUM,25/03/2021,59,295,354,Finance,Ias19 Past Service Costs,60110
http://statistics.data.gov.uk/id/local-authority/12UE,Huntingdonshire District Council,202471,SCHOOL OF BUSINESS LONDON LTD,42966,23/12/2020,INV-10323,TRAINING,14/01/2021,150,750,900,Green Waste Collection,Ias19 Past Service Costs,60110
http://statistics.data.gov.uk/id/local-authority/12UE,Huntingdonshire District Council,200401,IDOX IDOX,44879,30/11/2020,7031340,TRAINING,04/03/2021,720,3600,4320,HDC Business Case ,Ias19 Past Service Costs,60110
http://statistics.data.gov.uk/id/local-authority/12UE,Huntingdonshire District Council,200614,PHOENIX SOFTWARE LTD PHOENIX SOFTWARE LTD,45111,26/02/2021,OP/I889931,TRAINING,25/03/2021,256.27,1281.34,1537.61,HDC Business Case ,Ias19 Past Service Costs,60110
http://statistics.data.gov.uk/id/local-authority/12UE,Huntingdonshire District Council,200614,PHOENIX SOFTWARE LTD PHOENIX SOFTWARE LTD,45111,26/02/2021,OP/I889931,TRAINING,25/03/2021,290.6,1453,1743.6,HDC Business Case ,Ias19 Past Service Costs,60110
http://statistics.data.gov.uk/id/local-authority/12UE,Huntingdonshire District Council,200401,IDOX IDOX,44880,23/02/2021,7032250,TRAINING,04/03/2021,-720,-3600,-4320,HDC Business Case ,Ias19 Past Service Costs,60110
http://statistics.data.gov.uk/id/local-authority/12UE,Huntingdonshire District Council,200614,PHOENIX SOFTWARE LTD PHOENIX SOFTWARE LTD,45285,03/03/2021,OP/I890628,CONSULTANCY,25/03/2021,647.05,3235.24,3882.29,HDC Recoverable,Ias19 Past Service Costs,60110
http://statistics.data.gov.uk/id/local-authority/12UE,Huntingdonshire District Council,202504,IO ASSOCIATES TRADING DIVISION OF PRECISION RESOURCE GROUP LTD,45405,26/02/2021,5378,RECRUITMENT,11/03/2021,504.3,2521.5,3025.8,Housing Policy R&D,Ias19 Past Service Costs,60110
http://statistics.data.gov.uk/id/local-authority/12UE,Huntingdonshire District Council,202504,IO ASSOCIATES TRADING DIVISION OF PRECISION RESOURCE GROUP LTD,45853,15/03/2021,5484,RECRUITMENT,25/03/2021,504.3,2521.5,3025.8,Housing Policy R&D,Ias19 Past Service Costs,60110
http://statistics.data.gov.uk/id/local-authority/12UE,Huntingdonshire District Council,201698,HOT LEARNING LTD T/A ENGAGE IN LEARNING,45300,02/03/2021,INV-04378,TRAINING,25/03/2021,2667.92,13339.6,16007.52,HR Services,Ias19 Past Service Costs,60110
http://statistics.data.gov.uk/id/local-authority/12UE,Huntingdonshire District Council,200909,WRIGHTWAY HEALTH LTD,42937,04/01/2021,47374,OCCUPATIONAL HEALTH,28/01/2021,0,1808,1808,HR Services,Ias19 Past Service Costs,60110
http://statistics.data.gov.uk/id/local-authority/12UE,Huntingdonshire District Council,200909,WRIGHTWAY HEALTH LTD,44356,01/02/2021,48203,OCCUPATIONAL HEALTH,25/02/2021,0,1808,1808,HR Services,Ias19 Past Service Costs,60110
http://statistics.data.gov.uk/id/local-authority/12UE,Huntingdonshire District Council,200909,WRIGHTWAY HEALTH LTD,45154,01/03/2021,48971,OCCUPATIONAL HEALTH,25/03/2021,0,1808,1808,HR Services,Ias19 Past Service Costs,60110
http://statistics.data.gov.uk/id/local-authority/12UE,Huntingdonshire District Council,202513,CV-LIBRARY LTD,45048,08/02/2021,333206,STAFF RECRUITMENT,04/03/2021,259.9,1299.5,1559.4,HR Services,Ias19 Past Service Costs,60110
http://statistics.data.gov.uk/id/local-authority/12UE,Huntingdonshire District Council,200424,IRRV SERVICES LIMITED IRRV SERVICES LIMITED,42590,16/12/2020,A128847,SUBSCRIPTION,07/01/2021,240,1200,1440,HR Services,Ias19 Past Service Costs,60110
http://statistics.data.gov.uk/id/local-authority/12UE,Huntingdonshire District Council,202476,THE HUB EVENTS LTD,42797,03/12/2020,INV-20/8908,TRAINING,07/01/2021,232,1160,1392,HR Services,Ias19 Past Service Costs,60110
http://statistics.data.gov.uk/id/local-authority/12UE,Huntingdonshire District Council,202476,THE HUB EVENTS LTD,45030,18/02/2021,INV-20/9085,TRAINING,18/03/2021,232,1160,1392,HR Services,Ias19 Past Service Costs,60110
http://statistics.data.gov.uk/id/local-authority/12UE,Huntingdonshire District Council,202476,THE HUB EVENTS LTD,43639,19/01/2021,INV-20/8989,TRAINING,11/02/2021,179.82,899.1,1078.92,HR Services,Ias19 Past Service Costs,60110
http://statistics.data.gov.uk/id/local-authority/12UE,Huntingdonshire District Council,201493,IPP EDUCATION LTD,44365,07/08/2020,INV-40700-G7X3,TRAINING,11/02/2021,179.4,897,1076.4,HR Services,Ias19 Past Service Costs,60110
http://statistics.data.gov.uk/id/local-authority/12UE,Huntingdonshire District Council,202493,ESCALLA TS LTD,43911,22/01/2021,5304,TRAINING,18/02/2021,75,375,450,HR Services,Ias19 Past Service Costs,60110
http://statistics.data.gov.uk/id/local-authority/12UE,Huntingdonshire District Council,202493,ESCALLA TS LTD,43911,22/01/2021,5304,TRAINING,18/02/2021,55,275,330,HR Services,Ias19 Past Service Costs,60110
http://statistics.data.gov.uk/id/local-authority/12UE,Huntingdonshire District Council,201026,ASSOCIATION OF ELECTORAL ADMINISTRATORS AEA BOOKINGS,43034,06/01/2021,28150,AEA CONFERENCE,28/01/2021,125,625,750,HR Services,Ias19 Past Service Costs,60110
http://statistics.data.gov.uk/id/local-authority/12UE,Huntingdonshire District Council,201395,CWE TRAINING LTD,43286,05/12/2019,11607,TRAINING,14/01/2021,119,595,714,HR Services,Ias19 Past Service Costs,60110
http://statistics.data.gov.uk/id/local-authority/12UE,Huntingdonshire District Council,200038,ABBOTT TOXICOLOGY LTD ALERE TOXICOLOGY PLC,43638,02/10/2019,692789,TRAINING,28/01/2021,115.48,577.4,692.88,HR Services,Ias19 Past Service Costs,60110
http://statistics.data.gov.uk/id/local-authority/12UE,Huntingdonshire District Council,200909,WRIGHTWAY HEALTH LTD,44397,01/02/2021,48077,OCCUPATIONAL HEALTH,25/02/2021,0,350,350,HR Services,Ias19 Past Service Costs,60110
http://statistics.data.gov.uk/id/local-authority/12UE,Huntingdonshire District Council,200054.01,APSE,45031,09/02/2021,2021/1909,TRAINING,04/03/2021,67.6,338,405.6,HR Services,Ias19 Past Service Costs,60110
http://statistics.data.gov.uk/id/local-authority/12UE,Huntingdonshire District Council,200197,CIVICA UK LTD CIVICA UK LTD,43629,21/01/2021,C/XP210033,TRAINING,18/02/2021,60,300,360,HR Services,Ias19 Past Service Costs,60110
http://statistics.data.gov.uk/id/local-authority/12UE,Huntingdonshire District Council,200415.01,INSTITUTE OF LICENSING LTD,43428,27/05/2020,EVE30102,TRAINING,21/01/2021,33,165,198,Licensing Common Costs,Ias19 Past Service Costs,60110
http://statistics.data.gov.uk/id/local-authority/12UE,Huntingdonshire District Council,200415.01,INSTITUTE OF LICENSING LTD,43428,27/05/2020,EVE30102,TRAINING,21/01/2021,49.4,247,296.4,Licensing Common Costs,Ias19 Past Service Costs,60110
http://statistics.data.gov.uk/id/local-authority/12UE,Huntingdonshire District Council,200345,GOVNET COMMUNICATIONS GOVNET COMMUNICATIONS,45953,10/02/2021,171939,FORUM,25/03/2021,59,295,354,Property Development And Mgt,Ias19 Past Service Costs,60110
http://statistics.data.gov.uk/id/local-authority/12UE,Huntingdonshire District Council,202471,SCHOOL OF BUSINESS LONDON LTD,42967,23/12/2020,INV-10324,TRAINING,28/01/2021,150,750,900,Recycling Collections,Ias19 Past Service Costs,60110
http://statistics.data.gov.uk/id/local-authority/12UE,Huntingdonshire District Council,200401,IDOX IDOX,44414,08/02/2021,7032090,TRAINING,04/03/2021,1785,8925,10710,SCDC Recoverable,Ias19 Past Service Costs,60110
http://statistics.data.gov.uk/id/local-authority/12UE,Huntingdonshire District Council,200614,PHOENIX SOFTWARE LTD PHOENIX SOFTWARE LTD,45285,03/03/2021,OP/I890628,CONSULTANCY,25/03/2021,647.05,3235.24,3882.29,SCDC Recoverable,Ias19 Past Service Costs,60110
http://statistics.data.gov.uk/id/local-authority/12UE,Huntingdonshire District Council,200312,FREIGHT TRANSPORT ASSOCIATION FREIGHT TRANSPORT ASSOCIATION,43446,10/04/2019,300235572,TRAINING,21/01/2021,50,250,300,Vehicle Maintenance,Ias19 Past Service Costs,60110
http://statistics.data.gov.uk/id/local-authority/12UE,Huntingdonshire District Council,200429,J BREHENY CIVIL ENGINEERING LTD J BREHENY CIVIL ENGINEERING LTD,43150,26/03/2020,HMG/5106/32784,MINOR WORKS FRAMEWORK,14/01/2021,159,795,954,Car Park Management,Facilities Management,60200
http://statistics.data.gov.uk/id/local-authority/12UE,Huntingdonshire District Council,200796,TOTAL FLOORING UK TOTAL FLOORING UK,42747,16/12/2020,INV-0924,CCTV SERVER ROOM,07/01/2021,176,880,1056,Cctv Shared Service Hosting,Facilities Management,60200
http://statistics.data.gov.uk/id/local-authority/12UE,Huntingdonshire District Council,202434,FAIRFIELD C & G LTD,42987,17/07/2020,INV-22309,MANUAL ARM BARRIER,07/01/2021,338,1690,2028,Commercial Investment Strategy,Facilities Management,60200
http://statistics.data.gov.uk/id/local-authority/12UE,Huntingdonshire District Council,201825,EUROSAFE SOLUTIONS LTD,45691,10/03/2021,40570 (5947),MAPLE TREE CENTRE,25/03/2021,255,1275,1530,Commercial Properties,Facilities Management,60200
http://statistics.data.gov.uk/id/local-authority/12UE,Huntingdonshire District Council,200429,J BREHENY CIVIL ENGINEERING LTD J BREHENY CIVIL ENGINEERING LTD,45899,05/03/2021,HM/5106/33828,MINOR WORKS FRAMEWORK,25/03/2021,70,350,420,Commercial Properties,Facilities Management,60200
http://statistics.data.gov.uk/id/local-authority/12UE,Huntingdonshire District Council,200225,DACLA PROPERTY SERVICES DACLA PROPERTY SERVICES,43449,14/01/2021,212,LOVES FARM,21/01/2021,0,270,270,Community Centres,Facilities Management,60200
http://statistics.data.gov.uk/id/local-authority/12UE,Huntingdonshire District Council,200542,MIRAMAR ENGINEERING LTD MIRAMAR ENGINEERING LTD,44492,11/02/2021,5160,EASTFIELD HOUSE,11/03/2021,617.19,3085.93,3703.12,Eastfield House,Facilities Management,60200
http://statistics.data.gov.uk/id/local-authority/12UE,Huntingdonshire District Council,200542,MIRAMAR ENGINEERING LTD MIRAMAR ENGINEERING LTD,45279,16/02/2021,5226,EASTFIELD HOUSE,11/03/2021,560,2800,3360,Eastfield House,Facilities Management,60200
http://statistics.data.gov.uk/id/local-authority/12UE,Huntingdonshire District Council,200891,RAFFERTY LIGHTNING PROTECTION LTD,44433,29/01/2021,1826,ST IVES ENTERPRISE CENTRE,25/02/2021,90,450,540,Eastfield House,Facilities Management,60200
http://statistics.data.gov.uk/id/local-authority/12UE,Huntingdonshire District Council,202494,S-TECH SOLAR LTD,44431,03/02/2021,1523,EASTFIELD HOUSE,18/02/2021,265.3,1326.5,1591.8,Eastfield House,Facilities Management,60200
http://statistics.data.gov.uk/id/local-authority/12UE,Huntingdonshire District Council,202428,DRAINAGE 2000 LTD,44061,14/12/2020,12177,EASTFIELD HOUSE,04/02/2021,180,900,1080,Eastfield House,Facilities Management,60200
http://statistics.data.gov.uk/id/local-authority/12UE,Huntingdonshire District Council,201404,EVACU8,42276,10/12/2020,1864,EQUIPMENT SERVICING,07/01/2021,7,35,42,Eastfield House,Facilities Management,60200
http://statistics.data.gov.uk/id/local-authority/12UE,Huntingdonshire District Council,200655,SYNECTICS SECURITY LTD QUADRANT SECURITY GROUP,44434,27/01/2021,SIN093127,CCTV,18/02/2021,69.6,348,417.6,Eastfield House,Facilities Management,60200
http://statistics.data.gov.uk/id/local-authority/12UE,Huntingdonshire District Council,200999,"HARRISONS ELECTRICAL, MECHANICAL AND PROPERTY SERVICES",43679,22/01/2021,36444,EASTFIELD HOUSE,18/02/2021,60.94,304.7,365.64,Eastfield House,Facilities Management,60200
http://statistics.data.gov.uk/id/local-authority/12UE,Huntingdonshire District Council,201618,ABBEY ROOFING,44490,22/12/2020,11096,COUNTRY PARK,18/02/2021,530,2650,3180,Hinchingbrooke Park Management,Facilities Management,60200
http://statistics.data.gov.uk/id/local-authority/12UE,Huntingdonshire District Council,200075,B S GRAVES ELECTRICAL LTD B S GRAVES ELECTRICAL LTD,45059,01/03/2021,29797,UNITS 4 & 5 PHOENIX COURT,25/03/2021,137.4,687,824.4,Industrial Properties,Facilities Management,60200
http://statistics.data.gov.uk/id/local-authority/12UE,Huntingdonshire District Council,200075,B S GRAVES ELECTRICAL LTD B S GRAVES ELECTRICAL LTD,45059,01/03/2021,29797,UNITS 4 & 5 PHOENIX COURT,25/03/2021,150.2,751,901.2,Industrial Properties,Facilities Management,60200
http://statistics.data.gov.uk/id/local-authority/12UE,Huntingdonshire District Council,200075,B S GRAVES ELECTRICAL LTD B S GRAVES ELECTRICAL LTD,45059,01/03/2021,29797,UNITS 4 & 5 PHOENIX COURT,25/03/2021,150.2,751,901.2,Industrial Properties,Facilities Management,60200
http://statistics.data.gov.uk/id/local-authority/12UE,Huntingdonshire District Council,200478,LATTENBURY SERVICES LATTENBURY SERVICES,44759,19/02/2021,17440,UNIT 4 PHOENIX COURT,18/03/2021,330,1650,1980,Industrial Properties,Facilities Management,60200
http://statistics.data.gov.uk/id/local-authority/12UE,Huntingdonshire District Council,200075,B S GRAVES ELECTRICAL LTD B S GRAVES ELECTRICAL LTD,45059,01/03/2021,29797,UNITS 4 & 5 PHOENIX COURT,25/03/2021,219.4,1097,1316.4,Industrial Properties,Facilities Management,60200
http://statistics.data.gov.uk/id/local-authority/12UE,Huntingdonshire District Council,200478,LATTENBURY SERVICES LATTENBURY SERVICES,44759,19/02/2021,17440,UNIT 4 PHOENIX COURT,18/03/2021,80,400,480,Industrial Properties,Facilities Management,60200
http://statistics.data.gov.uk/id/local-authority/12UE,Huntingdonshire District Council,200542,MIRAMAR ENGINEERING LTD MIRAMAR ENGINEERING LTD,45146,12/11/2020,4734,ALMS CLOSE,04/03/2021,270,1350,1620,Industrial Properties,Facilities Management,60200
http://statistics.data.gov.uk/id/local-authority/12UE,Huntingdonshire District Council,200542,MIRAMAR ENGINEERING LTD MIRAMAR ENGINEERING LTD,45146,12/11/2020,4734,ALMS CLOSE,04/03/2021,470,2350,2820,Industrial Properties,Facilities Management,60200
http://statistics.data.gov.uk/id/local-authority/12UE,Huntingdonshire District Council,201660,TOTAL ENVIRONMENTAL COMPLIANCE LTD,44658,17/02/2021,36976,27 LEVELLERS LANE,11/03/2021,53.4,267,320.4,Industrial Properties,Facilities Management,60200
http://statistics.data.gov.uk/id/local-authority/12UE,Huntingdonshire District Council,200542,MIRAMAR ENGINEERING LTD MIRAMAR ENGINEERING LTD,45038,17/02/2021,5177,ST IVES BUS STATION,11/03/2021,116.08,580.4,696.48,Market Rd Pc Bus Stn - St Ives,Facilities Management,60200
http://statistics.data.gov.uk/id/local-authority/12UE,Huntingdonshire District Council,200511,CHORUS HOMES GROUP LTD,45651,16/03/2021,1158446,STRATEGY MHP REPAIRS,18/03/2021,302.84,1514.21,1817.05,Mobile Home Park,Facilities Management,60200
http://statistics.data.gov.uk/id/local-authority/12UE,Huntingdonshire District Council,200511,CHORUS HOMES GROUP LTD,43433,13/01/2021,1155568,MHP CONTRACTOR REPAIRS,21/01/2021,0,288.72,288.72,Mobile Home Park,Facilities Management,60200
http://statistics.data.gov.uk/id/local-authority/12UE,Huntingdonshire District Council,200511,CHORUS HOMES GROUP LTD,43433,13/01/2021,1155568,MHP CONTRACTOR REPAIRS,21/01/2021,87.4,437,524.4,Mobile Home Park,Facilities Management,60200
http://statistics.data.gov.uk/id/local-authority/12UE,Huntingdonshire District Council,200891,RAFFERTY LIGHTNING PROTECTION LTD,44433,29/01/2021,1826,ST IVES ENTERPRISE CENTRE,25/02/2021,54,270,324,MSCP (HUN),Facilities Management,60200
http://statistics.data.gov.uk/id/local-authority/12UE,Huntingdonshire District Council,200339,GEZE  UK LTD GEZE  UK LTD,44737,27/08/2020,88442448,MULTI STOREY CAR PARK,25/02/2021,19.4,97,116.4,MSCP (HUN),Facilities Management,60200
http://statistics.data.gov.uk/id/local-authority/12UE,Huntingdonshire District Council,200339,GEZE  UK LTD GEZE  UK LTD,44737,27/08/2020,88442448,MULTI STOREY CAR PARK,25/02/2021,71.7,358.5,430.2,MSCP (HUN),Facilities Management,60200
http://statistics.data.gov.uk/id/local-authority/12UE,Huntingdonshire District Council,200891,RAFFERTY LIGHTNING PROTECTION LTD,44433,29/01/2021,1826,ST IVES ENTERPRISE CENTRE,25/02/2021,81,405,486,Oak Tree Health Centre,Facilities Management,60200
http://statistics.data.gov.uk/id/local-authority/12UE,Huntingdonshire District Council,200542,MIRAMAR ENGINEERING LTD MIRAMAR ENGINEERING LTD,45256,16/02/2021,5216,OL HUNTINGDON,11/03/2021,470,2350,2820,OLH - Site & Centre Management,Facilities Management,60200
http://statistics.data.gov.uk/id/local-authority/12UE,Huntingdonshire District Council,200427,J A K  SYSTEMS LTD J A K SYSTEMS LTD,44805,21/02/2021,12979,OL HUNTINGDON,18/03/2021,150.63,753.14,903.77,OLH - Site & Centre Management,Facilities Management,60200
http://statistics.data.gov.uk/id/local-authority/12UE,Huntingdonshire District Council,201404,EVACU8,42276,10/12/2020,1864,EQUIPMENT SERVICING,07/01/2021,7,35,42,OLH - Site & Centre Management,Facilities Management,60200
http://statistics.data.gov.uk/id/local-authority/12UE,Huntingdonshire District Council,200542,MIRAMAR ENGINEERING LTD MIRAMAR ENGINEERING LTD,44480,25/01/2021,5087,OL HUNTINGDON,18/02/2021,67,335,402,OLH - Site & Centre Management,Facilities Management,60200
http://statistics.data.gov.uk/id/local-authority/12UE,Huntingdonshire District Council,201660,TOTAL ENVIRONMENTAL COMPLIANCE LTD,44437,04/02/2021,36795,OL HUNTINGDON,04/03/2021,50,250,300,OLH - Site & Centre Management,Facilities Management,60200
http://statistics.data.gov.uk/id/local-authority/12UE,Huntingdonshire District Council,200427,J A K  SYSTEMS LTD J A K SYSTEMS LTD,44804,21/02/2021,12983,ANNUAL SERVICE - WATER,18/03/2021,91,455,546,OLH - Swimming,Facilities Management,60200
http://statistics.data.gov.uk/id/local-authority/12UE,Huntingdonshire District Council,200542,MIRAMAR ENGINEERING LTD MIRAMAR ENGINEERING LTD,45299,16/02/2021,5215,OL RAMSEY,11/03/2021,370,1850,2220,OLR - Site & Centre Management,Facilities Management,60200
http://statistics.data.gov.uk/id/local-authority/12UE,Huntingdonshire District Council,200533,SYSTEMAIR LTD MENERGA TECHNICAL SERVICES LTD,43431,15/01/2021,1429827,OL RAMSEY,11/02/2021,297,1485,1782,OLR - Site & Centre Management,Facilities Management,60200
http://statistics.data.gov.uk/id/local-authority/12UE,Huntingdonshire District Council,200427,J A K  SYSTEMS LTD J A K SYSTEMS LTD,44763,21/02/2021,12982,OL RAMSEY,18/03/2021,117.87,589.37,707.24,OLR - Site & Centre Management,Facilities Management,60200
http://statistics.data.gov.uk/id/local-authority/12UE,Huntingdonshire District Council,201057,SAFE SECURE LOCKER SERVICES LTD,45915,05/06/2019,13932,OL RAMSEY,25/03/2021,104.46,522.3,626.76,OLR - Site & Centre Management,Facilities Management,60200
http://statistics.data.gov.uk/id/local-authority/12UE,Huntingdonshire District Council,200694,ROGER WILSON ELECTRONICS ROGER WILSON ELECTRONICS,43445,16/11/2020,10522,OL RAMSEY,21/01/2021,69.55,347.75,417.3,OLR - Site & Centre Management,Facilities Management,60200
http://statistics.data.gov.uk/id/local-authority/12UE,Huntingdonshire District Council,200427,J A K  SYSTEMS LTD J A K SYSTEMS LTD,44804,21/02/2021,12983,ANNUAL SERVICE - WATER,18/03/2021,91,455,546,OLR - Swimming,Facilities Management,60200
http://statistics.data.gov.uk/id/local-authority/12UE,Huntingdonshire District Council,200542,MIRAMAR ENGINEERING LTD MIRAMAR ENGINEERING LTD,45836,16/02/2021,5217,OL ST IVES,25/03/2021,580,2900,3480,OLSI - Site & Centre Management,Facilities Management,60200
http://statistics.data.gov.uk/id/local-authority/12UE,Huntingdonshire District Council,200427,J A K  SYSTEMS LTD J A K SYSTEMS LTD,44844,21/02/2021,12981,OL ST IVES,18/03/2021,169.7,848.48,1018.18,OLSI - Site & Centre Management,Facilities Management,60200
http://statistics.data.gov.uk/id/local-authority/12UE,Huntingdonshire District Council,200427,J A K  SYSTEMS LTD J A K SYSTEMS LTD,45418,05/03/2021,13005,OL ST IVES,25/03/2021,81.18,405.9,487.08,OLSI - Site & Centre Management,Facilities Management,60200
http://statistics.data.gov.uk/id/local-authority/12UE,Huntingdonshire District Council,201404,EVACU8,42276,10/12/2020,1864,EQUIPMENT SERVICING,07/01/2021,7,35,42,OLSI - Site & Centre Management,Facilities Management,60200
http://statistics.data.gov.uk/id/local-authority/12UE,Huntingdonshire District Council,200542,MIRAMAR ENGINEERING LTD MIRAMAR ENGINEERING LTD,44067,25/01/2021,5086,OL ST IVES,18/02/2021,67,335,402,OLSI - Site & Centre Management,Facilities Management,60200
http://statistics.data.gov.uk/id/local-authority/12UE,Huntingdonshire District Council,200427,J A K  SYSTEMS LTD J A K SYSTEMS LTD,44804,21/02/2021,12983,ANNUAL SERVICE - WATER,18/03/2021,91,455,546,OLSI - Swimming,Facilities Management,60200
http://statistics.data.gov.uk/id/local-authority/12UE,Huntingdonshire District Council,200542,MIRAMAR ENGINEERING LTD MIRAMAR ENGINEERING LTD,45301,16/02/2021,5218,OL ST IVES,11/03/2021,70,350,420,OLSIO - Site & Centre Management,Facilities Management,60200
http://statistics.data.gov.uk/id/local-authority/12UE,Huntingdonshire District Council,200542,MIRAMAR ENGINEERING LTD MIRAMAR ENGINEERING LTD,45782,16/02/2021,5214,OL ST NEOTS,25/03/2021,640,3200,3840,OLSN - Site & Centre Management,Facilities Management,60200
http://statistics.data.gov.uk/id/local-authority/12UE,Huntingdonshire District Council,200427,J A K  SYSTEMS LTD J A K SYSTEMS LTD,45779,21/02/2021,12980,OL ST NEOTS,25/03/2021,198.73,993.64,1192.37,OLSN - Site & Centre Management,Facilities Management,60200
http://statistics.data.gov.uk/id/local-authority/12UE,Huntingdonshire District Council,200694,ROGER WILSON ELECTRONICS ROGER WILSON ELECTRONICS,43681,08/11/2020,10514,OL ST NEOTS,28/01/2021,77.2,385.99,463.19,OLSN - Site & Centre Management,Facilities Management,60200
http://statistics.data.gov.uk/id/local-authority/12UE,Huntingdonshire District Council,200369,HEASELL ELECTROMECHANICAL SERVICES LTD HEASELL ELECTROMECHANICAL SERVICES LTD,42751,30/12/2020,436015,OL ST NEOTS,21/01/2021,71.96,359.8,431.76,OLSN - Site & Centre Management,Facilities Management,60200
http://statistics.data.gov.uk/id/local-authority/12UE,Huntingdonshire District Council,201660,TOTAL ENVIRONMENTAL COMPLIANCE LTD,44438,08/02/2021,36834,OL ST NEOTS,04/03/2021,70,350,420,OLSN - Site & Centre Management,Facilities Management,60200
http://statistics.data.gov.uk/id/local-authority/12UE,Huntingdonshire District Council,200542,MIRAMAR ENGINEERING LTD MIRAMAR ENGINEERING LTD,43991,25/01/2021,5084,OL ST NEOTS,18/02/2021,67,335,402,OLSN - Site & Centre Management,Facilities Management,60200
http://statistics.data.gov.uk/id/local-authority/12UE,Huntingdonshire District Council,200427,J A K  SYSTEMS LTD J A K SYSTEMS LTD,44804,21/02/2021,12983,ANNUAL SERVICE - WATER,18/03/2021,91,455,546,OLSN - Swimming,Facilities Management,60200
http://statistics.data.gov.uk/id/local-authority/12UE,Huntingdonshire District Council,200131,BROXAP LTD BROXAP LTD,44569,11/02/2021,INV271863,OPEN SPACE WORKS,11/03/2021,212.4,1062,1274.4,Parks & Open Spaces,Facilities Management,60200
http://statistics.data.gov.uk/id/local-authority/12UE,Huntingdonshire District Council,200542,MIRAMAR ENGINEERING LTD MIRAMAR ENGINEERING LTD,45276,16/02/2021,5231,RIVERSIDE PAVILION,11/03/2021,100,500,600,Parks & Open Spaces,Facilities Management,60200
http://statistics.data.gov.uk/id/local-authority/12UE,Huntingdonshire District Council,200478,LATTENBURY SERVICES LATTENBURY SERVICES,42554,18/12/2020,17249,GUTTERING,14/01/2021,372,1860,2232,Parks & Open Spaces,Facilities Management,60200
http://statistics.data.gov.uk/id/local-authority/12UE,Huntingdonshire District Council,200542,MIRAMAR ENGINEERING LTD MIRAMAR ENGINEERING LTD,45281,16/02/2021,5219,PFH,11/03/2021,560,2800,3360,Pathfinder House,Facilities Management,60200
http://statistics.data.gov.uk/id/local-authority/12UE,Huntingdonshire District Council,200891,RAFFERTY LIGHTNING PROTECTION LTD,44433,29/01/2021,1826,ST IVES ENTERPRISE CENTRE,25/02/2021,288,1440,1728,Pathfinder House,Facilities Management,60200
http://statistics.data.gov.uk/id/local-authority/12UE,Huntingdonshire District Council,201660,TOTAL ENVIRONMENTAL COMPLIANCE LTD,44702,12/02/2021,36930,PFH,11/03/2021,315,1575,1890,Pathfinder House,Facilities Management,60200
http://statistics.data.gov.uk/id/local-authority/12UE,Huntingdonshire District Council,200659,R A BAKER GLAZIERS & MERCHANTS LTD R A BAKER GLAZIERS & MERCHANTS LTD,44826,22/02/2021,143099,SCAFFOLDING,18/03/2021,165.11,825.53,990.64,Pathfinder House,Facilities Management,60200
http://statistics.data.gov.uk/id/local-authority/12UE,Huntingdonshire District Council,201404,EVACU8,42276,10/12/2020,1864,EQUIPMENT SERVICING,07/01/2021,49,245,294,Pathfinder House,Facilities Management,60200
http://statistics.data.gov.uk/id/local-authority/12UE,Huntingdonshire District Council,200542,MIRAMAR ENGINEERING LTD MIRAMAR ENGINEERING LTD,45274,16/02/2021,5232,PAXTON PITS,11/03/2021,70,350,420,Paxton Pits,Facilities Management,60200
http://statistics.data.gov.uk/id/local-authority/12UE,Huntingdonshire District Council,201660,TOTAL ENVIRONMENTAL COMPLIANCE LTD,44435,04/02/2021,36797,PAXTON PITS,04/03/2021,55,275,330,Paxton Pits,Facilities Management,60200
http://statistics.data.gov.uk/id/local-authority/12UE,Huntingdonshire District Council,200429,J BREHENY CIVIL ENGINEERING LTD J BREHENY CIVIL ENGINEERING LTD,45900,05/03/2021,HM/5106/33829,MINOR WORKS FRAMEWORK,25/03/2021,65,325,390,St Ives Bus Station,Facilities Management,60200
http://statistics.data.gov.uk/id/local-authority/12UE,Huntingdonshire District Council,200891,RAFFERTY LIGHTNING PROTECTION LTD,44788,19/02/2021,1900,REPAIRS - OAK TREE,18/03/2021,81,405,486,St Ives Enterprise Centre,Facilities Management,60200
http://statistics.data.gov.uk/id/local-authority/12UE,Huntingdonshire District Council,200429,J BREHENY CIVIL ENGINEERING LTD J BREHENY CIVIL ENGINEERING LTD,44396,05/02/2021,HM/5106/33711,MINOR WORKS FRAMEWORK,04/03/2021,90,450,540,Tebbuts Road Pc - St Neots,Facilities Management,60200
http://statistics.data.gov.uk/id/local-authority/12UE,Huntingdonshire District Council,200542,MIRAMAR ENGINEERING LTD MIRAMAR ENGINEERING LTD,45328,26/02/2021,5208,EASTFIELD HOUSE,25/03/2021,172,860,1032,Vehicle Maintenance,Facilities Management,60200
http://statistics.data.gov.uk/id/local-authority/12UE,Huntingdonshire District Council,200542,MIRAMAR ENGINEERING LTD MIRAMAR ENGINEERING LTD,44559,29/04/2020,4016,EASTFIELD HOUSE,18/02/2021,160,800,960,Vehicle Maintenance,Facilities Management,60200
http://statistics.data.gov.uk/id/local-authority/12UE,Huntingdonshire District Council,200542,MIRAMAR ENGINEERING LTD MIRAMAR ENGINEERING LTD,44561,30/04/2020,4029,EASTFIELD HOUSE,18/02/2021,160,800,960,Vehicle Maintenance,Facilities Management,60200
http://statistics.data.gov.uk/id/local-authority/12UE,Huntingdonshire District Council,200075,B S GRAVES ELECTRICAL LTD B S GRAVES ELECTRICAL LTD,45335,02/03/2021,29801,EASTFIELD HOUSE,25/03/2021,140,700,840,Vehicle Maintenance,Facilities Management,60200
http://statistics.data.gov.uk/id/local-authority/12UE,Huntingdonshire District Council,200427,J A K  SYSTEMS LTD J A K SYSTEMS LTD,42790,23/12/2020,12872,OL HUNTINGDON,14/01/2021,60,300,360,Hunt Leis C - Gen Improve (Cs),Maintenance - Building,60201
http://statistics.data.gov.uk/id/local-authority/12UE,Huntingdonshire District Council,202140,SHARMAN GRIMWADE LTD,43508,30/11/2020,20140,OL ST IVES,21/01/2021,218.4,1092,1310.4,OL St Ives Changing Rooms,Maintenance - Building,60201
http://statistics.data.gov.uk/id/local-authority/12UE,Huntingdonshire District Council,201519,LANO SPORTS,45124,02/03/2021,SIS210000115,OL ST NEOTS,25/03/2021,0,11078.8,11078.8,OL St Neots Synthetic Pitch,Maintenance - Building,60201
http://statistics.data.gov.uk/id/local-authority/12UE,Huntingdonshire District Council,200690,ROBINSON LOW FRANCIS LLP ROBINSON LOW FRANCIS LLP,45253,03/03/2021,SIN060372,OL ST NEOTS,25/03/2021,352,1760,2112,OL St Neots Synthetic Pitch,Maintenance - Building,60201
http://statistics.data.gov.uk/id/local-authority/12UE,Huntingdonshire District Council,200427,J A K  SYSTEMS LTD J A K SYSTEMS LTD,42809,23/12/2020,12874,OL ST NEOTS,14/01/2021,219.93,1099.67,1319.6,Sn Leis C - Gen Improve (Cs),Maintenance - Building,60201
http://statistics.data.gov.uk/id/local-authority/12UE,Huntingdonshire District Council,200542,MIRAMAR ENGINEERING LTD MIRAMAR ENGINEERING LTD,42262,10/12/2020,4884,OL ST IVES,07/01/2021,944,4720,5664,St Ivo L C - Outdoor Gen Mtce (Cs),Maintenance - Building,60201
http://statistics.data.gov.uk/id/local-authority/12UE,Huntingdonshire District Council,200225,DACLA PROPERTY SERVICES DACLA PROPERTY SERVICES,45123,27/02/2021,215,OL ST IVES,04/03/2021,0,557,557,St Ivo L C - Outdoor Gen Mtce (Cs),Maintenance - Building,60201
http://statistics.data.gov.uk/id/local-authority/12UE,Huntingdonshire District Council,200542,MIRAMAR ENGINEERING LTD MIRAMAR ENGINEERING LTD,43120,04/01/2021,4971,OL ST IVES,28/01/2021,78,390,468,St Ivo L C - Outdoor Gen Mtce (Cs),Maintenance - Building,60201
http://statistics.data.gov.uk/id/local-authority/12UE,Huntingdonshire District Council,200418,INTACEPT MANAGEMENT LIMITED INTACEPT MANAGEMENT LIMITED,43188,30/09/2020,1110190,MULTI STOREY CAR PARK,14/01/2021,695.6,3478,4173.6,Car Parks,Improvements,60240
http://statistics.data.gov.uk/id/local-authority/12UE,Huntingdonshire District Council,200664,RAPID RESPONSE LOCKSMITHS RAPID RESPONSE LOCKSMITHS,43915,26/01/2021,1936,LOCKS,18/02/2021,106.5,532.5,639,Huntingdon Bus Station,Improvements,60240
http://statistics.data.gov.uk/id/local-authority/12UE,Huntingdonshire District Council,202505,FLEXTRONICS GLOBAL SERVICES (MANCHESTER) LTD,45600,22/12/2020,LEN058391,3cict epair service,18/03/2021,96.81,484.02,580.83,SCDC Recoverable,Improvements,60240
http://statistics.data.gov.uk/id/local-authority/12UE,Huntingdonshire District Council,200478,LATTENBURY SERVICES LATTENBURY SERVICES,42375,16/12/2020,17244,BUILDING REPAIRS,07/01/2021,1336,6680,8016,Commercial Investment Strategy,Asbestos Investingation/Surveys,60260
http://statistics.data.gov.uk/id/local-authority/12UE,Huntingdonshire District Council,201618,ABBEY ROOFING,45035,08/01/2021,11115,PAXTON PITS,04/03/2021,156,780,936,Paxton Pits,Asbestos Investingation/Surveys,60260
http://statistics.data.gov.uk/id/local-authority/12UE,Huntingdonshire District Council,202310,BREYER GROUP PLC,43498,11/01/2021,50896,ST IVES BUS STATION,21/01/2021,145.92,729.58,875.5,St Ives Bus Station,Asbestos Investingation/Surveys,60260
http://statistics.data.gov.uk/id/local-authority/12UE,Huntingdonshire District Council,200429,J BREHENY CIVIL ENGINEERING LTD J BREHENY CIVIL ENGINEERING LTD,44313,05/02/2021,HM/5106/33709,MINOR WORKS FRAMEWORK,04/03/2021,625.2,3126,3751.2,Car Park Management,R & M Voids,60270
http://statistics.data.gov.uk/id/local-authority/12UE,Huntingdonshire District Council,200478,LATTENBURY SERVICES LATTENBURY SERVICES,44506,02/02/2021,17369,DITCH WORK,25/02/2021,792,3960,4752,Emergency Planning,R & M Voids,60270
http://statistics.data.gov.uk/id/local-authority/12UE,Huntingdonshire District Council,200478,LATTENBURY SERVICES LATTENBURY SERVICES,43858,22/01/2021,17354,DITCH WORK,18/02/2021,686,3430,4116,Emergency Planning,R & M Voids,60270
http://statistics.data.gov.uk/id/local-authority/12UE,Huntingdonshire District Council,202059.01,AQUASERVE MAINTENANCE LTD,44630,12/02/2021,AQMAIN21003,EMERGENCY CALL OUT,11/03/2021,245.02,1225.12,1470.14,Emergency Planning,R & M Voids,60270
http://statistics.data.gov.uk/id/local-authority/12UE,Huntingdonshire District Council,202211,CAMBRIDGESHIRE SAND AND GRAVEL LTD,44367,18/01/2021,PROFORMA,COUNTRY PARK,11/02/2021,210.42,1052.08,1262.5,Hinchingbrooke Country Park,R & M Voids,60270
http://statistics.data.gov.uk/id/local-authority/12UE,Huntingdonshire District Council,200772,TEMPLE LIFTS LIMITED TEMPLE LIFTS LIMITED,43863,25/01/2021,549513,MULTI STOREY CAR PARK,18/02/2021,768,3840,4608,Legal Challenge re Multi Storey Car Park,R & M Voids,60270
http://statistics.data.gov.uk/id/local-authority/12UE,Huntingdonshire District Council,200429,J BREHENY CIVIL ENGINEERING LTD J BREHENY CIVIL ENGINEERING LTD,43390,02/12/2020,HMG/5106/33493,MINOR WORKS FRAMEWORK,21/01/2021,63.2,316,379.2,Parks & Open Spaces,R & M Voids,60270
http://statistics.data.gov.uk/id/local-authority/12UE,Huntingdonshire District Council,200429,J BREHENY CIVIL ENGINEERING LTD J BREHENY CIVIL ENGINEERING LTD,43390,02/12/2020,HMG/5106/33493,MINOR WORKS FRAMEWORK,21/01/2021,69.78,348.88,418.66,Parks & Open Spaces,R & M Voids,60270
http://statistics.data.gov.uk/id/local-authority/12UE,Huntingdonshire District Council,200429,J BREHENY CIVIL ENGINEERING LTD J BREHENY CIVIL ENGINEERING LTD,42980,02/12/2020,HMG/5106/33495,BENCHES,07/01/2021,291,1455,1746,Parks & Open Spaces,R & M Voids,60270
http://statistics.data.gov.uk/id/local-authority/12UE,Huntingdonshire District Council,201118,ST NEOTS FENCING COMPANY LTD,44301,04/12/2020,INV-3664A,HILL RISE PARK,11/02/2021,125,625,750,Parks & Open Spaces,R & M Voids,60270
http://statistics.data.gov.uk/id/local-authority/12UE,Huntingdonshire District Council,201385,ST NEOTS AND DISTRICT FISH PRESERVATION AND ANGLING SOCIETY,43236,11/01/2021,JS/AC/015,DREDGING,04/02/2021,0,5000,5000,Watercourses,R & M Voids,60270
http://statistics.data.gov.uk/id/local-authority/12UE,Huntingdonshire District Council,202059,AQUASERVE MANAGEMENT LTD,42648,18/12/2020,AQMAN20017,WATERCOURSE INSPECTION,14/01/2021,559.72,2798.6,3358.32,Watercourses,R & M Voids,60270
http://statistics.data.gov.uk/id/local-authority/12UE,Huntingdonshire District Council,200478,LATTENBURY SERVICES LATTENBURY SERVICES,44824,12/02/2021,17411,DITCH WORK,11/03/2021,306,1530,1836,Watercourses,R & M Voids,60270
http://statistics.data.gov.uk/id/local-authority/12UE,Huntingdonshire District Council,200478,LATTENBURY SERVICES LATTENBURY SERVICES,43295,13/01/2021,17290,OPEN SPACE WORKS,04/02/2021,170,850,1020,Watercourses,R & M Voids,60270
http://statistics.data.gov.uk/id/local-authority/12UE,Huntingdonshire District Council,202059,AQUASERVE MANAGEMENT LTD,45062,26/02/2021,AQMAN21005,OPEN SPACE WORKS,25/03/2021,84.19,420.92,505.11,Watercourses,R & M Voids,60270
http://statistics.data.gov.uk/id/local-authority/12UE,Huntingdonshire District Council,202059,AQUASERVE MANAGEMENT LTD,45033,26/02/2021,AQMAN21004,WATERCOURSE INSPECTION,25/03/2021,59.97,299.85,359.82,Watercourses,R & M Voids,60270
http://statistics.data.gov.uk/id/local-authority/12UE,Huntingdonshire District Council,200429,J BREHENY CIVIL ENGINEERING LTD J BREHENY CIVIL ENGINEERING LTD,43390,02/12/2020,HMG/5106/33493,MINOR WORKS FRAMEWORK,21/01/2021,264.63,1323.16,1587.79,Park Fencing,Site Alterations And Materials,60273
http://statistics.data.gov.uk/id/local-authority/12UE,Huntingdonshire District Council,200429,J BREHENY CIVIL ENGINEERING LTD J BREHENY CIVIL ENGINEERING LTD,43390,02/12/2020,HMG/5106/33493,MINOR WORKS FRAMEWORK,21/01/2021,198.37,991.87,1190.24,Park Fencing,Site Alterations And Materials,60273
http://statistics.data.gov.uk/id/local-authority/12UE,Huntingdonshire District Council,200429,J BREHENY CIVIL ENGINEERING LTD J BREHENY CIVIL ENGINEERING LTD,43390,02/12/2020,HMG/5106/33493,MINOR WORKS FRAMEWORK,21/01/2021,82.3,411.48,493.78,Park Fencing,Site Alterations And Materials,60273
http://statistics.data.gov.uk/id/local-authority/12UE,Huntingdonshire District Council,200429,J BREHENY CIVIL ENGINEERING LTD J BREHENY CIVIL ENGINEERING LTD,44313,05/02/2021,HM/5106/33709,MINOR WORKS FRAMEWORK,04/03/2021,3078,15390,18468,Traveller Security Improvements,Site Alterations And Materials,60273
http://statistics.data.gov.uk/id/local-authority/12UE,Huntingdonshire District Council,200429,J BREHENY CIVIL ENGINEERING LTD J BREHENY CIVIL ENGINEERING LTD,44313,05/02/2021,HM/5106/33709,MINOR WORKS FRAMEWORK,04/03/2021,1208,6040,7248,Traveller Security Improvements,Site Alterations And Materials,60273
http://statistics.data.gov.uk/id/local-authority/12UE,Huntingdonshire District Council,200429,J BREHENY CIVIL ENGINEERING LTD J BREHENY CIVIL ENGINEERING LTD,44313,05/02/2021,HM/5106/33709,MINOR WORKS FRAMEWORK,04/03/2021,1812,9060,10872,Traveller Security Improvements,Site Alterations And Materials,60273
http://statistics.data.gov.uk/id/local-authority/12UE,Huntingdonshire District Council,201138,BORNEY UK LTD,42500,18/12/2020,52523,SIGNS,14/01/2021,418,2090,2508,Car Park Management,Signs,60299
http://statistics.data.gov.uk/id/local-authority/12UE,Huntingdonshire District Council,201138,BORNEY UK LTD,42403,16/12/2020,52494,BANNERS,07/01/2021,316.75,1583.75,1900.5,Covid-19,Signs,60299
http://statistics.data.gov.uk/id/local-authority/12UE,Huntingdonshire District Council,202133,THE RENEWABLE ENERGY COMPANY LTD,43753,09/10/2020,7.00005E+11,CARDINAL WAY HUNTINGDON,28/01/2021,17.03,340.58,357.61,Bridge Place (GOD),Signs Erecting & Removal,60300
http://statistics.data.gov.uk/id/local-authority/12UE,Huntingdonshire District Council,202133,THE RENEWABLE ENERGY COMPANY LTD,43947,09/01/2021,7.00005E+11,CARDINAL WAY HUNTINGDON,04/02/2021,17.03,340.58,357.61,Bridge Place (GOD),Signs Erecting & Removal,60300
http://statistics.data.gov.uk/id/local-authority/12UE,Huntingdonshire District Council,200278,E-ON ENERGY E-ON ENERGY,43474,01/10/2020,H18FEFF427,BUS SHELTER LIGHTING,21/01/2021,26.94,538.74,565.68,Bus Shelters,Signs Erecting & Removal,60300
http://statistics.data.gov.uk/id/local-authority/12UE,Huntingdonshire District Council,200278,E-ON ENERGY E-ON ENERGY,43481,02/01/2021,H1955325DB,BUS SHELTER LIGHTING,21/01/2021,26.94,538.74,565.68,Bus Shelters,Signs Erecting & Removal,60300
http://statistics.data.gov.uk/id/local-authority/12UE,Huntingdonshire District Council,202133,THE RENEWABLE ENERGY COMPANY LTD,43943,09/01/2021,7.00005E+11,MAYFIELD ROAD,04/02/2021,14.59,291.8,306.39,Buttsgrove Way (HUN),Signs Erecting & Removal,60300
http://statistics.data.gov.uk/id/local-authority/12UE,Huntingdonshire District Council,202133,THE RENEWABLE ENERGY COMPANY LTD,43960,09/10/2020,7.00005E+11,MAYFIELD ROAD,04/02/2021,14.59,291.8,306.39,Buttsgrove Way (HUN),Signs Erecting & Removal,60300
http://statistics.data.gov.uk/id/local-authority/12UE,Huntingdonshire District Council,202133,THE RENEWABLE ENERGY COMPANY LTD,43750,14/10/2020,4405409,OAKTREE HEALTH CENTRE,28/01/2021,12.72,254.46,267.18,Buttsgrove Way (HUN),Signs Erecting & Removal,60300
http://statistics.data.gov.uk/id/local-authority/12UE,Huntingdonshire District Council,202133,THE RENEWABLE ENERGY COMPANY LTD,43963,09/01/2021,7.00005E+11,OAKTREE HEALTH CENTRE,04/02/2021,12.72,254.46,267.18,Buttsgrove Way (HUN),Signs Erecting & Removal,60300
http://statistics.data.gov.uk/id/local-authority/12UE,Huntingdonshire District Council,200278,E-ON ENERGY E-ON ENERGY,43467,01/10/2020,H18FEFF336,CCTV CAMERAS,21/01/2021,313.64,1568.21,1881.85,Cctv Shared Service Hosting,Signs Erecting & Removal,60300
http://statistics.data.gov.uk/id/local-authority/12UE,Huntingdonshire District Council,200278,E-ON ENERGY E-ON ENERGY,43482,25/02/2020,H195532562,UNMETERED CCTV,21/01/2021,313.64,1568.21,1881.85,Cctv Shared Service Hosting,Signs Erecting & Removal,60300
http://statistics.data.gov.uk/id/local-authority/12UE,Huntingdonshire District Council,200363,HAVEN POWER LTD HAVEN POWER LTD,43111,08/01/2021,IN1104899299,EASTFIELD HOUSE,14/01/2021,963.41,4817.04,5780.45,Eastfield House,Signs Erecting & Removal,60300
http://statistics.data.gov.uk/id/local-authority/12UE,Huntingdonshire District Council,200363,HAVEN POWER LTD HAVEN POWER LTD,44386,03/02/2021,IN1104952038,EASTFIELD HOUSE,11/02/2021,914.85,4574.26,5489.11,Eastfield House,Signs Erecting & Removal,60300
http://statistics.data.gov.uk/id/local-authority/12UE,Huntingdonshire District Council,200363,HAVEN POWER LTD HAVEN POWER LTD,45166,03/03/2021,IN1105017707,EASTFIELD HOUSE,11/03/2021,740.89,3704.44,4445.33,Eastfield House,Signs Erecting & Removal,60300
http://statistics.data.gov.uk/id/local-authority/12UE,Huntingdonshire District Council,200126,BRITISH GAS BUSINESS BRITISH GAS BUSINESS,44263,02/02/2021,991384389,EASTFIELD HOUSE,11/02/2021,197,984.98,1181.98,Eastfield House,Signs Erecting & Removal,60300
http://statistics.data.gov.uk/id/local-authority/12UE,Huntingdonshire District Council,200126,BRITISH GAS BUSINESS BRITISH GAS BUSINESS,42943,06/01/2021,162233133,EASTFIELD HOUSE,14/01/2021,181.96,909.81,1091.77,Eastfield House,Signs Erecting & Removal,60300
http://statistics.data.gov.uk/id/local-authority/12UE,Huntingdonshire District Council,200126,BRITISH GAS BUSINESS BRITISH GAS BUSINESS,45157,03/03/2021,998374550,EASTFIELD HOUSE,11/03/2021,163.26,816.32,979.58,Eastfield House,Signs Erecting & Removal,60300
http://statistics.data.gov.uk/id/local-authority/12UE,Huntingdonshire District Council,200913,WAVE  ANGLIAN WATER BUSINESS,42913,05/01/2021,8355949,EASTFIELD HOUSE,14/01/2021,0,257.45,257.45,Eastfield House,Signs Erecting & Removal,60300
http://statistics.data.gov.uk/id/local-authority/12UE,Huntingdonshire District Council,200913,WAVE  ANGLIAN WATER BUSINESS,42913,05/01/2021,8355949,EASTFIELD HOUSE,14/01/2021,0,279.22,279.22,Eastfield House,Signs Erecting & Removal,60300
http://statistics.data.gov.uk/id/local-authority/12UE,Huntingdonshire District Council,202133,THE RENEWABLE ENERGY COMPANY LTD,43698,14/10/2020,4405416,MARKET HILL HUNTINGDON,28/01/2021,119,595.02,714.02,Globe Place (STI),Signs Erecting & Removal,60300
http://statistics.data.gov.uk/id/local-authority/12UE,Huntingdonshire District Council,202133,THE RENEWABLE ENERGY COMPANY LTD,43731,14/10/2020,4405297,HINCHINGBROOKE PARK ROAD,28/01/2021,449.24,2246.2,2695.44,Hinchingbrooke Park Cafe,Signs Erecting & Removal,60300
http://statistics.data.gov.uk/id/local-authority/12UE,Huntingdonshire District Council,202133,THE RENEWABLE ENERGY COMPANY LTD,43977,09/01/2021,7.00005E+11,HINCHINGBROOKE PARK ROAD,04/02/2021,449.24,2246.2,2695.44,Hinchingbrooke Park Cafe,Signs Erecting & Removal,60300
http://statistics.data.gov.uk/id/local-authority/12UE,Huntingdonshire District Council,202133,THE RENEWABLE ENERGY COMPANY LTD,43975,09/01/2021,7.00005E+11,HINCHINGBROOKE PARK ROAD,04/02/2021,106.28,531.38,637.66,Hinchingbrooke Park Management,Signs Erecting & Removal,60300
http://statistics.data.gov.uk/id/local-authority/12UE,Huntingdonshire District Council,202133,THE RENEWABLE ENERGY COMPANY LTD,43746,14/10/2020,4405373,HINCHINGBROOKE PARK ROAD,28/01/2021,15.66,313.27,328.93,Hinchingbrooke Park Management,Signs Erecting & Removal,60300
http://statistics.data.gov.uk/id/local-authority/12UE,Huntingdonshire District Council,202133,THE RENEWABLE ENERGY COMPANY LTD,43704,09/10/2020,7.00005E+11,MILL COMMON HUNTINGDON,28/01/2021,336.73,1683.65,2020.38,Huntingdon Bus Station,Signs Erecting & Removal,60300
http://statistics.data.gov.uk/id/local-authority/12UE,Huntingdonshire District Council,202133,THE RENEWABLE ENERGY COMPANY LTD,43961,09/01/2021,7.00005E+11,MILL COMMON HUNTINGDON,04/02/2021,336.73,1683.65,2020.38,Huntingdon Bus Station,Signs Erecting & Removal,60300
http://statistics.data.gov.uk/id/local-authority/12UE,Huntingdonshire District Council,200913,WAVE  ANGLIAN WATER BUSINESS,43680,08/01/2021,8371034,CARAVAN SITE,28/01/2021,0,37826.86,37826.86,Mobile Home Park,Signs Erecting & Removal,60300
http://statistics.data.gov.uk/id/local-authority/12UE,Huntingdonshire District Council,200278,E-ON ENERGY E-ON ENERGY,44355,01/02/2021,H1971D78C2,MOBILE HOME PARK,11/02/2021,150.75,3015.08,3165.83,Mobile Home Park,Signs Erecting & Removal,60300
http://statistics.data.gov.uk/id/local-authority/12UE,Huntingdonshire District Council,200278,E-ON ENERGY E-ON ENERGY,43540,02/01/2021,H195523FFA,ST NEOTS MOBILE HOME PARK,21/01/2021,142.22,2844.39,2986.61,Mobile Home Park,Signs Erecting & Removal,60300
http://statistics.data.gov.uk/id/local-authority/12UE,Huntingdonshire District Council,200278,E-ON ENERGY E-ON ENERGY,45969,02/03/2021,H198D00DAE,MOBILE HOME PARK,25/03/2021,125.11,2502.15,2627.26,Mobile Home Park,Signs Erecting & Removal,60300
http://statistics.data.gov.uk/id/local-authority/12UE,Huntingdonshire District Council,200278,E-ON ENERGY E-ON ENERGY,43539,02/12/2020,H1939CB7C9,ST NEOTS MOBILE HOME PARK,21/01/2021,105.04,2100.76,2205.8,Mobile Home Park,Signs Erecting & Removal,60300
http://statistics.data.gov.uk/id/local-authority/12UE,Huntingdonshire District Council,200278,E-ON ENERGY E-ON ENERGY,43538,10/10/2020,H1900BDCC8,ST NEOTS MOBILE HOME PARK,21/01/2021,54.58,1091.51,1146.09,Mobile Home Park,Signs Erecting & Removal,60300
http://statistics.data.gov.uk/id/local-authority/12UE,Huntingdonshire District Council,202133,THE RENEWABLE ENERGY COMPANY LTD,43732,14/10/2020,4405307,MULTI STOREY CAR PARK,28/01/2021,364.15,1820.76,2184.91,MSCP (HUN),Signs Erecting & Removal,60300
http://statistics.data.gov.uk/id/local-authority/12UE,Huntingdonshire District Council,202133,THE RENEWABLE ENERGY COMPANY LTD,43948,09/01/2021,7.00005E+11,MULTI STOREY CAR PARK,04/02/2021,364.15,1820.76,2184.91,MSCP (HUN),Signs Erecting & Removal,60300
http://statistics.data.gov.uk/id/local-authority/12UE,Huntingdonshire District Council,202133,THE RENEWABLE ENERGY COMPANY LTD,43983,09/10/2020,7.00005E+11,CHEQUERS COURT HUNTINGDON,04/02/2021,18.76,375.12,393.88,MSCP (HUN),Signs Erecting & Removal,60300
http://statistics.data.gov.uk/id/local-authority/12UE,Huntingdonshire District Council,202133,THE RENEWABLE ENERGY COMPANY LTD,43985,09/10/2020,7.00005E+11,PARK LANE HUNTINGDON,04/02/2021,19.26,385.25,404.51,Nursery Project - Gmc,Signs Erecting & Removal,60300
http://statistics.data.gov.uk/id/local-authority/12UE,Huntingdonshire District Council,200363,HAVEN POWER LTD HAVEN POWER LTD,43112,08/01/2021,IN1104899298,OL HUNTINGDON,14/01/2021,540.72,2703.62,3244.34,OLH - Site & Centre Management,Signs Erecting & Removal,60300
http://statistics.data.gov.uk/id/local-authority/12UE,Huntingdonshire District Council,200363,HAVEN POWER LTD HAVEN POWER LTD,44106,03/02/2021,IN1104952037,OL HUNTINGDON,11/02/2021,341.27,1706.36,2047.63,OLH - Site & Centre Management,Signs Erecting & Removal,60300
http://statistics.data.gov.uk/id/local-authority/12UE,Huntingdonshire District Council,200363,HAVEN POWER LTD HAVEN POWER LTD,45169,03/03/2021,IN1105017706,OL HUNTINGDON,11/03/2021,297.08,1485.4,1782.48,OLH - Site & Centre Management,Signs Erecting & Removal,60300
http://statistics.data.gov.uk/id/local-authority/12UE,Huntingdonshire District Council,200126,BRITISH GAS BUSINESS BRITISH GAS BUSINESS,44096,02/02/2021,991384382,OL HUNTINGDON,11/02/2021,170.27,851.35,1021.62,OLH - Site & Centre Management,Signs Erecting & Removal,60300
http://statistics.data.gov.uk/id/local-authority/12UE,Huntingdonshire District Council,200126,BRITISH GAS BUSINESS BRITISH GAS BUSINESS,43098,06/01/2021,162233126,OL HUNTINGDON,14/01/2021,168.29,841.46,1009.75,OLH - Site & Centre Management,Signs Erecting & Removal,60300
http://statistics.data.gov.uk/id/local-authority/12UE,Huntingdonshire District Council,200126,BRITISH GAS BUSINESS BRITISH GAS BUSINESS,45245,03/03/2021,998374543,OL HUNTINGDON,11/03/2021,142.12,710.61,852.73,OLH - Site & Centre Management,Signs Erecting & Removal,60300
http://statistics.data.gov.uk/id/local-authority/12UE,Huntingdonshire District Council,200278,E-ON ENERGY E-ON ENERGY,43092,02/01/2021,H1955088EB,OL HUNTINGDON,14/01/2021,427.26,2136.32,2563.58,OLH - Swimming,Signs Erecting & Removal,60300
http://statistics.data.gov.uk/id/local-authority/12UE,Huntingdonshire District Council,200126,BRITISH GAS BUSINESS BRITISH GAS BUSINESS,43100,06/01/2021,162233128,OL HUNTINGDON,14/01/2021,419.07,2095.37,2514.44,OLH - Swimming,Signs Erecting & Removal,60300
http://statistics.data.gov.uk/id/local-authority/12UE,Huntingdonshire District Council,200278,E-ON ENERGY E-ON ENERGY,44268,01/02/2021,H1971F5623,OL HUNTINGDON,11/02/2021,324.61,1623.03,1947.64,OLH - Swimming,Signs Erecting & Removal,60300
http://statistics.data.gov.uk/id/local-authority/12UE,Huntingdonshire District Council,200278,E-ON ENERGY E-ON ENERGY,45273,02/03/2021,H198D1734F,OL HUNTINGDON,11/03/2021,273.14,1365.68,1638.82,OLH - Swimming,Signs Erecting & Removal,60300
http://statistics.data.gov.uk/id/local-authority/12UE,Huntingdonshire District Council,200126,BRITISH GAS BUSINESS BRITISH GAS BUSINESS,44093,02/02/2021,991384384,OL HUNTINGDON,11/02/2021,185.63,928.16,1113.79,OLH - Swimming,Signs Erecting & Removal,60300
http://statistics.data.gov.uk/id/local-authority/12UE,Huntingdonshire District Council,200913,WAVE  ANGLIAN WATER BUSINESS,44794,18/02/2021,8534128,OL HUNTINGDON,04/03/2021,0,501.8,501.8,OLH - Swimming,Signs Erecting & Removal,60300
http://statistics.data.gov.uk/id/local-authority/12UE,Huntingdonshire District Council,200126,BRITISH GAS BUSINESS BRITISH GAS BUSINESS,45247,03/03/2021,998374545,OL HUNTINGDON,11/03/2021,71.9,359.48,431.38,OLH - Swimming,Signs Erecting & Removal,60300
http://statistics.data.gov.uk/id/local-authority/12UE,Huntingdonshire District Council,200278,E-ON ENERGY E-ON ENERGY,43091,02/01/2021,H195506901,OL RAMSEY,14/01/2021,393.08,1965.39,2358.47,OLR - Site & Centre Management,Signs Erecting & Removal,60300
http://statistics.data.gov.uk/id/local-authority/12UE,Huntingdonshire District Council,200126,BRITISH GAS BUSINESS BRITISH GAS BUSINESS,43104,06/01/2021,162233134,OL RAMSEY,14/01/2021,374.85,1874.26,2249.11,OLR - Site & Centre Management,Signs Erecting & Removal,60300
http://statistics.data.gov.uk/id/local-authority/12UE,Huntingdonshire District Council,200126,BRITISH GAS BUSINESS BRITISH GAS BUSINESS,44089,02/02/2021,991384390,OL RAMSEY,11/02/2021,368.29,1841.47,2209.76,OLR - Site & Centre Management,Signs Erecting & Removal,60300
http://statistics.data.gov.uk/id/local-authority/12UE,Huntingdonshire District Council,200913,WAVE  ANGLIAN WATER BUSINESS,44944,24/02/2021,8554183,OL RAMSEY,04/03/2021,0,1290.81,1290.81,OLR - Site & Centre Management,Signs Erecting & Removal,60300
http://statistics.data.gov.uk/id/local-authority/12UE,Huntingdonshire District Council,200126,BRITISH GAS BUSINESS BRITISH GAS BUSINESS,45251,03/03/2021,998374551,OL RAMSEY,11/03/2021,242.05,1210.23,1452.28,OLR - Site & Centre Management,Signs Erecting & Removal,60300
http://statistics.data.gov.uk/id/local-authority/12UE,Huntingdonshire District Council,200278,E-ON ENERGY E-ON ENERGY,44267,01/02/2021,H1971F682E,OL RAMSEY,11/02/2021,172.53,862.64,1035.17,OLR - Site & Centre Management,Signs Erecting & Removal,60300
http://statistics.data.gov.uk/id/local-authority/12UE,Huntingdonshire District Council,200913,WAVE  ANGLIAN WATER BUSINESS,44943,24/02/2021,8554170,OL RAMSEY,04/03/2021,0,831.57,831.57,OLR - Site & Centre Management,Signs Erecting & Removal,60300
http://statistics.data.gov.uk/id/local-authority/12UE,Huntingdonshire District Council,200278,E-ON ENERGY E-ON ENERGY,45268,02/03/2021,H198D17365,OL RAMSEY,11/03/2021,163.21,816.04,979.25,OLR - Site & Centre Management,Signs Erecting & Removal,60300
http://statistics.data.gov.uk/id/local-authority/12UE,Huntingdonshire District Council,200005,ABBEY COLLEGE ABBEY COLLEGE,43423,15/01/2021,1132,WATER CHARGES,11/02/2021,80,400.01,480.01,OLR - Site & Centre Management,Signs Erecting & Removal,60300
http://statistics.data.gov.uk/id/local-authority/12UE,Huntingdonshire District Council,200913,WAVE  ANGLIAN WATER BUSINESS,44807,18/02/2021,8534140,OL RAMSEY,04/03/2021,0,-1724.37,-1724.37,OLR - Site & Centre Management,Signs Erecting & Removal,60300
http://statistics.data.gov.uk/id/local-authority/12UE,Huntingdonshire District Council,200913,WAVE  ANGLIAN WATER BUSINESS,44795,13/12/2020,8281038,OL ST IVES,04/03/2021,0,15024.69,15024.69,OLSI - Site & Centre Management,Signs Erecting & Removal,60300
http://statistics.data.gov.uk/id/local-authority/12UE,Huntingdonshire District Council,200126,BRITISH GAS BUSINESS BRITISH GAS BUSINESS,43101,06/01/2021,162233129,OL ST IVES,14/01/2021,1253.92,6269.58,7523.5,OLSI - Site & Centre Management,Signs Erecting & Removal,60300
http://statistics.data.gov.uk/id/local-authority/12UE,Huntingdonshire District Council,200363,HAVEN POWER LTD HAVEN POWER LTD,43113,08/01/2021,IN1104899302,OL ST IVES,14/01/2021,828.59,4142.93,4971.52,OLSI - Site & Centre Management,Signs Erecting & Removal,60300
http://statistics.data.gov.uk/id/local-authority/12UE,Huntingdonshire District Council,200363,HAVEN POWER LTD HAVEN POWER LTD,44108,03/02/2021,IN1104952041,OL ST IVES,11/02/2021,822.1,4110.51,4932.61,OLSI - Site & Centre Management,Signs Erecting & Removal,60300
http://statistics.data.gov.uk/id/local-authority/12UE,Huntingdonshire District Council,200363,HAVEN POWER LTD HAVEN POWER LTD,45170,03/03/2021,IN1105017710,OL ST IVES,11/03/2021,807.2,4036.01,4843.21,OLSI - Site & Centre Management,Signs Erecting & Removal,60300
http://statistics.data.gov.uk/id/local-authority/12UE,Huntingdonshire District Council,200126,BRITISH GAS BUSINESS BRITISH GAS BUSINESS,44092,02/02/2021,991384385,OL ST IVES,11/02/2021,456.85,2284.26,2741.11,OLSI - Site & Centre Management,Signs Erecting & Removal,60300
http://statistics.data.gov.uk/id/local-authority/12UE,Huntingdonshire District Council,200742,ASTREA ACADEMY TRUST - ST IVO ACADEMY ST IVO SCHOOL,42602,18/12/2020,37SI36,WATER RECHARGES,14/01/2021,0,1320.4,1320.4,OLSI - Site & Centre Management,Signs Erecting & Removal,60300
http://statistics.data.gov.uk/id/local-authority/12UE,Huntingdonshire District Council,200913,WAVE  ANGLIAN WATER BUSINESS,44862,13/01/2021,8386315,OL ST IVES,04/03/2021,0,1260.12,1260.12,OLSI - Site & Centre Management,Signs Erecting & Removal,60300
http://statistics.data.gov.uk/id/local-authority/12UE,Huntingdonshire District Council,200913,WAVE  ANGLIAN WATER BUSINESS,44768,13/02/2021,8513144,OL ST IVES,04/03/2021,0,1256.04,1256.04,OLSI - Site & Centre Management,Signs Erecting & Removal,60300
http://statistics.data.gov.uk/id/local-authority/12UE,Huntingdonshire District Council,200742,ASTREA ACADEMY TRUST - ST IVO ACADEMY ST IVO SCHOOL,44587,16/02/2021,37SI 38,WATER RECHARGES,11/03/2021,0,532.34,532.34,OLSI - Site & Centre Management,Signs Erecting & Removal,60300
http://statistics.data.gov.uk/id/local-authority/12UE,Huntingdonshire District Council,200913,WAVE  ANGLIAN WATER BUSINESS,45658,13/03/2021,8662832,OLSI WATER,25/03/2021,0,321.47,321.47,OLSI - Site & Centre Management,Signs Erecting & Removal,60300
http://statistics.data.gov.uk/id/local-authority/12UE,Huntingdonshire District Council,200913,WAVE  ANGLIAN WATER BUSINESS,44770,18/02/2021,8534049,OL ST IVES,04/03/2021,0,-1256.04,-1256.04,OLSI - Site & Centre Management,Signs Erecting & Removal,60300
http://statistics.data.gov.uk/id/local-authority/12UE,Huntingdonshire District Council,200913,WAVE  ANGLIAN WATER BUSINESS,44769,18/02/2021,8534051,OL ST IVES,04/03/2021,0,-13161.62,-13161.62,OLSI - Site & Centre Management,Signs Erecting & Removal,60300
http://statistics.data.gov.uk/id/local-authority/12UE,Huntingdonshire District Council,200363,HAVEN POWER LTD HAVEN POWER LTD,43115,08/01/2021,IN1104899301,OL ST IVES,14/01/2021,811.05,4055.24,4866.29,OLSIO - Site & Centre Management,Signs Erecting & Removal,60300
http://statistics.data.gov.uk/id/local-authority/12UE,Huntingdonshire District Council,200363,HAVEN POWER LTD HAVEN POWER LTD,44107,03/02/2021,IN1104952040,OL ST IVES,11/02/2021,329.19,1645.97,1975.16,OLSIO - Site & Centre Management,Signs Erecting & Removal,60300
http://statistics.data.gov.uk/id/local-authority/12UE,Huntingdonshire District Council,200363,HAVEN POWER LTD HAVEN POWER LTD,45168,03/03/2021,IN1105017709,OL ST IVES,11/03/2021,245.57,1227.85,1473.42,OLSIO - Site & Centre Management,Signs Erecting & Removal,60300
http://statistics.data.gov.uk/id/local-authority/12UE,Huntingdonshire District Council,200126,BRITISH GAS BUSINESS BRITISH GAS BUSINESS,43103,06/01/2021,162233132,OL ST IVES,14/01/2021,162.51,812.56,975.07,OLSIO - Site & Centre Management,Signs Erecting & Removal,60300
http://statistics.data.gov.uk/id/local-authority/12UE,Huntingdonshire District Council,200913,WAVE  ANGLIAN WATER BUSINESS,42795,03/01/2021,8347874,OL ST IVES,14/01/2021,0,593.77,593.77,OLSIO - Site & Centre Management,Signs Erecting & Removal,60300
http://statistics.data.gov.uk/id/local-authority/12UE,Huntingdonshire District Council,200913,WAVE  ANGLIAN WATER BUSINESS,44087,03/02/2021,8463056,OL ST IVES,11/02/2021,0,592.35,592.35,OLSIO - Site & Centre Management,Signs Erecting & Removal,60300
http://statistics.data.gov.uk/id/local-authority/12UE,Huntingdonshire District Council,200913,WAVE  ANGLIAN WATER BUSINESS,45172,03/03/2021,8595616,OL ST IVES,04/03/2021,0,535.71,535.71,OLSIO - Site & Centre Management,Signs Erecting & Removal,60300
http://statistics.data.gov.uk/id/local-authority/12UE,Huntingdonshire District Council,200126,BRITISH GAS BUSINESS BRITISH GAS BUSINESS,44090,02/02/2021,991384388,OL ST IVES,11/02/2021,94.58,472.92,567.5,OLSIO - Site & Centre Management,Signs Erecting & Removal,60300
http://statistics.data.gov.uk/id/local-authority/12UE,Huntingdonshire District Council,200126,BRITISH GAS BUSINESS BRITISH GAS BUSINESS,43102,06/01/2021,162233130,OL ST NEOTS,14/01/2021,137.05,685.26,822.31,OLSN - Site & Centre Management,Signs Erecting & Removal,60300
http://statistics.data.gov.uk/id/local-authority/12UE,Huntingdonshire District Council,200126,BRITISH GAS BUSINESS BRITISH GAS BUSINESS,44091,02/02/2021,991384386,OL ST NEOTS,11/02/2021,94.61,473.06,567.67,OLSN - Site & Centre Management,Signs Erecting & Removal,60300
http://statistics.data.gov.uk/id/local-authority/12UE,Huntingdonshire District Council,200913,WAVE  ANGLIAN WATER BUSINESS,44761,07/10/2020,7922109,OL ST NEOTS,04/03/2021,0,-4707.08,-4707.08,OLSN - Site & Centre Management,Signs Erecting & Removal,60300
http://statistics.data.gov.uk/id/local-authority/12UE,Huntingdonshire District Council,200363,HAVEN POWER LTD HAVEN POWER LTD,42049,03/12/2020,IN1104815338,OL ST NEOTS,11/02/2021,1284.16,6420.79,7704.95,OLSN - Swimming,Signs Erecting & Removal,60300
http://statistics.data.gov.uk/id/local-authority/12UE,Huntingdonshire District Council,200363,HAVEN POWER LTD HAVEN POWER LTD,43114,08/01/2021,IN1104899297,OL ST NEOTS,14/01/2021,1190.31,5951.55,7141.86,OLSN - Swimming,Signs Erecting & Removal,60300
http://statistics.data.gov.uk/id/local-authority/12UE,Huntingdonshire District Council,200363,HAVEN POWER LTD HAVEN POWER LTD,44105,03/02/2021,IN1104952036,OL ST NEOTS,11/02/2021,1102.31,5511.53,6613.84,OLSN - Swimming,Signs Erecting & Removal,60300
http://statistics.data.gov.uk/id/local-authority/12UE,Huntingdonshire District Council,200363,HAVEN POWER LTD HAVEN POWER LTD,45167,03/03/2021,IN1105017705,OL ST NEOTS,11/03/2021,1031.21,5156.07,6187.28,OLSN - Swimming,Signs Erecting & Removal,60300
http://statistics.data.gov.uk/id/local-authority/12UE,Huntingdonshire District Council,200363,HAVEN POWER LTD HAVEN POWER LTD,44109,03/02/2021,IN1104952035,OL ST NEOTS,11/02/2021,929.01,4645.04,5574.05,OLSN - Swimming,Signs Erecting & Removal,60300
http://statistics.data.gov.uk/id/local-authority/12UE,Huntingdonshire District Council,200126,BRITISH GAS BUSINESS BRITISH GAS BUSINESS,43099,06/01/2021,162233127,OL ST NEOTS,14/01/2021,648.12,3240.58,3888.7,OLSN - Swimming,Signs Erecting & Removal,60300
http://statistics.data.gov.uk/id/local-authority/12UE,Huntingdonshire District Council,200126,BRITISH GAS BUSINESS BRITISH GAS BUSINESS,44094,02/02/2021,991384383,OL ST NEOTS,11/02/2021,477.92,2389.58,2867.5,OLSN - Swimming,Signs Erecting & Removal,60300
http://statistics.data.gov.uk/id/local-authority/12UE,Huntingdonshire District Council,200126,BRITISH GAS BUSINESS BRITISH GAS BUSINESS,45246,03/03/2021,998374544,OL ST NEOTS,11/03/2021,240.31,1201.57,1441.88,OLSN - Swimming,Signs Erecting & Removal,60300
http://statistics.data.gov.uk/id/local-authority/12UE,Huntingdonshire District Council,200913,WAVE  ANGLIAN WATER BUSINESS,42794,26/12/2020,8322154,OL ST NEOTS,07/01/2021,0,804.61,804.61,OLSN - Swimming,Signs Erecting & Removal,60300
http://statistics.data.gov.uk/id/local-authority/12UE,Huntingdonshire District Council,200913,WAVE  ANGLIAN WATER BUSINESS,45018,26/02/2021,8564850,OL ST NEOTS,04/03/2021,0,450.53,450.53,OLSN - Swimming,Signs Erecting & Removal,60300
http://statistics.data.gov.uk/id/local-authority/12UE,Huntingdonshire District Council,200913,WAVE  ANGLIAN WATER BUSINESS,43866,26/01/2021,8430663,OL ST NEOTS,04/02/2021,0,382.46,382.46,OLSN - Swimming,Signs Erecting & Removal,60300
http://statistics.data.gov.uk/id/local-authority/12UE,Huntingdonshire District Council,202133,THE RENEWABLE ENERGY COMPANY LTD,43724,14/10/2020,4405273,ST NEOTS,28/01/2021,111.73,558.66,670.39,Parks & Open Spaces,Signs Erecting & Removal,60300
http://statistics.data.gov.uk/id/local-authority/12UE,Huntingdonshire District Council,200278,E-ON ENERGY E-ON ENERGY,43469,01/10/2020,H18FEFF3C4,FOOTPATH AND CAR PARK LIGHTING,21/01/2021,16.55,331.08,347.63,Parks & Open Spaces,Signs Erecting & Removal,60300
http://statistics.data.gov.uk/id/local-authority/12UE,Huntingdonshire District Council,200278,E-ON ENERGY E-ON ENERGY,43479,02/01/2021,H1955325C5,FOOTPATH AND CAR PARK LIGHTING,21/01/2021,16.55,331.08,347.63,Parks & Open Spaces,Signs Erecting & Removal,60300
http://statistics.data.gov.uk/id/local-authority/12UE,Huntingdonshire District Council,202133,THE RENEWABLE ENERGY COMPANY LTD,43981,09/01/2021,7.00005E+11,CROSS HALL ROAD ST NEOTS,04/02/2021,15.87,317.36,333.23,Parks & Open Spaces,Signs Erecting & Removal,60300
http://statistics.data.gov.uk/id/local-authority/12UE,Huntingdonshire District Council,202133,THE RENEWABLE ENERGY COMPANY LTD,43715,09/10/2020,7.00005E+11,HARTFORD ROAD HUNTINGDON,28/01/2021,21.78,435.53,457.31,Parks & Open Spaces,Signs Erecting & Removal,60300
http://statistics.data.gov.uk/id/local-authority/12UE,Huntingdonshire District Council,202133,THE RENEWABLE ENERGY COMPANY LTD,43951,09/01/2021,7.00005E+11,HARTFORD ROAD HUNTINGDON,04/02/2021,21.78,435.53,457.31,Parks & Open Spaces,Signs Erecting & Removal,60300
http://statistics.data.gov.uk/id/local-authority/12UE,Huntingdonshire District Council,202133,THE RENEWABLE ENERGY COMPANY LTD,43971,09/01/2021,7.00005E+11,ST NEOTS,04/02/2021,111.73,558.66,670.39,Parks & Open Spaces,Signs Erecting & Removal,60300
http://statistics.data.gov.uk/id/local-authority/12UE,Huntingdonshire District Council,202133,THE RENEWABLE ENERGY COMPANY LTD,43707,09/10/2020,7.00005E+11,HUNTINGDON ROAD ST NEOTS,28/01/2021,246.96,1234.78,1481.74,Parks & Open Spaces,Signs Erecting & Removal,60300
http://statistics.data.gov.uk/id/local-authority/12UE,Huntingdonshire District Council,202133,THE RENEWABLE ENERGY COMPANY LTD,43954,09/01/2021,7.00005E+11,HUNTINGDON ROAD ST NEOTS,04/02/2021,246.96,1234.78,1481.74,Parks & Open Spaces,Signs Erecting & Removal,60300
http://statistics.data.gov.uk/id/local-authority/12UE,Huntingdonshire District Council,200363,HAVEN POWER LTD HAVEN POWER LTD,43110,08/01/2021,IN1104899300,PFH,14/01/2021,1677.31,8386.53,10063.84,Pathfinder House,Signs Erecting & Removal,60300
http://statistics.data.gov.uk/id/local-authority/12UE,Huntingdonshire District Council,200363,HAVEN POWER LTD HAVEN POWER LTD,44387,03/02/2021,IN1104952039,PFH,11/02/2021,1530.16,7650.78,9180.94,Pathfinder House,Signs Erecting & Removal,60300
http://statistics.data.gov.uk/id/local-authority/12UE,Huntingdonshire District Council,200363,HAVEN POWER LTD HAVEN POWER LTD,45287,03/03/2021,IN1105017708,PFH,11/03/2021,1470.07,7350.33,8820.4,Pathfinder House,Signs Erecting & Removal,60300
http://statistics.data.gov.uk/id/local-authority/12UE,Huntingdonshire District Council,200126,BRITISH GAS BUSINESS BRITISH GAS BUSINESS,44262,02/02/2021,991384387,PFH,11/02/2021,647.48,3237.41,3884.89,Pathfinder House,Signs Erecting & Removal,60300
http://statistics.data.gov.uk/id/local-authority/12UE,Huntingdonshire District Council,200126,BRITISH GAS BUSINESS BRITISH GAS BUSINESS,42942,06/01/2021,162233131,PFH,14/01/2021,524.25,2621.25,3145.5,Pathfinder House,Signs Erecting & Removal,60300
http://statistics.data.gov.uk/id/local-authority/12UE,Huntingdonshire District Council,200126,BRITISH GAS BUSINESS BRITISH GAS BUSINESS,45159,03/03/2021,998374548,PFH,11/03/2021,453.02,2265.12,2718.14,Pathfinder House,Signs Erecting & Removal,60300
http://statistics.data.gov.uk/id/local-authority/12UE,Huntingdonshire District Council,202133,THE RENEWABLE ENERGY COMPANY LTD,43974,15/01/2021,4499434,HIGH STREET ST NEOTS,04/02/2021,144.27,721.33,865.6,Paxton Pits,Signs Erecting & Removal,60300
http://statistics.data.gov.uk/id/local-authority/12UE,Huntingdonshire District Council,202133,THE RENEWABLE ENERGY COMPANY LTD,43706,09/10/2020,7.00005E+11,HIGH STREET ST NEOTS,28/01/2021,133.69,668.44,802.13,Paxton Pits,Signs Erecting & Removal,60300
http://statistics.data.gov.uk/id/local-authority/12UE,Huntingdonshire District Council,202133,THE RENEWABLE ENERGY COMPANY LTD,43725,14/10/2020,4405286,HIGH STREET ST NEOTS,28/01/2021,16.23,324.52,340.75,Paxton Pits,Signs Erecting & Removal,60300
http://statistics.data.gov.uk/id/local-authority/12UE,Huntingdonshire District Council,202133,THE RENEWABLE ENERGY COMPANY LTD,43973,09/01/2021,70005328027,HIGH STREET ST NEOTS,04/02/2021,16.23,324.52,340.75,Paxton Pits,Signs Erecting & Removal,60300
http://statistics.data.gov.uk/id/local-authority/12UE,Huntingdonshire District Council,202133,THE RENEWABLE ENERGY COMPANY LTD,43747,14/10/2020,4405383,PRINCES STREET HUNTINGDON,28/01/2021,12.52,250.35,262.87,Princes Street (HUN),Signs Erecting & Removal,60300
http://statistics.data.gov.uk/id/local-authority/12UE,Huntingdonshire District Council,202133,THE RENEWABLE ENERGY COMPANY LTD,43964,09/01/2021,7.00005E+11,PRINCES STREET HUNTINGDON,04/02/2021,12.52,250.35,262.87,Princes Street (HUN),Signs Erecting & Removal,60300
http://statistics.data.gov.uk/id/local-authority/12UE,Huntingdonshire District Council,202133,THE RENEWABLE ENERGY COMPANY LTD,43735,14/10/2020,4405322,HARTFORD ROAD HUNTINGDON,28/01/2021,19.64,392.7,412.34,Riverside (HUN),Signs Erecting & Removal,60300
http://statistics.data.gov.uk/id/local-authority/12UE,Huntingdonshire District Council,202133,THE RENEWABLE ENERGY COMPANY LTD,43950,09/01/2021,7.00005E+11,HARTFORD ROAD HUNTINGDON,04/02/2021,19.64,392.7,412.34,Riverside (HUN),Signs Erecting & Removal,60300
http://statistics.data.gov.uk/id/local-authority/12UE,Huntingdonshire District Council,202133,THE RENEWABLE ENERGY COMPANY LTD,43968,09/01/2021,7.00005E+11,RIVER TERRACE ST NEOTS,04/02/2021,102.73,513.66,616.39,Riverside (STN),Signs Erecting & Removal,60300
http://statistics.data.gov.uk/id/local-authority/12UE,Huntingdonshire District Council,202133,THE RENEWABLE ENERGY COMPANY LTD,43720,09/10/2020,7.00005E+11,RIVER TERRACE ST NEOTS,28/01/2021,23.29,465.84,489.13,Riverside (STN),Signs Erecting & Removal,60300
http://statistics.data.gov.uk/id/local-authority/12UE,Huntingdonshire District Council,202133,THE RENEWABLE ENERGY COMPANY LTD,43672,09/01/2021,7.00005E+11,13 CAXTON ROAD ST IVES,28/01/2021,127.51,637.57,765.08,St Ives Enterprise Centre,Signs Erecting & Removal,60300
http://statistics.data.gov.uk/id/local-authority/12UE,Huntingdonshire District Council,200126,BRITISH GAS BUSINESS BRITISH GAS BUSINESS,44876,27/01/2021,996362947,GATEHOUSES ST IVES,25/02/2021,82.73,1654.68,1737.41,St Ives Gatehouses/Octagon,Signs Erecting & Removal,60300
http://statistics.data.gov.uk/id/local-authority/12UE,Huntingdonshire District Council,202133,THE RENEWABLE ENERGY COMPANY LTD,43744,14/10/2020,4405358,SHEEP MARKET ST IVES,28/01/2021,15.27,305.38,320.65,St Ives Gatehouses/Octagon,Signs Erecting & Removal,60300
http://statistics.data.gov.uk/id/local-authority/12UE,Huntingdonshire District Council,202133,THE RENEWABLE ENERGY COMPANY LTD,43752,21/08/2020,4349479,MARKET HILL ST IVES,28/01/2021,153.53,767.67,921.2,St Ives Market - Friday,Signs Erecting & Removal,60300
http://statistics.data.gov.uk/id/local-authority/12UE,Huntingdonshire District Council,202133,THE RENEWABLE ENERGY COMPANY LTD,43708,09/10/2020,7.00005E+11,TEBBUTTS ROAD ST NEOTS,28/01/2021,18.61,372.11,390.72,Tebbutts Road (STN),Signs Erecting & Removal,60300
http://statistics.data.gov.uk/id/local-authority/12UE,Huntingdonshire District Council,202133,THE RENEWABLE ENERGY COMPANY LTD,43972,09/01/2021,7.00005E+11,TEBBUTTS ROAD ST NEOTS,04/02/2021,18.61,372.11,390.72,Tebbutts Road (STN),Signs Erecting & Removal,60300
http://statistics.data.gov.uk/id/local-authority/12UE,Huntingdonshire District Council,202133,THE RENEWABLE ENERGY COMPANY LTD,43942,15/01/2021,4499477,HIGH STREET HUNTINGDON,04/02/2021,14.25,284.95,299.2,Village Hall (EAR),Signs Erecting & Removal,60300
http://statistics.data.gov.uk/id/local-authority/12UE,Huntingdonshire District Council,202133,THE RENEWABLE ENERGY COMPANY LTD,43956,09/01/2021,7.00005E+11,MARKET HILL HUNTINGDON,04/02/2021,119,595.02,714.02,Waitrose (STI),Signs Erecting & Removal,60300
http://statistics.data.gov.uk/id/local-authority/12UE,Huntingdonshire District Council,200894,Workman,45229,04/03/2021,835580/195,1400 SOLENT VILLAGE,11/03/2021,347.83,1739.14,2086.97,Commercial Investment Strategy,Rents Payable,60400
http://statistics.data.gov.uk/id/local-authority/12UE,Huntingdonshire District Council,200894,Workman,45228,04/03/2021,835580/200,1500 SOLENT VILLAGE,11/03/2021,318.18,1590.91,1909.09,Commercial Investment Strategy,Rents Payable,60400
http://statistics.data.gov.uk/id/local-authority/12UE,Huntingdonshire District Council,200894,Workman,44652,11/02/2021,809900/834,1400 SOLENT BUSINESS PARK,18/02/2021,142.73,713.65,856.38,Commercial Investment Strategy,Rents Payable,60400
http://statistics.data.gov.uk/id/local-authority/12UE,Huntingdonshire District Council,200894,Workman,44653,11/02/2021,809900/839,1500 SOLENT BUSINESS PARK,18/02/2021,142.73,713.65,856.38,Commercial Investment Strategy,Rents Payable,60400
http://statistics.data.gov.uk/id/local-authority/12UE,Huntingdonshire District Council,200625,PORTAKABIN LTD PORTAKABIN LTD,42646,01/01/2021,900907296,PACEMAKER HIRE JAN 21,28/01/2021,134.51,672.54,807.05,Voluntary Sector Grants,Rents Payable,60400
http://statistics.data.gov.uk/id/local-authority/12UE,Huntingdonshire District Council,200625,PORTAKABIN LTD PORTAKABIN LTD,43998,01/02/2021,900910641,PACEMAKER HIRE FEB 21,25/02/2021,134.51,672.54,807.05,Voluntary Sector Grants,Rents Payable,60400
http://statistics.data.gov.uk/id/local-authority/12UE,Huntingdonshire District Council,200625,PORTAKABIN LTD PORTAKABIN LTD,45003,01/03/2021,900914018,PACEMAKER HIRE MAR 21,25/03/2021,134.51,672.54,807.05,Voluntary Sector Grants,Rents Payable,60400
http://statistics.data.gov.uk/id/local-authority/12UE,Huntingdonshire District Council,200197,CIVICA UK LTD CIVICA UK LTD,43237,01/01/2021,CES2100080,ELECTORAL REGISTRATION 2020 FEES,28/01/2021,193.98,969.9,1163.88,Electoral Registration,Licences,60410
http://statistics.data.gov.uk/id/local-authority/12UE,Huntingdonshire District Council,200733,SOUTH CAMBRIDGESHIRE DISTRICT COUNCIL SOUTH CAMBRIDGESHIRE DISTRICT COUNCIL,42949,06/01/2021,80030383,HOME-LINK MANAGEMENT COSTS,28/01/2021,1822.58,9112.92,10935.5,Housing Needs & Resources,Licences,60410
http://statistics.data.gov.uk/id/local-authority/12UE,Huntingdonshire District Council,201370,TRUSTED BUSINESS INTELLIGENCE LTD,44531,29/01/2021,3523,CONSULTANCY,25/02/2021,4940,24700,29640,HR Services,Licences,60410
http://statistics.data.gov.uk/id/local-authority/12UE,Huntingdonshire District Council,202446,MHR INTERNATIONAL UK LTD,45483,17/02/2021,SIN123498,TRAINING,18/03/2021,2352,11760,14112,HR Services,Licences,60410
http://statistics.data.gov.uk/id/local-authority/12UE,Huntingdonshire District Council,200149,CAMBRIDGE CITY COUNCIL CAMBRIDGE CITY COUNCIL,44536,19/01/2021,12054617,HRIS PROJECT,18/02/2021,1968.16,9840.78,11808.94,HR Services,Licences,60410
http://statistics.data.gov.uk/id/local-authority/12UE,Huntingdonshire District Council,200579,ZELLIS UK LTD,44428,06/01/2021,IN0156369,LICENCES,18/02/2021,580.8,2904,3484.8,HR Services,Licences,60410
http://statistics.data.gov.uk/id/local-authority/12UE,Huntingdonshire District Council,200579,ZELLIS UK LTD,43411,06/01/2021,IN0156614,CONSULTANCY,28/01/2021,193.6,968,1161.6,HR Services,Licences,60410
http://statistics.data.gov.uk/id/local-authority/12UE,Huntingdonshire District Council,200511,CHORUS HOMES GROUP LTD,45080,26/02/2021,1157674,MOBILE HOME PARK,04/03/2021,1280.44,6402.22,7682.66,Mobile Home Park,Licences,60410
http://statistics.data.gov.uk/id/local-authority/12UE,Huntingdonshire District Council,202101,TRAINING SHED FAMILY LTD,42802,01/01/2021,INV-0063,CONSULTANCY,07/01/2021,700,3500,4200,OLSIO - Training Shed,Licences,60410
http://statistics.data.gov.uk/id/local-authority/12UE,Huntingdonshire District Council,202101,TRAINING SHED FAMILY LTD,44238,01/02/2021,INV-0068,CONSULTANCY,11/02/2021,700,3500,4200,OLSIO - Training Shed,Licences,60410
http://statistics.data.gov.uk/id/local-authority/12UE,Huntingdonshire District Council,202101,TRAINING SHED FAMILY LTD,45171,01/03/2021,INV-0070,CONSULTANCY,04/03/2021,700,3500,4200,OLSIO - Training Shed,Licences,60410
http://statistics.data.gov.uk/id/local-authority/12UE,Huntingdonshire District Council,202094,LICENCE BUREAU LTD,45787,27/08/2020,344693,DRIVER MANAGEMENT FEES,25/03/2021,129.6,648,777.6,Vehicle Maintenance,Licences,60410
http://statistics.data.gov.uk/id/local-authority/12UE,Huntingdonshire District Council,202094,LICENCE BUREAU LTD,45787,27/08/2020,344693,DRIVER MANAGEMENT FEES,25/03/2021,9,45,54,Vehicle Maintenance,Licences,60410
http://statistics.data.gov.uk/id/local-authority/12UE,Huntingdonshire District Council,200081,BARCHAM TREES BARCHAM TREES,43385,13/01/2021,142719,TREE WORKS,04/02/2021,15.4,77,92.4,Arboricultural Team,Refuse Collection /Skips,60500
http://statistics.data.gov.uk/id/local-authority/12UE,Huntingdonshire District Council,200081,BARCHAM TREES BARCHAM TREES,43385,13/01/2021,142719,TREE WORKS,04/02/2021,0,188,188,Arboricultural Team,Refuse Collection /Skips,60500
http://statistics.data.gov.uk/id/local-authority/12UE,Huntingdonshire District Council,200081,BARCHAM TREES BARCHAM TREES,43385,13/01/2021,142719,TREE WORKS,04/02/2021,30,150,180,Arboricultural Team,Refuse Collection /Skips,60500
http://statistics.data.gov.uk/id/local-authority/12UE,Huntingdonshire District Council,200081,BARCHAM TREES BARCHAM TREES,43385,13/01/2021,142719,TREE WORKS,04/02/2021,0,97,97,Arboricultural Team,Refuse Collection /Skips,60500
http://statistics.data.gov.uk/id/local-authority/12UE,Huntingdonshire District Council,200081,BARCHAM TREES BARCHAM TREES,43385,13/01/2021,142719,TREE WORKS,04/02/2021,16.6,83,99.6,Arboricultural Team,Refuse Collection /Skips,60500
http://statistics.data.gov.uk/id/local-authority/12UE,Huntingdonshire District Council,200081,BARCHAM TREES BARCHAM TREES,43385,13/01/2021,142719,TREE WORKS,04/02/2021,0,79,79,Arboricultural Team,Refuse Collection /Skips,60500
http://statistics.data.gov.uk/id/local-authority/12UE,Huntingdonshire District Council,200081,BARCHAM TREES BARCHAM TREES,43385,13/01/2021,142719,TREE WORKS,04/02/2021,35.2,176,211.2,Arboricultural Team,Refuse Collection /Skips,60500
http://statistics.data.gov.uk/id/local-authority/12UE,Huntingdonshire District Council,200081,BARCHAM TREES BARCHAM TREES,43385,13/01/2021,142719,TREE WORKS,04/02/2021,49.8,249,298.8,Arboricultural Team,Refuse Collection /Skips,60500
http://statistics.data.gov.uk/id/local-authority/12UE,Huntingdonshire District Council,200634,PRIMESIGHT  LTD PRIMESIGHT  LTD,44261,29/01/2021,2020/360,CLEANING HUNTINGDON BUS SHELTERS,25/02/2021,115.84,579.2,695.04,Bus Shelters,Refuse Collection /Skips,60500
http://statistics.data.gov.uk/id/local-authority/12UE,Huntingdonshire District Council,200634,PRIMESIGHT  LTD PRIMESIGHT  LTD,45805,26/02/2021,2021/007,CLEANING HUNTINGDON BUS SHELTERS,25/03/2021,115.84,579.2,695.04,Bus Shelters,Refuse Collection /Skips,60500
http://statistics.data.gov.uk/id/local-authority/12UE,Huntingdonshire District Council,200634,PRIMESIGHT  LTD PRIMESIGHT  LTD,45806,26/02/2021,2021/008,CLEANING HUNTINGDON BUS SHELTERS,25/03/2021,115.84,579.2,695.04,Bus Shelters,Refuse Collection /Skips,60500
http://statistics.data.gov.uk/id/local-authority/12UE,Huntingdonshire District Council,202256,EASY CLEAN CONTRACTORS LTD,43136,31/12/2020,17390,CLEANING DEC 2020,28/01/2021,159.12,795.6,954.72,Bus Station Pc - Huntingdon,Refuse Collection /Skips,60500
http://statistics.data.gov.uk/id/local-authority/12UE,Huntingdonshire District Council,202256,EASY CLEAN CONTRACTORS LTD,44279,31/01/2021,17552,CLEANING,25/02/2021,159.12,795.6,954.72,Bus Station Pc - Huntingdon,Refuse Collection /Skips,60500
http://statistics.data.gov.uk/id/local-authority/12UE,Huntingdonshire District Council,202256,EASY CLEAN CONTRACTORS LTD,45329,28/02/2021,17724,CLEANING,25/03/2021,159.12,795.6,954.72,Bus Station Pc - Huntingdon,Refuse Collection /Skips,60500
http://statistics.data.gov.uk/id/local-authority/12UE,Huntingdonshire District Council,202256,EASY CLEAN CONTRACTORS LTD,43386,31/12/2020,17473,CLEANING 31/12/20,28/01/2021,472.5,2362.5,2835,Covid-19,Refuse Collection /Skips,60500
http://statistics.data.gov.uk/id/local-authority/12UE,Huntingdonshire District Council,202256,EASY CLEAN CONTRACTORS LTD,45326,28/02/2021,17785,PFH,25/03/2021,450,2250,2700,Covid-19,Refuse Collection /Skips,60500
http://statistics.data.gov.uk/id/local-authority/12UE,Huntingdonshire District Council,202256,EASY CLEAN CONTRACTORS LTD,43144,31/12/2020,17474,EASTFIELD HOUSE,28/01/2021,441,2205,2646,Covid-19,Refuse Collection /Skips,60500
http://statistics.data.gov.uk/id/local-authority/12UE,Huntingdonshire District Council,202256,EASY CLEAN CONTRACTORS LTD,45325,28/02/2021,177861,EASTFIELD HOUSE,25/03/2021,420,2100,2520,Covid-19,Refuse Collection /Skips,60500
http://statistics.data.gov.uk/id/local-authority/12UE,Huntingdonshire District Council,202256,EASY CLEAN CONTRACTORS LTD,43387,31/12/2020,17472,CLEANING 31/12/20,28/01/2021,390.35,1951.74,2342.09,Covid-19,Refuse Collection /Skips,60500
http://statistics.data.gov.uk/id/local-authority/12UE,Huntingdonshire District Council,202256,EASY CLEAN CONTRACTORS LTD,43143,31/12/2020,17481,CLEANING 30/11/20,28/01/2021,197,985,1182,Covid-19,Refuse Collection /Skips,60500
http://statistics.data.gov.uk/id/local-authority/12UE,Huntingdonshire District Council,202256,EASY CLEAN CONTRACTORS LTD,45324,28/02/2021,17787,BUS STATION CLEANING,25/03/2021,192,960,1152,Covid-19,Refuse Collection /Skips,60500
http://statistics.data.gov.uk/id/local-authority/12UE,Huntingdonshire District Council,200607,PEACOCK ENGINEERING PEACOCK ENGINEERING,43795,30/09/2020,60,PAXTON PITS,28/01/2021,120,600,720,Covid-19,Refuse Collection /Skips,60500
http://statistics.data.gov.uk/id/local-authority/12UE,Huntingdonshire District Council,202256,EASY CLEAN CONTRACTORS LTD,43136,31/12/2020,17390,CLEANING DEC 2020,28/01/2021,271.86,1359.32,1631.18,Eastfield House,Refuse Collection /Skips,60500
http://statistics.data.gov.uk/id/local-authority/12UE,Huntingdonshire District Council,202256,EASY CLEAN CONTRACTORS LTD,44279,31/01/2021,17552,CLEANING,25/02/2021,271.86,1359.32,1631.18,Eastfield House,Refuse Collection /Skips,60500
http://statistics.data.gov.uk/id/local-authority/12UE,Huntingdonshire District Council,202256,EASY CLEAN CONTRACTORS LTD,45329,28/02/2021,17724,CLEANING,25/03/2021,271.86,1359.32,1631.18,Eastfield House,Refuse Collection /Skips,60500
http://statistics.data.gov.uk/id/local-authority/12UE,Huntingdonshire District Council,200226,DAL-ROD (CAMRIDGESHIRE) DAL-ROD (CAMRIDGESHIRE),44335,09/02/2021,55437,LEVELLERS LANE,04/03/2021,136,680,816,Emergency Planning,Refuse Collection /Skips,60500
http://statistics.data.gov.uk/id/local-authority/12UE,Huntingdonshire District Council,202059.01,AQUASERVE MAINTENANCE LTD,45317,04/03/2021,AQMAIN21012,OPEN SPACE WORKS,25/03/2021,63.34,316.68,380.02,Emergency Planning,Refuse Collection /Skips,60500
http://statistics.data.gov.uk/id/local-authority/12UE,Huntingdonshire District Council,200279,ERNEST DOE & SONS ERNEST DOE & SONS,45972,18/01/2021,747223,EQUIPMENT,25/03/2021,72,360,432,Grounds Maintenance,Refuse Collection /Skips,60500
http://statistics.data.gov.uk/id/local-authority/12UE,Huntingdonshire District Council,200243,DODS GROUP PLC DODS GROUP PLC,43885,09/10/2020,IE-DP834700004,FULFILLING THE BIODIVERSITY NET,04/02/2021,50.15,250.75,300.9,Grounds Maintenance,Refuse Collection /Skips,60500
http://statistics.data.gov.uk/id/local-authority/12UE,Huntingdonshire District Council,202256,EASY CLEAN CONTRACTORS LTD,43136,31/12/2020,17390,CLEANING DEC 2020,28/01/2021,107.39,536.94,644.33,H'Brooke Countryside Centre,Refuse Collection /Skips,60500
http://statistics.data.gov.uk/id/local-authority/12UE,Huntingdonshire District Council,202256,EASY CLEAN CONTRACTORS LTD,44279,31/01/2021,17552,CLEANING,25/02/2021,107.39,536.94,644.33,H'Brooke Countryside Centre,Refuse Collection /Skips,60500
http://statistics.data.gov.uk/id/local-authority/12UE,Huntingdonshire District Council,202256,EASY CLEAN CONTRACTORS LTD,45329,28/02/2021,17724,CLEANING,25/03/2021,107.39,536.94,644.33,H'Brooke Countryside Centre,Refuse Collection /Skips,60500
http://statistics.data.gov.uk/id/local-authority/12UE,Huntingdonshire District Council,202256,EASY CLEAN CONTRACTORS LTD,44296,20/01/2021,17606,CLEANING,11/02/2021,210,1050,1260,Huntingdon Bus Station,Refuse Collection /Skips,60500
http://statistics.data.gov.uk/id/local-authority/12UE,Huntingdonshire District Council,202256,EASY CLEAN CONTRACTORS LTD,43136,31/12/2020,17390,CLEANING DEC 2020,28/01/2021,727.55,3637.75,4365.3,Pathfinder House,Refuse Collection /Skips,60500
http://statistics.data.gov.uk/id/local-authority/12UE,Huntingdonshire District Council,202256,EASY CLEAN CONTRACTORS LTD,44279,31/01/2021,17552,CLEANING,25/02/2021,727.55,3637.75,4365.3,Pathfinder House,Refuse Collection /Skips,60500
http://statistics.data.gov.uk/id/local-authority/12UE,Huntingdonshire District Council,202256,EASY CLEAN CONTRACTORS LTD,45329,28/02/2021,17724,CLEANING,25/03/2021,727.55,3637.75,4365.3,Pathfinder House,Refuse Collection /Skips,60500
http://statistics.data.gov.uk/id/local-authority/12UE,Huntingdonshire District Council,202256,EASY CLEAN CONTRACTORS LTD,44293,31/01/2021,17601,CLEANING,25/02/2021,472.5,2362.5,2835,Pathfinder House,Refuse Collection /Skips,60500
http://statistics.data.gov.uk/id/local-authority/12UE,Huntingdonshire District Council,202256,EASY CLEAN CONTRACTORS LTD,44294,31/01/2021,17602,CLEANING,25/02/2021,441,2205,2646,Pathfinder House,Refuse Collection /Skips,60500
http://statistics.data.gov.uk/id/local-authority/12UE,Huntingdonshire District Council,202256,EASY CLEAN CONTRACTORS LTD,44288,31/01/2021,17600,CLEANING,25/02/2021,390.35,1951.74,2342.09,Pathfinder House,Refuse Collection /Skips,60500
http://statistics.data.gov.uk/id/local-authority/12UE,Huntingdonshire District Council,202256,EASY CLEAN CONTRACTORS LTD,45327,28/02/2021,17784,PFH,25/03/2021,362.76,1813.8,2176.56,Pathfinder House,Refuse Collection /Skips,60500
http://statistics.data.gov.uk/id/local-authority/12UE,Huntingdonshire District Council,200397,I S & N K JOHNSON I S & N K JOHNSON,45034,28/01/2021,87,PAXTON PITS,04/03/2021,0,800,800,Paxton Pits,Refuse Collection /Skips,60500
http://statistics.data.gov.uk/id/local-authority/12UE,Huntingdonshire District Council,200923,ST IVES TOWN COUNCIL,45227,03/03/2021,2624,BUS STATION CLEANING FEB - MAR 21,11/03/2021,45.23,226.15,271.38,St Ives Bus Station,Refuse Collection /Skips,60500
http://statistics.data.gov.uk/id/local-authority/12UE,Huntingdonshire District Council,200923,ST IVES TOWN COUNCIL,45227,03/03/2021,2624,BUS STATION CLEANING FEB - MAR 21,11/03/2021,45.23,226.15,271.38,St Ives Bus Station,Refuse Collection /Skips,60500
http://statistics.data.gov.uk/id/local-authority/12UE,Huntingdonshire District Council,200923,ST IVES TOWN COUNCIL,45830,09/12/2020,2563,BUS STATION CLEANING,25/03/2021,45.23,226.15,271.38,St Ives Bus Station,Refuse Collection /Skips,60500
http://statistics.data.gov.uk/id/local-authority/12UE,Huntingdonshire District Council,200923,ST IVES TOWN COUNCIL,45830,09/12/2020,2563,BUS STATION CLEANING,25/03/2021,45.23,226.15,271.38,St Ives Bus Station,Refuse Collection /Skips,60500
http://statistics.data.gov.uk/id/local-authority/12UE,Huntingdonshire District Council,202256,EASY CLEAN CONTRACTORS LTD,43136,31/12/2020,17390,CLEANING DEC 2020,28/01/2021,23.52,117.6,141.12,St Ives Enterprise Centre,Refuse Collection /Skips,60500
http://statistics.data.gov.uk/id/local-authority/12UE,Huntingdonshire District Council,202256,EASY CLEAN CONTRACTORS LTD,44279,31/01/2021,17552,CLEANING,25/02/2021,23.52,117.6,141.12,St Ives Enterprise Centre,Refuse Collection /Skips,60500
http://statistics.data.gov.uk/id/local-authority/12UE,Huntingdonshire District Council,202256,EASY CLEAN CONTRACTORS LTD,45329,28/02/2021,17724,CLEANING,25/03/2021,23.52,117.6,141.12,St Ives Enterprise Centre,Refuse Collection /Skips,60500
http://statistics.data.gov.uk/id/local-authority/12UE,Huntingdonshire District Council,202059.01,AQUASERVE MAINTENANCE LTD,45177,03/03/2021,AQMAIN21010,OPEN SPACE WORKS,25/03/2021,63.34,316.68,380.02,Watercourses,Refuse Collection /Skips,60500
http://statistics.data.gov.uk/id/local-authority/12UE,Huntingdonshire District Council,200445,JLT SPECIALITY LTD JLT SPECIALITY LTD,44035,27/11/2020,CE008209,INSURANCE PREMIUMS,04/02/2021,0,693.22,693.22,Insurance Buildings,Premises Insurance Premiums,60600
http://statistics.data.gov.uk/id/local-authority/12UE,Huntingdonshire District Council,200000,A C COMMERCIALS A C COMMERCIALS,42559,10/12/2020,INV0009357,ORDER 2490,07/01/2021,110.05,550.25,660.3,Domestic Waste Collection,Contract Charges (Transport),60900
http://statistics.data.gov.uk/id/local-authority/12UE,Huntingdonshire District Council,200351,GUEST MOTORS LTD GUEST MOTORS LTD,35077,16/04/2020,1707204,ORDER 1517,18/03/2021,-190,-950,-1140,Domestic Waste Collection,Contract Charges (Transport),60900
http://statistics.data.gov.uk/id/local-authority/12UE,Huntingdonshire District Council,201657,EYNESBURY PLANT HIRE CO LTD,43277,07/01/2021,INV66618,SWEEPER HIRE,04/02/2021,330,1650,1980,Emergency Response Management,Contract Charges (Transport),60900
http://statistics.data.gov.uk/id/local-authority/12UE,Huntingdonshire District Council,201657,EYNESBURY PLANT HIRE CO LTD,43277,07/01/2021,INV66618,SWEEPER HIRE,04/02/2021,55,275,330,Emergency Response Management,Contract Charges (Transport),60900
http://statistics.data.gov.uk/id/local-authority/12UE,Huntingdonshire District Council,201657,EYNESBURY PLANT HIRE CO LTD,43276,31/12/2020,INV66617,SWEEPER HIRE,28/01/2021,330,1650,1980,Emergency Response Management,Contract Charges (Transport),60900
http://statistics.data.gov.uk/id/local-authority/12UE,Huntingdonshire District Council,201121,DAWSONGROUP SWEEPERS,43139,01/01/2021,66426,RENTAL 01-07/01/21,28/01/2021,186,930,1116,Emergency Response Management,Contract Charges (Transport),60900
http://statistics.data.gov.uk/id/local-authority/12UE,Huntingdonshire District Council,201121,DAWSONGROUP SWEEPERS,43139,01/01/2021,66426,RENTAL 01-07/01/21,28/01/2021,55,275,330,Emergency Response Management,Contract Charges (Transport),60900
http://statistics.data.gov.uk/id/local-authority/12UE,Huntingdonshire District Council,201657,EYNESBURY PLANT HIRE CO LTD,43617,19/01/2021,INV66660,SWEEPER HIRE,11/02/2021,220,1100,1320,Emergency Response Management,Contract Charges (Transport),60900
http://statistics.data.gov.uk/id/local-authority/12UE,Huntingdonshire District Council,201121,DAWSONGROUP SWEEPERS,43763,30/12/2020,65837,SWEEPER HIRE,28/01/2021,55,275,330,Emergency Response Management,Contract Charges (Transport),60900
http://statistics.data.gov.uk/id/local-authority/12UE,Huntingdonshire District Council,201121,DAWSONGROUP SWEEPERS,43763,30/12/2020,65837,SWEEPER HIRE,28/01/2021,74.4,372,446.4,Emergency Response Management,Contract Charges (Transport),60900
http://statistics.data.gov.uk/id/local-authority/12UE,Huntingdonshire District Council,201657,EYNESBURY PLANT HIRE CO LTD,45012,09/02/2021,INV66847,SWEEPER HIRE,04/03/2021,110,550,660,Emergency Response Management,Contract Charges (Transport),60900
http://statistics.data.gov.uk/id/local-authority/12UE,Huntingdonshire District Council,201657,EYNESBURY PLANT HIRE CO LTD,45356,05/03/2021,INV66938,SWEEPER HIRE,25/03/2021,110,550,660,Emergency Response Management,Contract Charges (Transport),60900
http://statistics.data.gov.uk/id/local-authority/12UE,Huntingdonshire District Council,201657,EYNESBURY PLANT HIRE CO LTD,43291,12/01/2021,INV66620,SWEEPER HIRE,04/02/2021,55,275,330,Emergency Response Management,Contract Charges (Transport),60900
http://statistics.data.gov.uk/id/local-authority/12UE,Huntingdonshire District Council,201657,EYNESBURY PLANT HIRE CO LTD,45351,23/02/2021,INV66912,SWEEPER HIRE,18/03/2021,55,275,330,Emergency Response Management,Contract Charges (Transport),60900
http://statistics.data.gov.uk/id/local-authority/12UE,Huntingdonshire District Council,201657,EYNESBURY PLANT HIRE CO LTD,45352,25/02/2021,INV66913,SWEEPER HIRE,25/03/2021,55,275,330,Emergency Response Management,Contract Charges (Transport),60900
http://statistics.data.gov.uk/id/local-authority/12UE,Huntingdonshire District Council,201657,EYNESBURY PLANT HIRE CO LTD,45354,05/02/2021,INV66778,SWEEPER HIRE,11/03/2021,55,275,330,Emergency Response Management,Contract Charges (Transport),60900
http://statistics.data.gov.uk/id/local-authority/12UE,Huntingdonshire District Council,200322,G&C COACHWORKS LTD G&C COACHWORKS LTD,44068,18/12/2020,10956,VEHICLE REPAIRS,04/02/2021,198.35,991.75,1190.1,Environmental Enforcement,Contract Charges (Transport),60900
http://statistics.data.gov.uk/id/local-authority/12UE,Huntingdonshire District Council,200000,A C COMMERCIALS A C COMMERCIALS,42559,10/12/2020,INV0009357,ORDER 2490,07/01/2021,110.05,550.25,660.3,Green Waste Collection,Contract Charges (Transport),60900
http://statistics.data.gov.uk/id/local-authority/12UE,Huntingdonshire District Council,200000,A C COMMERCIALS A C COMMERCIALS,42559,10/12/2020,INV0009357,ORDER 2490,07/01/2021,44.02,220.1,264.12,Grounds Maintenance,Contract Charges (Transport),60900
http://statistics.data.gov.uk/id/local-authority/12UE,Huntingdonshire District Council,200000,A C COMMERCIALS A C COMMERCIALS,42559,10/12/2020,INV0009357,ORDER 2490,07/01/2021,110.05,550.25,660.3,Recycling Collections,Contract Charges (Transport),60900
http://statistics.data.gov.uk/id/local-authority/12UE,Huntingdonshire District Council,200000,A C COMMERCIALS A C COMMERCIALS,42559,10/12/2020,INV0009357,ORDER 2490,07/01/2021,66.03,330.15,396.18,Street Cleansing,Contract Charges (Transport),60900
http://statistics.data.gov.uk/id/local-authority/12UE,Huntingdonshire District Council,200351,GUEST MOTORS LTD GUEST MOTORS LTD,45451,22/02/2021,17105831,VEHICLE REPAIRS,18/03/2021,51.46,257.31,308.77,Bulky Refuse,Vehicle Repairs And Maintenance,60904
http://statistics.data.gov.uk/id/local-authority/12UE,Huntingdonshire District Council,200351,GUEST MOTORS LTD GUEST MOTORS LTD,45000,03/02/2021,17104941,ORDER 2656,18/03/2021,51.45,257.24,308.69,Bulky Refuse,Vehicle Repairs And Maintenance,60904
http://statistics.data.gov.uk/id/local-authority/12UE,Huntingdonshire District Council,200236,DENNIS EAGLE LTD DENNIS EAGLE LTD,44982,15/02/2021,401292,ORDER 2692,11/03/2021,129.8,649.01,778.81,Domestic Waste Collection,Vehicle Repairs And Maintenance,60904
http://statistics.data.gov.uk/id/local-authority/12UE,Huntingdonshire District Council,200774,TERBERG MATEC UK LTD TERBERG MATEC UK LTD,42676,15/12/2020,96399048,ORDER 2519,07/01/2021,74.91,374.54,449.45,Domestic Waste Collection,Vehicle Repairs And Maintenance,60904
http://statistics.data.gov.uk/id/local-authority/12UE,Huntingdonshire District Council,200236,DENNIS EAGLE LTD DENNIS EAGLE LTD,43784,18/01/2021,398766,ORDER 2613,11/02/2021,367.53,1837.66,2205.19,Domestic Waste Collection,Vehicle Repairs And Maintenance,60904
http://statistics.data.gov.uk/id/local-authority/12UE,Huntingdonshire District Council,200774,TERBERG MATEC UK LTD TERBERG MATEC UK LTD,45452,22/02/2021,96402640,ORDER 2714,18/03/2021,182.53,912.66,1095.19,Domestic Waste Collection,Vehicle Repairs And Maintenance,60904
http://statistics.data.gov.uk/id/local-authority/12UE,Huntingdonshire District Council,200774,TERBERG MATEC UK LTD TERBERG MATEC UK LTD,43878,25/01/2021,96401033,ORDER 2632,18/02/2021,143.14,715.72,858.86,Domestic Waste Collection,Vehicle Repairs And Maintenance,60904
http://statistics.data.gov.uk/id/local-authority/12UE,Huntingdonshire District Council,200236,DENNIS EAGLE LTD DENNIS EAGLE LTD,45627,19/02/2021,DE11384076,OPS PIPES,18/03/2021,78.3,391.52,469.82,Domestic Waste Collection,Vehicle Repairs And Maintenance,60904
http://statistics.data.gov.uk/id/local-authority/12UE,Huntingdonshire District Council,200774,TERBERG MATEC UK LTD TERBERG MATEC UK LTD,44519,29/01/2021,96401435,ORDER 2653,25/02/2021,54.27,271.37,325.64,Domestic Waste Collection,Vehicle Repairs And Maintenance,60904
http://statistics.data.gov.uk/id/local-authority/12UE,Huntingdonshire District Council,200774,TERBERG MATEC UK LTD TERBERG MATEC UK LTD,43782,14/01/2021,96400358,ORDER 2602,11/02/2021,72.1,360.51,432.61,Domestic Waste Collection,Vehicle Repairs And Maintenance,60904
http://statistics.data.gov.uk/id/local-authority/12UE,Huntingdonshire District Council,200236,DENNIS EAGLE LTD DENNIS EAGLE LTD,44150,01/02/2021,DE11378651,ORDER 2659,25/02/2021,111.66,558.32,669.98,Domestic Waste Collection,Vehicle Repairs And Maintenance,60904
http://statistics.data.gov.uk/id/local-authority/12UE,Huntingdonshire District Council,200236,DENNIS EAGLE LTD DENNIS EAGLE LTD,44148,02/02/2021,DE11379033,ORDER 2659,25/02/2021,58.97,294.86,353.83,Domestic Waste Collection,Vehicle Repairs And Maintenance,60904
http://statistics.data.gov.uk/id/local-authority/12UE,Huntingdonshire District Council,200774,TERBERG MATEC UK LTD TERBERG MATEC UK LTD,45449,15/02/2021,96402265,ORDER 2691,11/03/2021,123.73,618.67,742.4,Green Waste Collection,Vehicle Repairs And Maintenance,60904
http://statistics.data.gov.uk/id/local-authority/12UE,Huntingdonshire District Council,200236,DENNIS EAGLE LTD DENNIS EAGLE LTD,44646,22/01/2021,DE11376286,ORDER 2636,18/02/2021,67.79,338.96,406.75,Green Waste Collection,Vehicle Repairs And Maintenance,60904
http://statistics.data.gov.uk/id/local-authority/12UE,Huntingdonshire District Council,200236,DENNIS EAGLE LTD DENNIS EAGLE LTD,43262,18/12/2020,DE11368608,ORDER 2534,14/01/2021,58.82,294.11,352.93,Green Waste Collection,Vehicle Repairs And Maintenance,60904
http://statistics.data.gov.uk/id/local-authority/12UE,Huntingdonshire District Council,200669,REESINK  UK LTD REESINK  UK LTD,43754,14/01/2021,PSI2100893,ORDER 2597,11/02/2021,179.36,896.81,1076.17,Grounds Maintenance,Vehicle Repairs And Maintenance,60904
http://statistics.data.gov.uk/id/local-authority/12UE,Huntingdonshire District Council,200669,REESINK  UK LTD REESINK  UK LTD,43786,14/01/2021,PSI2100889,ORDER 2606,11/02/2021,142.95,714.74,857.69,Grounds Maintenance,Vehicle Repairs And Maintenance,60904
http://statistics.data.gov.uk/id/local-authority/12UE,Huntingdonshire District Council,200000,A C COMMERCIALS A C COMMERCIALS,43064,16/12/2020,INV0009464,ORDER 2467,14/01/2021,20.69,103.43,124.12,Grounds Maintenance,Vehicle Repairs And Maintenance,60904
http://statistics.data.gov.uk/id/local-authority/12UE,Huntingdonshire District Council,200279,ERNEST DOE & SONS ERNEST DOE & SONS,43462,15/12/2020,746534,ORDER 2482,21/01/2021,16.64,83.19,99.83,Grounds Maintenance,Vehicle Repairs And Maintenance,60904
http://statistics.data.gov.uk/id/local-authority/12UE,Huntingdonshire District Council,200279,ERNEST DOE & SONS ERNEST DOE & SONS,43057,14/12/2020,746492,ORDER 2498,14/01/2021,14.18,70.9,85.08,Grounds Maintenance,Vehicle Repairs And Maintenance,60904
http://statistics.data.gov.uk/id/local-authority/12UE,Huntingdonshire District Council,200000,A C COMMERCIALS A C COMMERCIALS,43064,16/12/2020,INV0009464,ORDER 2467,14/01/2021,20.69,103.42,124.11,Grounds Maintenance,Vehicle Repairs And Maintenance,60904
http://statistics.data.gov.uk/id/local-authority/12UE,Huntingdonshire District Council,200279,ERNEST DOE & SONS ERNEST DOE & SONS,43462,15/12/2020,746534,ORDER 2482,21/01/2021,16.64,83.2,99.84,Grounds Maintenance,Vehicle Repairs And Maintenance,60904
http://statistics.data.gov.uk/id/local-authority/12UE,Huntingdonshire District Council,200279,ERNEST DOE & SONS ERNEST DOE & SONS,43057,14/12/2020,746492,ORDER 2498,14/01/2021,14.18,70.9,85.08,Grounds Maintenance,Vehicle Repairs And Maintenance,60904
http://statistics.data.gov.uk/id/local-authority/12UE,Huntingdonshire District Council,200000,A C COMMERCIALS A C COMMERCIALS,43064,16/12/2020,INV0009464,ORDER 2467,14/01/2021,20.69,103.42,124.11,Grounds Maintenance,Vehicle Repairs And Maintenance,60904
http://statistics.data.gov.uk/id/local-authority/12UE,Huntingdonshire District Council,200279,ERNEST DOE & SONS ERNEST DOE & SONS,43462,15/12/2020,746534,ORDER 2482,21/01/2021,16.64,83.2,99.84,Grounds Maintenance,Vehicle Repairs And Maintenance,60904
http://statistics.data.gov.uk/id/local-authority/12UE,Huntingdonshire District Council,200279,ERNEST DOE & SONS ERNEST DOE & SONS,43057,14/12/2020,746492,ORDER 2498,14/01/2021,14.18,70.9,85.08,Grounds Maintenance,Vehicle Repairs And Maintenance,60904
http://statistics.data.gov.uk/id/local-authority/12UE,Huntingdonshire District Council,200000,A C COMMERCIALS A C COMMERCIALS,43064,16/12/2020,INV0009464,ORDER 2467,14/01/2021,20.68,103.42,124.1,Grounds Maintenance,Vehicle Repairs And Maintenance,60904
http://statistics.data.gov.uk/id/local-authority/12UE,Huntingdonshire District Council,200279,ERNEST DOE & SONS ERNEST DOE & SONS,43462,15/12/2020,746534,ORDER 2482,21/01/2021,16.64,83.2,99.84,Grounds Maintenance,Vehicle Repairs And Maintenance,60904
http://statistics.data.gov.uk/id/local-authority/12UE,Huntingdonshire District Council,200279,ERNEST DOE & SONS ERNEST DOE & SONS,43057,14/12/2020,746492,ORDER 2498,14/01/2021,14.18,70.9,85.08,Grounds Maintenance,Vehicle Repairs And Maintenance,60904
http://statistics.data.gov.uk/id/local-authority/12UE,Huntingdonshire District Council,200279,ERNEST DOE & SONS ERNEST DOE & SONS,43452,23/10/2020,744802,ORDER 2214,21/01/2021,166.79,833.97,1000.76,Grounds Maintenance,Vehicle Repairs And Maintenance,60904
http://statistics.data.gov.uk/id/local-authority/12UE,Huntingdonshire District Council,200279,ERNEST DOE & SONS ERNEST DOE & SONS,43452,23/10/2020,744802,ORDER 2214,21/01/2021,166.79,833.96,1000.75,Grounds Maintenance,Vehicle Repairs And Maintenance,60904
http://statistics.data.gov.uk/id/local-authority/12UE,Huntingdonshire District Council,200000,A C COMMERCIALS A C COMMERCIALS,43585,24/12/2020,INV0009589,ORDER 2560,28/01/2021,68.82,344.08,412.9,Grounds Maintenance,Vehicle Repairs And Maintenance,60904
http://statistics.data.gov.uk/id/local-authority/12UE,Huntingdonshire District Council,200060,ARTHUR IBBETT LTD ARTHUR IBBETT LTD,42552,10/12/2020,186956,ORDER 2476,07/01/2021,84.51,422.53,507.04,Grounds Maintenance,Vehicle Repairs And Maintenance,60904
http://statistics.data.gov.uk/id/local-authority/12UE,Huntingdonshire District Council,200060,ARTHUR IBBETT LTD ARTHUR IBBETT LTD,42557,10/12/2020,186960,ORDER 2472,07/01/2021,77.15,385.73,462.88,Grounds Maintenance,Vehicle Repairs And Maintenance,60904
http://statistics.data.gov.uk/id/local-authority/12UE,Huntingdonshire District Council,200060,ARTHUR IBBETT LTD ARTHUR IBBETT LTD,42558,10/12/2020,186961,ORDER 2471,07/01/2021,56.34,281.7,338.04,Grounds Maintenance,Vehicle Repairs And Maintenance,60904
http://statistics.data.gov.uk/id/local-authority/12UE,Huntingdonshire District Council,201988,Ford Motor Company T/A Parts Plus,43583,19/01/2021,15021967,ORDER 2615,11/02/2021,51.21,256.03,307.24,Hinchingbrooke Park Management,Vehicle Repairs And Maintenance,60904
http://statistics.data.gov.uk/id/local-authority/12UE,Huntingdonshire District Council,200060,ARTHUR IBBETT LTD ARTHUR IBBETT LTD,45455,26/02/2021,100791,MATERIALS,25/03/2021,79.57,397.86,477.43,Paxton Pits,Vehicle Repairs And Maintenance,60904
http://statistics.data.gov.uk/id/local-authority/12UE,Huntingdonshire District Council,200236,DENNIS EAGLE LTD DENNIS EAGLE LTD,45005,15/02/2021,DE11382524,ORDER 2701,11/03/2021,116.08,580.42,696.5,Recycling Collections,Vehicle Repairs And Maintenance,60904
http://statistics.data.gov.uk/id/local-authority/12UE,Huntingdonshire District Council,200774,TERBERG MATEC UK LTD TERBERG MATEC UK LTD,45450,22/02/2021,96402639,ORDER 2711,18/03/2021,85.36,426.78,512.14,Recycling Collections,Vehicle Repairs And Maintenance,60904
http://statistics.data.gov.uk/id/local-authority/12UE,Huntingdonshire District Council,200000,A C COMMERCIALS A C COMMERCIALS,43869,25/01/2021,INV0009998,ORDER 2637,18/02/2021,60.73,303.64,364.37,Recycling Collections,Vehicle Repairs And Maintenance,60904
http://statistics.data.gov.uk/id/local-authority/12UE,Huntingdonshire District Council,200236,DENNIS EAGLE LTD DENNIS EAGLE LTD,43610,05/01/2021,DE11371289,ORDER 2578,28/01/2021,536,2679.98,3215.98,Recycling Collections,Vehicle Repairs And Maintenance,60904
http://statistics.data.gov.uk/id/local-authority/12UE,Huntingdonshire District Council,200236,DENNIS EAGLE LTD DENNIS EAGLE LTD,43882,25/01/2021,DE11376638,ORDER 2638,18/02/2021,292.61,1463.06,1755.67,Recycling Collections,Vehicle Repairs And Maintenance,60904
http://statistics.data.gov.uk/id/local-authority/12UE,Huntingdonshire District Council,200236,DENNIS EAGLE LTD DENNIS EAGLE LTD,45447,09/02/2021,400915,ORDER 2677,11/03/2021,91.06,455.3,546.36,Recycling Collections,Vehicle Repairs And Maintenance,60904
http://statistics.data.gov.uk/id/local-authority/12UE,Huntingdonshire District Council,200774,TERBERG MATEC UK LTD TERBERG MATEC UK LTD,45448,26/01/2021,96401115,ORDER 2640,11/03/2021,88.56,442.82,531.38,Recycling Collections,Vehicle Repairs And Maintenance,60904
http://statistics.data.gov.uk/id/local-authority/12UE,Huntingdonshire District Council,200774,TERBERG MATEC UK LTD TERBERG MATEC UK LTD,43879,25/01/2021,96401034,ORDER 2634,18/02/2021,85.36,426.82,512.18,Recycling Collections,Vehicle Repairs And Maintenance,60904
http://statistics.data.gov.uk/id/local-authority/12UE,Huntingdonshire District Council,200721,SILVER SHIELD WINDSCREENS SILVER SHIELD WINDSCREENS,42757,10/12/2020,SSA42827,ORDER 2518,07/01/2021,58,290,348,Recycling Collections,Vehicle Repairs And Maintenance,60904
http://statistics.data.gov.uk/id/local-authority/12UE,Huntingdonshire District Council,200236,DENNIS EAGLE LTD DENNIS EAGLE LTD,45454,24/02/2021,402278,ORDER 2706,18/03/2021,50.08,250.42,300.5,Recycling Collections,Vehicle Repairs And Maintenance,60904
http://statistics.data.gov.uk/id/local-authority/12UE,Huntingdonshire District Council,200774,TERBERG MATEC UK LTD TERBERG MATEC UK LTD,44995,12/02/2021,96402197,ORDER 2689,11/03/2021,93.29,466.43,559.72,Recycling Collections,Vehicle Repairs And Maintenance,60904
http://statistics.data.gov.uk/id/local-authority/12UE,Huntingdonshire District Council,200774,TERBERG MATEC UK LTD TERBERG MATEC UK LTD,43584,22/12/2020,96399400,ORDER 2548,28/01/2021,60.75,303.73,364.48,Recycling Collections,Vehicle Repairs And Maintenance,60904
http://statistics.data.gov.uk/id/local-authority/12UE,Huntingdonshire District Council,200774,TERBERG MATEC UK LTD TERBERG MATEC UK LTD,44231,11/01/2021,96400101,ORDER 2592,11/02/2021,119.99,599.97,719.96,Recycling Collections,Vehicle Repairs And Maintenance,60904
http://statistics.data.gov.uk/id/local-authority/12UE,Huntingdonshire District Council,200236,DENNIS EAGLE LTD DENNIS EAGLE LTD,43586,06/01/2021,DE11371679,ORDER 2585,28/01/2021,63.2,315.99,379.19,Recycling Collections,Vehicle Repairs And Maintenance,60904
http://statistics.data.gov.uk/id/local-authority/12UE,Huntingdonshire District Council,200028,AEBI SCHMIDT AEBI SCHMIDT,43685,15/01/2021,60266760,ORDER 2609,11/02/2021,62.19,310.97,373.16,Street Cleansing,Vehicle Repairs And Maintenance,60904
http://statistics.data.gov.uk/id/local-authority/12UE,Huntingdonshire District Council,200028,AEBI SCHMIDT AEBI SCHMIDT,44991,16/02/2021,60267654,ORDER 2690,11/03/2021,95.07,475.37,570.44,Street Cleansing,Vehicle Repairs And Maintenance,60904
http://statistics.data.gov.uk/id/local-authority/12UE,Huntingdonshire District Council,200028,AEBI SCHMIDT AEBI SCHMIDT,44247,03/02/2021,60267333,ORDER 2666,25/02/2021,51.33,256.65,307.98,Street Cleansing,Vehicle Repairs And Maintenance,60904
http://statistics.data.gov.uk/id/local-authority/12UE,Huntingdonshire District Council,200028,AEBI SCHMIDT AEBI SCHMIDT,43685,15/01/2021,60266760,ORDER 2609,11/02/2021,62.19,310.97,373.16,Street Cleansing,Vehicle Repairs And Maintenance,60904
http://statistics.data.gov.uk/id/local-authority/12UE,Huntingdonshire District Council,200028,AEBI SCHMIDT AEBI SCHMIDT,45877,23/02/2021,60267873,ORDER 2712,25/03/2021,40.94,204.72,245.66,Street Cleansing,Vehicle Repairs And Maintenance,60904
http://statistics.data.gov.uk/id/local-authority/12UE,Huntingdonshire District Council,200028,AEBI SCHMIDT AEBI SCHMIDT,45072,12/02/2021,60267589,ORDER 2690,11/03/2021,110.44,552.18,662.62,Street Cleansing,Vehicle Repairs And Maintenance,60904
http://statistics.data.gov.uk/id/local-authority/12UE,Huntingdonshire District Council,200028,AEBI SCHMIDT AEBI SCHMIDT,42459,15/12/2020,60266218,ORDER 2520,07/01/2021,94.92,474.61,569.53,Street Cleansing,Vehicle Repairs And Maintenance,60904
http://statistics.data.gov.uk/id/local-authority/12UE,Huntingdonshire District Council,200028,AEBI SCHMIDT AEBI SCHMIDT,42460,16/12/2020,60266255,ORDER 2520,07/01/2021,93.63,468.14,561.77,Street Cleansing,Vehicle Repairs And Maintenance,60904
http://statistics.data.gov.uk/id/local-authority/12UE,Huntingdonshire District Council,200028,AEBI SCHMIDT AEBI SCHMIDT,45877,23/02/2021,60267873,ORDER 2712,25/03/2021,40.94,204.72,245.66,Street Cleansing,Vehicle Repairs And Maintenance,60904
